Workbook

Sheet 入力部分
A1: 露出高推定モデル（混合粒径対応） | E1: バージョン2.0 β
A2: ファイル名 | B2: rosyutsudaka Miyagawa-Model ver2.0 β
C4: 黄色く塗った箇所を入力してください | F4: 入力値に基づく粒径加積曲線 → | I4: =SUM(D7:D12) -> 1 | J4: 500
I5: =SUM(D8:D12) -> 0.9 | J5: 256
B6: i | C6: 粒径範囲※ | D6: 各区分の存在割合F（i） | E6: ←この部分は入力必須です | I6: =SUM(D9:D12) -> 0.6 | J6: 150
B7: F(1) | C7: 256mm～ | D7: 0.1 | I7: =SUM(D10:D12) -> 0.4 | J7: 64
B8: F(2) | C8: 128～256mm | D8: 0.3 | I8: =SUM(D11:D12) -> 0.2 | J8: 16
B9: F(3) | C9: 64～128mm | D9: 0.2 | I9: =SUM(D12:D12) -> 0.1 | J9: 2
B10: F(4) | C10: 16～64mm | D10: 0.2 | I10: 0 | J10: 1
B11: F(5) | C11: 2～16mm | D11: 0.1
B12: F(6) | C12: ～2mm | D12: 0.1
B13: 計 | D13: =SUM(D7:D12) -> 1 | E13: =IF(D13=1,"o.k.","計が1になるように入力してください") -> o.k.
C15: 青く塗った箇所は自分で設定したい場合に入力してください | H15: 計算で使う部分（自分で設定しない場合は、自動で設定されます）
B17: i | C17: 粒径範囲※ | D17: 各区分の代表粒径 | H17: i | I17: 各区分の代表粒径 mm
B18: F(1) | C18: 256mm～ | E18: ←巨礫（目安：330mm） | H18: F(1) | I18: =IF(D18=0,330,D18) -> 330
B19: F(2) | C19: 128～256mm | E19: ←大礫（目安：200mm） | H19: F(2) | I19: =IF(D19=0,192,D19) -> 192
B20: F(3) | C20: 64～128mm | E20: ←大礫（目安：100mm） | H20: F(3) | I20: =IF(D20=0,96,D20) -> 96
B21: F(4) | C21: 16～64mm | E21: ←中礫（目安：40mm） | H21: F(4) | I21: =IF(D21=0,40,D21) -> 40
B22: F(5) | C22: 2～16mm | E22: ←砂利（目安：9mm） | F22: ←露出高にカウントしない | H22: F(5)
B23: F(6) | C23: ～2mm | E23: ←砂（目安：1mm） | F23: ←露出高にカウントしない | H23: F(6)
B26: i | C26: 粒径範囲※ | D26: 各区分の代表高さ Si | E26: ←代表粒径の0.64倍が目安（2021/4/1更新） | H26: i | I26: 各区分の代表高さ Si mm
B27: F(1) | C27: 256mm～ | H27: F(1) | I27: =IF(D27=0,IF(D18=0,I18*0.64,D18*0.64), D27) -> 211.2
B28: F(2) | C28: 128～256mm | H28: F(2) | I28: =IF(D28=0,IF(D19=0,I19*0.64,D19*0.64), D28) -> 122.88
B29: F(3) | C29: 64～128mm | H29: F(3) | I29: =IF(D29=0,IF(D20=0,I20*0.64,D20*0.64), D29) -> 61.44
B30: F(4) | C30: 16～64mm | H30: F(4) | I30: =IF(D30=0,IF(D21=0,I21*0.64,D21*0.64), D30) -> 25.6
B31: F(5) | C31: 2～16mm | F31: ←露出高にカウントしない | H31: F(5)
B32: F(6) | C32: ～2mm | F32: ←露出高にカウントしない | H32: F(6)
B35: i | C35: 粒径範囲※ | D35: 各区分の標準偏差σ | E35: ←代表粒径の0.217～0.3倍が目安（2021/4/1更新） | H35: i | I35: 各区分の標準偏差σ
B36: F(1) | C36: 256mm～ | H36: F(1) | I36: =IF(D36=0,I18*0.3,D36) -> 99
B37: F(2) | C37: 128～256mm | H37: F(2) | I37: =IF(D37=0,I19*0.3,D37) -> 57.6
B38: F(3) | C38: 64～128mm | H38: F(3) | I38: =IF(D38=0,I20*0.3,D38) -> 28.8
B39: F(4) | C39: 16～64mm | H39: F(4) | I39: =IF(D39=0,I21*0.3,D39) -> 12
B40: F(5) | C40: 2～16mm | F40: ←露出高にカウントしない | H40: F(5)
B41: F(6) | C41: ～2mm | F41: ←露出高にカウントしない | H41: F(6)
B44: ※ | C44: Wentworthの粒径区分を参照 | H44: i | I44: ゼロ点補正
C45: F(1) | D45: 256mm～ | H45: F(1) | I45: =0.5*I27-(0.5*(I$27*D$7+I$28*D$8+I$29*D$9+D$10*I$30)/(SUM(D$7:D$10))) -> 58.48
C46: F(2) | D46: 128～256mm | H46: F(2) | I46: =0.5*I28-(0.5*(I$27*D$7+I$28*D$8+I$29*D$9+D$10*I$30)/(SUM(D$7:D$10))) -> 14.32
C47: F(3) | D47: 64～128mm | H47: F(3) | I47: =0.5*I29-(0.5*(I$27*D$7+I$28*D$8+I$29*D$9+D$10*I$30)/(SUM(D$7:D$10))) -> -16.4
C48: F(4) | D48: 16～64mm | E48: ↑露出高にカウントした範囲 | H48: F(4) | I48: =0.5*I30-(0.5*(I$27*D$7+I$28*D$8+I$29*D$9+D$10*I$30)/(SUM(D$7:D$10))) -> -34.32
C49: F(5) | D49: 2～16mm | H49: F(5)
C50: F(6) | D50: ～2mm | H50: F(6)

Sheet 出力部分
A1: 露出高推定モデル（混合粒径対応） | D1: バージョン2.0 β | L1: F（1）の分布 | N1: P(x)の累積値 | O1: xの平均値 | Q1: F（2）の分布 | S1: P(x)の累積値 | T1: xの平均値 | V1: F（3）の分布 | X1: P(x)の累積値 | Y1: xの平均値 | AA1: F（4）の分布 | AC1: P(x)の累積値 | AD1: xの平均値
A2: ファイル名 | B2: rosyutsudaka Miyagawa-Model ver2.0 β | N2: =SUM(N6:N506) -> 0.9391672271 | O2: =SUM(O6:O506) -> 155.2737078 | S2: =SUM(S6:S506) -> 0.9710956 | T2: =SUM(T6:T506) -> 109.2500449 | X2: =SUM(X6:X506) -> 0.9969913712 | Y2: =SUM(Y6:Y506) -> 77.88997087 | AC2: =SUM(AC6:AC506) -> 1.000253338 | AD2: =SUM(AD6:AD506) -> 59.93519488
F4: 混合粒径における露出高 | I4: 露出高 | J4: 露出高がxの確率 | M4: 露出高 | N4: 露出高がxの確率 | R4: 露出高 | S4: 露出高がxの確率 | W4: 露出高 | X4: 露出高がxの確率 | AB4: 露出高 | AC4: 露出高がxの確率
B5: 露出高分布 | F5: 平均値 mm | G5: P(x)の累積値（<1） | I5: ｘ mm | J5: P（x） | M5: x mm | N5: p(x) | O5: x*p(x) | R5: x mm | S5: p(x) | T5: x*p(x) | W5: x mm | X5: p(x) | Y5: x*p(x) | AB5: x mm | AC5: p(x) | AD5: x*p(x)
F6: =(入力部分!D7*(O2-入力部分!I45)+入力部分!D8*(T2-入力部分!I46)+入力部分!D9*(Y2-入力部分!I47)+入力部分!D10*(AD2-入力部分!I48))/(SUM(入力部分!D7:D10)) -> 94.83427176 | G6: =SUM(J6:J506) -> 0.9808679307 | I6: 0 | J6: =(入力部分!D$7*N6+入力部分!D$8*S6+入力部分!D$9*X6+入力部分!D$10*AC6)/(SUM(入力部分!D$7:D$10)) -> 0.0006829695092 | M6: 0 | N6: =1/入力部分!$I$36/(2*3.14)^0.5*EXP(-1/2*(((M6+入力部分!$I$45)-入力部分!$I$27)/入力部分!$I$36)^2) -> 0.001226423911 | O6: =M6*$N6 -> 0 | R6: 0 | S6: =1/入力部分!$I$37/(2*3.14)^0.5*EXP(-1/2*(((R6+入力部分!$I$46)-入力部分!$I$28)/入力部分!$I$37)^2) -> 0.001172875931 | T6: =R6*$S6 -> 0 | W6: 0 | X6: =1/入力部分!$I$38/(2*3.14)^0.5*EXP(-1/2*(((W6+入力部分!$I$47)-入力部分!$I$29)/入力部分!$I$38)^2) -> 0.0003592240622 | Y6: =W6*$X6 -> 0 | AB6: 0 | AC6: =1/入力部分!$I$39/(2*3.14)^0.5*EXP(-1/2*(((AB6+入力部分!$I$48)-入力部分!$I$30)/入力部分!$I$39)^2) -> 1.28122304e-07 | AD6: =AB6*$AC6 -> 0
I7: 1 | J7: =(入力部分!D$7*N7+入力部分!D$8*S7+入力部分!D$9*X7+入力部分!D$10*AC7)/(SUM(入力部分!D$7:D$10)) -> 0.0007087232097 | M7: 1 | N7: =1/入力部分!$I$36/(2*3.14)^0.5*EXP(-1/2*(((M7+入力部分!$I$45)-入力部分!$I$27)/入力部分!$I$36)^2) -> 0.001245620269 | O7: =M7*$N7 -> 0.001245620269 | R7: 1 | S7: =1/入力部分!$I$37/(2*3.14)^0.5*EXP(-1/2*(((R7+入力部分!$I$46)-入力部分!$I$28)/入力部分!$I$37)^2) -> 0.001211705609 | T7: =R7*$S7 -> 0.001211705609 | W7: 1 | X7: =1/入力部分!$I$38/(2*3.14)^0.5*EXP(-1/2*(((W7+入力部分!$I$47)-入力部分!$I$29)/入力部分!$I$38)^2) -> 0.0003943307234 | Y7: =W7*$X7 -> 0.0003943307234 | AB7: 1 | AC7: =1/入力部分!$I$39/(2*3.14)^0.5*EXP(-1/2*(((AB7+入力部分!$I$48)-入力部分!$I$30)/入力部分!$I$39)^2) -> 1.935670951e-07 | AD7: =AB7*$AC7 -> 1.935670951e-07
I8: 2 | J8: =(入力部分!D$7*N8+入力部分!D$8*S8+入力部分!D$9*X8+入力部分!D$10*AC8)/(SUM(入力部分!D$7:D$10)) -> 0.0007355741269 | M8: 2 | N8: =1/入力部分!$I$36/(2*3.14)^0.5*EXP(-1/2*(((M8+入力部分!$I$45)-入力部分!$I$27)/入力部分!$I$36)^2) -> 0.00126498802 | O8: =M8*$N8 -> 0.00252997604 | R8: 2 | S8: =1/入力部分!$I$37/(2*3.14)^0.5*EXP(-1/2*(((R8+入力部分!$I$46)-入力部分!$I$28)/入力部分!$I$37)^2) -> 0.001251443545 | T8: =R8*$S8 -> 0.00250288709 | W8: 2 | X8: =1/入力部分!$I$38/(2*3.14)^0.5*EXP(-1/2*(((W8+入力部分!$I$47)-入力部分!$I$29)/入力部分!$I$38)^2) -> 0.000432346763 | Y8: =W8*$X8 -> 0.000864693526 | AB8: 2 | AC8: =1/入力部分!$I$39/(2*3.14)^0.5*EXP(-1/2*(((AB8+入力部分!$I$48)-入力部分!$I$30)/入力部分!$I$39)^2) -> 2.904172382e-07 | AD8: 5.808344764e-07
I9: 3 | J9: =(入力部分!D$7*N9+入力部分!D$8*S9+入力部分!D$9*X9+入力部分!D$10*AC9)/(SUM(入力部分!D$7:D$10)) -> 0.0007635737605 | M9: 3 | N9: =1/入力部分!$I$36/(2*3.14)^0.5*EXP(-1/2*(((M9+入力部分!$I$45)-入力部分!$I$27)/入力部分!$I$36)^2) -> 0.001284525846 | O9: 0.003853577539 | R9: 3 | S9: =1/入力部分!$I$37/(2*3.14)^0.5*EXP(-1/2*(((R9+入力部分!$I$46)-入力部分!$I$28)/入力部分!$I$37)^2) -> 0.001292095181 | T9: 0.003876285544 | W9: 3 | X9: =1/入力部分!$I$38/(2*3.14)^0.5*EXP(-1/2*(((W9+入力部分!$I$47)-入力部分!$I$29)/入力部分!$I$38)^2) -> 0.0004734566363 | Y9: 0.001420369909 | AB9: 3 | AC9: =1/入力部分!$I$39/(2*3.14)^0.5*EXP(-1/2*(((AB9+入力部分!$I$48)-入力部分!$I$30)/入力部分!$I$39)^2) -> 4.327103824e-07 | AD9: 1.298131147e-06
I10: 4 | J10: =(入力部分!D$7*N10+入力部分!D$8*S10+入力部分!D$9*X10+入力部分!D$10*AC10)/(SUM(入力部分!D$7:D$10)) -> 0.0007927762831 | M10: 4 | N10: =1/入力部分!$I$36/(2*3.14)^0.5*EXP(-1/2*(((M10+入力部分!$I$45)-入力部分!$I$27)/入力部分!$I$36)^2) -> 0.001304232358 | O10: 0.005216929431 | R10: 4 | S10: =1/入力部分!$I$37/(2*3.14)^0.5*EXP(-1/2*(((R10+入力部分!$I$46)-入力部分!$I$28)/入力部分!$I$37)^2) -> 0.001333665299 | T10: 0.005334661196 | W10: 4 | X10: =1/入力部分!$I$38/(2*3.14)^0.5*EXP(-1/2*(((W10+入力部分!$I$47)-入力部分!$I$29)/入力部分!$I$38)^2) -> 0.0005178507448 | Y10: 0.002071402979 | AB10: 4 | AC10: =1/入力部分!$I$39/(2*3.14)^0.5*EXP(-1/2*(((AB10+入力部分!$I$48)-入力部分!$I$30)/入力部分!$I$39)^2) -> 6.402599059e-07 | AD10: 2.561039624e-06
I11: 5 | J11: =(入力部分!D$7*N11+入力部分!D$8*S11+入力部分!D$9*X11+入力部分!D$10*AC11)/(SUM(入力部分!D$7:D$10)) -> 0.0008232389687 | M11: 5 | N11: =1/入力部分!$I$36/(2*3.14)^0.5*EXP(-1/2*(((M11+入力部分!$I$45)-入力部分!$I$27)/入力部分!$I$36)^2) -> 0.00132410609 | O11: =M11*$N11 -> 0.00662053045 | R11: 5 | S11: =1/入力部分!$I$37/(2*3.14)^0.5*EXP(-1/2*(((R11+入力部分!$I$46)-入力部分!$I$28)/入力部分!$I$37)^2) -> 0.00137615799 | T11: 0.006880789948 | W11: 5 | X11: =1/入力部分!$I$38/(2*3.14)^0.5*EXP(-1/2*(((W11+入力部分!$I$47)-入力部分!$I$29)/入力部分!$I$38)^2) -> 0.0005657250409 | Y11: 0.002828625204 | AB11: 5 | AC11: =1/入力部分!$I$39/(2*3.14)^0.5*EXP(-1/2*(((AB11+入力部分!$I$48)-入力部分!$I$30)/入力部分!$I$39)^2) -> 9.408044508e-07 | AD11: 4.704022254e-06
I12: 6 | J12: =(入力部分!D$7*N12+入力部分!D$8*S12+入力部分!D$9*X12+入力部分!D$10*AC12)/(SUM(入力部分!D$7:D$10)) -> 0.0008550227789 | M12: 6 | N12: =1/入力部分!$I$36/(2*3.14)^0.5*EXP(-1/2*(((M12+入力部分!$I$45)-入力部分!$I$27)/入力部分!$I$36)^2) -> 0.001344145505 | O12: 0.008064873031 | R12: 6 | S12: =1/入力部分!$I$37/(2*3.14)^0.5*EXP(-1/2*(((R12+入力部分!$I$46)-入力部分!$I$28)/入力部分!$I$37)^2) -> 0.001419576628 | T12: 0.008517459768 | W12: 6 | X12: =1/入力部分!$I$38/(2*3.14)^0.5*EXP(-1/2*(((W12+入力部分!$I$47)-入力部分!$I$29)/入力部分!$I$38)^2) -> 0.0006172805603 | Y12: 0.003703683362 | AB12: 6 | AC12: =1/入力部分!$I$39/(2*3.14)^0.5*EXP(-1/2*(((AB12+入力部分!$I$48)-入力部分!$I$30)/入力部分!$I$39)^2) -> 1.372860742e-06 | AD12: 8.237164453e-06
I13: 7 | J13: =(入力部分!D$7*N13+入力部分!D$8*S13+入力部分!D$9*X13+入力部分!D$10*AC13)/(SUM(入力部分!D$7:D$10)) -> 0.0008881931537 | M13: 7 | N13: =1/入力部分!$I$36/(2*3.14)^0.5*EXP(-1/2*(((M13+入力部分!$I$45)-入力部分!$I$27)/入力部分!$I$36)^2) -> 0.001364348991 | O13: 0.009550442934 | R13: 7 | S13: =1/入力部分!$I$37/(2*3.14)^0.5*EXP(-1/2*(((R13+入力部分!$I$46)-入力部分!$I$28)/入力部分!$I$37)^2) -> 0.001463923846 | T13: 0.01024746692 | W13: 7 | X13: =1/入力部分!$I$38/(2*3.14)^0.5*EXP(-1/2*(((W13+入力部分!$I$47)-入力部分!$I$29)/入力部分!$I$38)^2) -> 0.0006727228791 | Y13: 0.004709060154 | AB13: 7 | AC13: =1/入力部分!$I$39/(2*3.14)^0.5*EXP(-1/2*(((AB13+入力部分!$I$48)-入力部分!$I$30)/入力部分!$I$39)^2) -> 1.989471286e-06 | AD13: 1.3926299e-05
I14: 8 | J14: =(入力部分!D$7*N14+入力部分!D$8*S14+入力部分!D$9*X14+入力部分!D$10*AC14)/(SUM(入力部分!D$7:D$10)) -> 0.0009228210644 | M14: 8 | N14: =1/入力部分!$I$36/(2*3.14)^0.5*EXP(-1/2*(((M14+入力部分!$I$45)-入力部分!$I$27)/入力部分!$I$36)^2) -> 0.001384714859 | O14: 0.01107771887 | R14: 8 | S14: =1/入力部分!$I$37/(2*3.14)^0.5*EXP(-1/2*(((R14+入力部分!$I$46)-入力部分!$I$28)/入力部分!$I$37)^2) -> 0.001509201506 | T14: 0.01207361205 | W14: 8 | X14: =1/入力部分!$I$38/(2*3.14)^0.5*EXP(-1/2*(((W14+入力部分!$I$47)-入力部分!$I$29)/入力部分!$I$38)^2) -> 0.0007322614927 | Y14: 0.005858091941 | AB14: 8 | AC14: =1/入力部分!$I$39/(2*3.14)^0.5*EXP(-1/2*(((AB14+入力部分!$I$48)-入力部分!$I$30)/入力部分!$I$39)^2) -> 2.863076356e-06 | AD14: 2.290461085e-05
I15: 9 | J15: =(入力部分!D$7*N15+入力部分!D$8*S15+入力部分!D$9*X15+入力部分!D$10*AC15)/(SUM(入力部分!D$7:D$10)) -> 0.0009589843942 | M15: 9 | N15: =1/入力部分!$I$36/(2*3.14)^0.5*EXP(-1/2*(((M15+入力部分!$I$45)-入力部分!$I$27)/入力部分!$I$36)^2) -> 0.001405241347 | O15: 0.01264717212 | R15: 9 | S15: =1/入力部分!$I$37/(2*3.14)^0.5*EXP(-1/2*(((R15+入力部分!$I$46)-入力部分!$I$28)/入力部分!$I$37)^2) -> 0.001555410674 | T15: 0.01399869606 | W15: 9 | X15: =1/入力部分!$I$38/(2*3.14)^0.5*EXP(-1/2*(((W15+入力部分!$I$47)-入力部分!$I$29)/入力部分!$I$38)^2) -> 0.000796109113 | Y15: 0.007164982017 | AB15: 9 | AC15: =1/入力部分!$I$39/(2*3.14)^0.5*EXP(-1/2*(((AB15+入力部分!$I$48)-入力部分!$I$30)/入力部分!$I$39)^2) -> 4.091779778e-06 | AD15: 3.682601801e-05
I16: 10 | J16: =(入力部分!D$7*N16+入力部分!D$8*S16+入力部分!D$9*X16+入力部分!D$10*AC16)/(SUM(入力部分!D$7:D$10)) -> 0.0009967697246 | M16: 10 | N16: =1/入力部分!$I$36/(2*3.14)^0.5*EXP(-1/2*(((M16+入力部分!$I$45)-入力部分!$I$27)/入力部分!$I$36)^2) -> 0.001425926617 | O16: 0.01425926617 | R16: 10 | S16: =1/入力部分!$I$37/(2*3.14)^0.5*EXP(-1/2*(((R16+入力部分!$I$46)-入力部分!$I$28)/入力部分!$I$37)^2) -> 0.001602551592 | T16: 0.01602551592 | W16: 10 | X16: =1/入力部分!$I$38/(2*3.14)^0.5*EXP(-1/2*(((W16+入力部分!$I$47)-入力部分!$I$29)/入力部分!$I$38)^2) -> 0.0008644808842 | Y16: 0.008644808842 | AB16: 10 | AC16: =1/入力部分!$I$39/(2*3.14)^0.5*EXP(-1/2*(((AB16+入力部分!$I$48)-入力部分!$I$30)/入力部分!$I$39)^2) -> 5.807318416e-06 | AD16: 5.807318416e-05
I17: 11 | J17: =(入力部分!D$7*N17+入力部分!D$8*S17+入力部分!D$9*X17+入力部分!D$10*AC17)/(SUM(入力部分!D$7:D$10)) -> 0.001036274614 | M17: 11 | N17: =1/入力部分!$I$36/(2*3.14)^0.5*EXP(-1/2*(((M17+入力部分!$I$45)-入力部分!$I$27)/入力部分!$I$36)^2) -> 0.001446768754 | O17: 0.01591445629 | R17: 11 | S17: =1/入力部分!$I$37/(2*3.14)^0.5*EXP(-1/2*(((R17+入力部分!$I$46)-入力部分!$I$28)/入力部分!$I$37)^2) -> 0.001650623656 | T17: 0.01815686022 | W17: 11 | X17: =1/入力部分!$I$38/(2*3.14)^0.5*EXP(-1/2*(((W17+入力部分!$I$47)-入力部分!$I$29)/入力部分!$I$38)^2) -> 0.000937593513 | Y17: 0.01031352864 | AB17: 11 | AC17: =1/入力部分!$I$39/(2*3.14)^0.5*EXP(-1/2*(((AB17+入力部分!$I$48)-入力部分!$I$30)/入力部分!$I$39)^2) -> 8.185083091e-06 | AD17: 9.0035914e-05
I18: 12 | J18: =(入力部分!D$7*N18+入力部分!D$8*S18+入力部分!D$9*X18+入力部分!D$10*AC18)/(SUM(入力部分!D$7:D$10)) -> 0.001077610463 | M18: 12 | N18: =1/入力部分!$I$36/(2*3.14)^0.5*EXP(-1/2*(((M18+入力部分!$I$45)-入力部分!$I$27)/入力部分!$I$36)^2) -> 0.001467765767 | O18: 0.0176131892 | R18: 12 | S18: =1/入力部分!$I$37/(2*3.14)^0.5*EXP(-1/2*(((R18+入力部分!$I$46)-入力部分!$I$28)/入力部分!$I$37)^2) -> 0.001699625389 | T18: 0.02039550467 | W18: 12 | X18: =1/入力部分!$I$38/(2*3.14)^0.5*EXP(-1/2*(((W18+入力部分!$I$47)-入力部分!$I$29)/入力部分!$I$38)^2) -> 0.001015664314 | Y18: 0.01218797177 | AB18: 12 | AC18: =1/入力部分!$I$39/(2*3.14)^0.5*EXP(-1/2*(((AB18+入力部分!$I$48)-入力部分!$I$30)/入力部分!$I$39)^2) -> 1.145656997e-05 | AD18: 0.0001374788397
I19: 13 | J19: =(入力部分!D$7*N19+入力部分!D$8*S19+入力部分!D$9*X19+入力部分!D$10*AC19)/(SUM(入力部分!D$7:D$10)) -> 0.001120906064 | M19: 13 | N19: =1/入力部分!$I$36/(2*3.14)^0.5*EXP(-1/2*(((M19+入力部分!$I$45)-入力部分!$I$27)/入力部分!$I$36)^2) -> 0.001488915587 | O19: 0.01935590264 | R19: 13 | S19: =1/入力部分!$I$37/(2*3.14)^0.5*EXP(-1/2*(((R19+入力部分!$I$46)-入力部分!$I$28)/入力部分!$I$37)^2) -> 0.001749554418 | T19: 0.02274420744 | W19: 13 | X19: =1/入力部分!$I$38/(2*3.14)^0.5*EXP(-1/2*(((W19+入力部分!$I$47)-入力部分!$I$29)/入力部分!$I$38)^2) -> 0.001098910173 | Y19: 0.01428583225 | AB19: 13 | AC19: =1/入力部分!$I$39/(2*3.14)^0.5*EXP(-1/2*(((AB19+入力部分!$I$48)-入力部分!$I$30)/入力部分!$I$39)^2) -> 1.592466106e-05 | AD19: 0.0002070205938
I20: 14 | J20: =(入力部分!D$7*N20+入力部分!D$8*S20+入力部分!D$9*X20+入力部分!D$10*AC20)/(SUM(入力部分!D$7:D$10)) -> 0.00116631194 | M20: 14 | N20: =1/入力部分!$I$36/(2*3.14)^0.5*EXP(-1/2*(((M20+入力部分!$I$45)-入力部分!$I$27)/入力部分!$I$36)^2) -> 0.001510216071 | O20: 0.021143025 | R20: 14 | S20: =1/入力部分!$I$37/(2*3.14)^0.5*EXP(-1/2*(((R20+入力部分!$I$46)-入力部分!$I$28)/入力部分!$I$37)^2) -> 0.001800407447 | T20: 0.02520570426 | W20: 14 | X20: =1/入力部分!$I$38/(2*3.14)^0.5*EXP(-1/2*(((W20+入力部分!$I$47)-入力部分!$I$29)/入力部分!$I$38)^2) -> 0.001187546419 | Y20: 0.01662564987 | AB20: 14 | AC20: =1/入力部分!$I$39/(2*3.14)^0.5*EXP(-1/2*(((AB20+入力部分!$I$48)-入力部分!$I$30)/入力部分!$I$39)^2) -> 2.198213392e-05 | AD20: 0.0003077498749
I21: 15 | J21: =(入力部分!D$7*N21+入力部分!D$8*S21+入力部分!D$9*X21+入力部分!D$10*AC21)/(SUM(入力部分!D$7:D$10)) -> 0.001214005563 | M21: 15 | N21: =1/入力部分!$I$36/(2*3.14)^0.5*EXP(-1/2*(((M21+入力部分!$I$45)-入力部分!$I$27)/入力部分!$I$36)^2) -> 0.001531664997 | O21: 0.02297497495 | R21: 15 | S21: =1/入力部分!$I$37/(2*3.14)^0.5*EXP(-1/2*(((R21+入力部分!$I$46)-入力部分!$I$28)/入力部分!$I$37)^2) -> 0.001852180238 | T21: 0.02778270357 | W21: 15 | X21: =1/入力部分!$I$38/(2*3.14)^0.5*EXP(-1/2*(((W21+入力部分!$I$47)-入力部分!$I$29)/入力部分!$I$38)^2) -> 0.001281785621 | Y21: 0.01922678432 | AB21: 15 | AC21: =1/入力部分!$I$39/(2*3.14)^0.5*EXP(-1/2*(((AB21+入力部分!$I$48)-入力部分!$I$30)/入力部分!$I$39)^2) -> 3.013377681e-05 | AD21: 0.0004520066521
I22: 16 | J22: =(入力部分!D$7*N22+入力部分!D$8*S22+入力部分!D$9*X22+入力部分!D$10*AC22)/(SUM(入力部分!D$7:D$10)) -> 0.001264197534 | M22: 16 | N22: =1/入力部分!$I$36/(2*3.14)^0.5*EXP(-1/2*(((M22+入力部分!$I$45)-入力部分!$I$27)/入力部分!$I$36)^2) -> 0.001553260064 | O22: 0.02485216102 | R22: 16 | S22: =1/入力部分!$I$37/(2*3.14)^0.5*EXP(-1/2*(((R22+入力部分!$I$46)-入力部分!$I$28)/入力部分!$I$37)^2) -> 0.001904867586 | T22: 0.03047788137 | W22: 16 | X22: =1/入力部分!$I$38/(2*3.14)^0.5*EXP(-1/2*(((W22+入力部分!$I$47)-入力部分!$I$29)/入力部分!$I$38)^2) -> 0.001381836299 | Y22: 0.02210938078 | AB22: 16 | AC22: =1/入力部分!$I$39/(2*3.14)^0.5*EXP(-1/2*(((AB22+入力部分!$I$48)-入力部分!$I$30)/入力部分!$I$39)^2) -> 4.102242703e-05 | AD22: 0.0006563588325
I23: 17 | J23: =(入力部分!D$7*N23+入力部分!D$8*S23+入力部分!D$9*X23+入力部分!D$10*AC23)/(SUM(入力部分!D$7:D$10)) -> 0.001317138775 | M23: 17 | N23: =1/入力部分!$I$36/(2*3.14)^0.5*EXP(-1/2*(((M23+入力部分!$I$45)-入力部分!$I$27)/入力部分!$I$36)^2) -> 0.001574998895 | O23: 0.02677498122 | R23: 17 | S23: =1/入力部分!$I$37/(2*3.14)^0.5*EXP(-1/2*(((R23+入力部分!$I$46)-入力部分!$I$28)/入力部分!$I$37)^2) -> 0.001958463298 | T23: 0.03329387607 | W23: 17 | X23: =1/入力部分!$I$38/(2*3.14)^0.5*EXP(-1/2*(((W23+入力部分!$I$47)-入力部分!$I$29)/入力部分!$I$38)^2) -> 0.001487901557 | Y23: 0.02529432648 | AB23: 17 | AC23: =1/入力部分!$I$39/(2*3.14)^0.5*EXP(-1/2*(((AB23+入力部分!$I$48)-入力部分!$I$30)/入力部分!$I$39)^2) -> 5.5459149e-05 | AD23: 0.000942805533
I24: 18 | J24: =(入力部分!D$7*N24+入力部分!D$8*S24+入力部分!D$9*X24+入力部分!D$10*AC24)/(SUM(入力部分!D$7:D$10)) -> 0.001373128762 | M24: 18 | N24: =1/入力部分!$I$36/(2*3.14)^0.5*EXP(-1/2*(((M24+入力部分!$I$45)-入力部分!$I$27)/入力部分!$I$36)^2) -> 0.001596879037 | O24: 0.02874382266 | R24: 18 | S24: =1/入力部分!$I$37/(2*3.14)^0.5*EXP(-1/2*(((R24+入力部分!$I$46)-入力部分!$I$28)/入力部分!$I$37)^2) -> 0.002012960176 | T24: 0.03623328317 | W24: 18 | X24: =1/入力部分!$I$38/(2*3.14)^0.5*EXP(-1/2*(((W24+入力部分!$I$47)-入力部分!$I$29)/入力部分!$I$38)^2) -> 0.001600177651 | Y24: 0.02880319771 | AB24: 18 | AC24: =1/入力部分!$I$39/(2*3.14)^0.5*EXP(-1/2*(((AB24+入力部分!$I$48)-入力部分!$I$30)/入力部分!$I$39)^2) -> 7.445761438e-05 | AD24: 0.001340237059
I25: 19 | J25: =(入力部分!D$7*N25+入力部分!D$8*S25+入力部分!D$9*X25+入力部分!D$10*AC25)/(SUM(入力部分!D$7:D$10)) -> 0.001432524742 | M25: 19 | N25: =1/入力部分!$I$36/(2*3.14)^0.5*EXP(-1/2*(((M25+入力部分!$I$45)-入力部分!$I$27)/入力部分!$I$36)^2) -> 0.001618897955 | O25: 0.03075906115 | R25: 19 | S25: =1/入力部分!$I$37/(2*3.14)^0.5*EXP(-1/2*(((R25+入力部分!$I$46)-入力部分!$I$28)/入力部分!$I$37)^2) -> 0.002068349991 | T25: 0.03929864983 | W25: 19 | X25: =1/入力部分!$I$38/(2*3.14)^0.5*EXP(-1/2*(((W25+入力部分!$I$47)-入力部分!$I$29)/入力部分!$I$38)^2) -> 0.001718852471 | Y25: 0.03265819695 | AB25: 19 | AC25: =1/入力部分!$I$39/(2*3.14)^0.5*EXP(-1/2*(((AB25+入力部分!$I$48)-入力部分!$I$30)/入力部分!$I$39)^2) -> 9.927253215e-05 | AD25: 0.001886178111
I26: 20 | J26: =(入力部分!D$7*N26+入力部分!D$8*S26+入力部分!D$9*X26+入力部分!D$10*AC26)/(SUM(入力部分!D$7:D$10)) -> 0.00149575185 | M26: 20 | N26: =1/入力部分!$I$36/(2*3.14)^0.5*EXP(-1/2*(((M26+入力部分!$I$45)-入力部分!$I$27)/入力部分!$I$36)^2) -> 0.001641053041 | O26: 0.03282106081 | R26: 20 | S26: =1/入力部分!$I$37/(2*3.14)^0.5*EXP(-1/2*(((R26+入力部分!$I$46)-入力部分!$I$28)/入力部分!$I$37)^2) -> 0.00212462347 | T26: 0.0424924694 | W26: 20 | X26: =1/入力部分!$I$38/(2*3.14)^0.5*EXP(-1/2*(((W26+入力部分!$I$47)-入力部分!$I$29)/入力部分!$I$38)^2) -> 0.001844103982 | Y26: 0.03688207963 | AB26: 20 | AC26: =1/入力部分!$I$39/(2*3.14)^0.5*EXP(-1/2*(((AB26+入力部分!$I$48)-入力部分!$I$30)/入力部分!$I$39)^2) -> 0.0001314416941 | AD26: 0.002628833882
I27: 21 | J27: =(入力部分!D$7*N27+入力部分!D$8*S27+入力部分!D$9*X27+入力部分!D$10*AC27)/(SUM(入力部分!D$7:D$10)) -> 0.001563313914 | M27: 21 | N27: =1/入力部分!$I$36/(2*3.14)^0.5*EXP(-1/2*(((M27+入力部分!$I$45)-入力部分!$I$27)/入力部分!$I$36)^2) -> 0.001663341605 | O27: 0.0349301737 | R27: 21 | S27: =1/入力部分!$I$37/(2*3.14)^0.5*EXP(-1/2*(((R27+入力部分!$I$46)-入力部分!$I$28)/入力部分!$I$37)^2) -> 0.002181770276 | T27: 0.04581717579 | W27: 21 | X27: =1/入力部分!$I$38/(2*3.14)^0.5*EXP(-1/2*(((W27+入力部分!$I$47)-入力部分!$I$29)/入力部分!$I$38)^2) -> 0.001976098592 | Y27: 0.04149807043 | AB27: 21 | AC27: =1/入力部分!$I$39/(2*3.14)^0.5*EXP(-1/2*(((AB27+入力部分!$I$48)-入力部分!$I$30)/入力部分!$I$39)^2) -> 0.0001728308486 | AD27: 0.00362944782
I28: 22 | J28: =(入力部分!D$7*N28+入力部分!D$8*S28+入力部分!D$9*X28+入力部分!D$10*AC28)/(SUM(入力部分!D$7:D$10)) -> 0.001635804651 | M28: 22 | N28: =1/入力部分!$I$36/(2*3.14)^0.5*EXP(-1/2*(((M28+入力部分!$I$45)-入力部分!$I$27)/入力部分!$I$36)^2) -> 0.001685760882 | O28: 0.03708673939 | R28: 22 | S28: =1/入力部分!$I$37/(2*3.14)^0.5*EXP(-1/2*(((R28+入力部分!$I$46)-入力部分!$I$28)/入力部分!$I$37)^2) -> 0.002239778991 | T28: 0.04927513781 | W28: 22 | X28: =1/入力部分!$I$38/(2*3.14)^0.5*EXP(-1/2*(((W28+入力部分!$I$47)-入力部分!$I$29)/入力部分!$I$38)^2) -> 0.002114989483 | Y28: 0.04652976862 | AB28: 22 | AC28: =1/入力部分!$I$39/(2*3.14)^0.5*EXP(-1/2*(((AB28+入力部分!$I$48)-入力部分!$I$30)/入力部分!$I$39)^2) -> 0.0002256801921 | AD28: 0.004964964226
I29: 23 | J29: =(入力部分!D$7*N29+入力部分!D$8*S29+入力部分!D$9*X29+入力部分!D$10*AC29)/(SUM(入力部分!D$7:D$10)) -> 0.001713918838 | M29: 23 | N29: =1/入力部分!$I$36/(2*3.14)^0.5*EXP(-1/2*(((M29+入力部分!$I$45)-入力部分!$I$27)/入力部分!$I$36)^2) -> 0.001708308027 | O29: 0.03929108463 | R29: 23 | S29: =1/入力部分!$I$37/(2*3.14)^0.5*EXP(-1/2*(((R29+入力部分!$I$46)-入力部分!$I$28)/入力部分!$I$37)^2) -> 0.002298637105 | T29: 0.05286865341 | W29: 23 | X29: =1/入力部分!$I$38/(2*3.14)^0.5*EXP(-1/2*(((W29+入力部分!$I$47)-入力部分!$I$29)/入力部分!$I$38)^2) -> 0.0022609149 | Y29: 0.0520010427 | AB29: 23 | AC29: =1/入力部分!$I$39/(2*3.14)^0.5*EXP(-1/2*(((AB29+入力部分!$I$48)-入力部分!$I$30)/入力部分!$I$39)^2) -> 0.0002926507823 | AD29: 0.006730967994
I30: 24 | J30: =(入力部分!D$7*N30+入力部分!D$8*S30+入力部分!D$9*X30+入力部分!D$10*AC30)/(SUM(入力部分!D$7:D$10)) -> 0.001798462902 | M30: 24 | N30: =1/入力部分!$I$36/(2*3.14)^0.5*EXP(-1/2*(((M30+入力部分!$I$45)-入力部分!$I$27)/入力部分!$I$36)^2) -> 0.001730980121 | O30: 0.0415435229 | R30: 24 | S30: =1/入力部分!$I$37/(2*3.14)^0.5*EXP(-1/2*(((R30+入力部分!$I$46)-入力部分!$I$28)/入力部分!$I$37)^2) -> 0.002358330996 | T30: 0.05659994391 | W30: 24 | X30: =1/入力部分!$I$38/(2*3.14)^0.5*EXP(-1/2*(((W30+入力部分!$I$47)-入力部分!$I$29)/入力部分!$I$38)^2) -> 0.002413996412 | Y30: 0.05793591388 | AB30: 24 | AC30: =1/入力部分!$I$39/(2*3.14)^0.5*EXP(-1/2*(((AB30+入力部分!$I$48)-入力部分!$I$30)/入力部分!$I$39)^2) -> 0.0003768686415 | AD30: 0.009044847396
I31: 25 | J31: =(入力部分!D$7*N31+入力部分!D$8*S31+入力部分!D$9*X31+入力部分!D$10*AC31)/(SUM(入力部分!D$7:D$10)) -> 0.00189036422 | M31: 25 | N31: =1/入力部分!$I$36/(2*3.14)^0.5*EXP(-1/2*(((M31+入力部分!$I$45)-入力部分!$I$27)/入力部分!$I$36)^2) -> 0.001753774163 | O31: 0.04384435409 | R31: 25 | S31: =1/入力部分!$I$37/(2*3.14)^0.5*EXP(-1/2*(((R31+入力部分!$I$46)-入力部分!$I$28)/入力部分!$I$37)^2) -> 0.002418845924 | T31: 0.0604711481 | W31: 25 | X31: =1/入力部分!$I$38/(2*3.14)^0.5*EXP(-1/2*(((W31+入力部分!$I$47)-入力部分!$I$29)/入力部分!$I$38)^2) -> 0.002574337154 | Y31: 0.06435842886 | AB31: 25 | AC31: =1/入力部分!$I$39/(2*3.14)^0.5*EXP(-1/2*(((AB31+入力部分!$I$48)-入力部分!$I$30)/入力部分!$I$39)^2) -> 0.0004819637568 | AD31: 0.01204909392
I32: 26 | J32: =(入力部分!D$7*N32+入力部分!D$8*S32+入力部分!D$9*X32+入力部分!D$10*AC32)/(SUM(入力部分!D$7:D$10)) -> 0.001990678315 | M32: 26 | N32: =1/入力部分!$I$36/(2*3.14)^0.5*EXP(-1/2*(((M32+入力部分!$I$45)-入力部分!$I$27)/入力部分!$I$36)^2) -> 0.001776687079 | O32: 0.04619386406 | R32: 26 | S32: =1/入力部分!$I$37/(2*3.14)^0.5*EXP(-1/2*(((R32+入力部分!$I$46)-入力部分!$I$28)/入力部分!$I$37)^2) -> 0.002480166013 | T32: 0.06448431635 | W32: 26 | X32: =1/入力部分!$I$38/(2*3.14)^0.5*EXP(-1/2*(((W32+入力部分!$I$47)-入力部分!$I$29)/入力部分!$I$38)^2) -> 0.002742020073 | Y32: 0.07129252189 | AB32: 26 | AC32: =1/入力部分!$I$39/(2*3.14)^0.5*EXP(-1/2*(((AB32+入力部分!$I$48)-入力部分!$I$30)/入力部分!$I$39)^2) -> 0.0006121006292 | AD32: 0.01591461636
I33: 27 | J33: =(入力部分!D$7*N33+入力部分!D$8*S33+入力部分!D$9*X33+入力部分!D$10*AC33)/(SUM(入力部分!D$7:D$10)) -> 0.002100592976 | M33: 27 | N33: =1/入力部分!$I$36/(2*3.14)^0.5*EXP(-1/2*(((M33+入力部分!$I$45)-入力部分!$I$27)/入力部分!$I$36)^2) -> 0.001799715715 | O33: 0.04859232431 | R33: 27 | S33: =1/入力部分!$I$37/(2*3.14)^0.5*EXP(-1/2*(((R33+入力部分!$I$46)-入力部分!$I$28)/入力部分!$I$37)^2) -> 0.002542274249 | T33: 0.06864140472 | W33: 27 | X33: =1/入力部分!$I$38/(2*3.14)^0.5*EXP(-1/2*(((W33+入力部分!$I$47)-入力部分!$I$29)/入力部分!$I$38)^2) -> 0.002917106164 | Y33: 0.07876186644 | AB33: 27 | AC33: =1/入力部分!$I$39/(2*3.14)^0.5*EXP(-1/2*(((AB33+入力部分!$I$48)-入力部分!$I$30)/入力部分!$I$39)^2) -> 0.0007719965098 | AD33: 0.02084390576
I34: 28 | J34: =(入力部分!D$7*N34+入力部分!D$8*S34+入力部分!D$9*X34+入力部分!D$10*AC34)/(SUM(入力部分!D$7:D$10)) -> 0.002221428229 | M34: 28 | N34: =1/入力部分!$I$36/(2*3.14)^0.5*EXP(-1/2*(((M34+入力部分!$I$45)-入力部分!$I$27)/入力部分!$I$36)^2) -> 0.001822856842 | O34: 0.05103999157 | R34: 28 | S34: =1/入力部分!$I$37/(2*3.14)^0.5*EXP(-1/2*(((R34+入力部分!$I$46)-入力部分!$I$28)/入力部分!$I$37)^2) -> 0.002605152464 | T34: 0.07294426899 | W34: 28 | X34: =1/入力部分!$I$38/(2*3.14)^0.5*EXP(-1/2*(((W34+入力部分!$I$47)-入力部分!$I$29)/入力部分!$I$38)^2) -> 0.003099632748 | Y34: 0.08678971695 | AB34: 28 | AC34: =1/入力部分!$I$39/(2*3.14)^0.5*EXP(-1/2*(((AB34+入力部分!$I$48)-入力部分!$I$30)/入力部分!$I$39)^2) -> 0.0009669230516 | AD34: 0.02707384544
I35: 29 | J35: =(入力部分!D$7*N35+入力部分!D$8*S35+入力部分!D$9*X35+入力部分!D$10*AC35)/(SUM(入力部分!D$7:D$10)) -> 0.002354631046 | M35: 29 | N35: =1/入力部分!$I$36/(2*3.14)^0.5*EXP(-1/2*(((M35+入力部分!$I$45)-入力部分!$I$27)/入力部分!$I$36)^2) -> 0.001846107153 | O35: 0.05353710744 | R35: 29 | S35: =1/入力部分!$I$37/(2*3.14)^0.5*EXP(-1/2*(((R35+入力部分!$I$46)-入力部分!$I$28)/入力部分!$I$37)^2) -> 0.002668781336 | T35: 0.07739465875 | W35: 29 | X35: =1/入力部分!$I$38/(2*3.14)^0.5*EXP(-1/2*(((W35+入力部分!$I$47)-入力部分!$I$29)/入力部分!$I$38)^2) -> 0.003289611769 | Y35: 0.09539874129 | AB35: 29 | AC35: =1/入力部分!$I$39/(2*3.14)^0.5*EXP(-1/2*(((AB35+入力部分!$I$48)-入力部分!$I$30)/入力部分!$I$39)^2) -> 0.001202686835 | AD35: 0.03487791823
I36: 30 | J36: =(入力部分!D$7*N36+入力部分!D$8*S36+入力部分!D$9*X36+入力部分!D$10*AC36)/(SUM(入力部分!D$7:D$10)) -> 0.002501763633 | M36: 30 | N36: =1/入力部分!$I$36/(2*3.14)^0.5*EXP(-1/2*(((M36+入力部分!$I$45)-入力部分!$I$27)/入力部分!$I$36)^2) -> 0.001869463268 | O36: 0.05608389803 | R36: 30 | S36: =1/入力部分!$I$37/(2*3.14)^0.5*EXP(-1/2*(((R36+入力部分!$I$46)-入力部分!$I$28)/入力部分!$I$37)^2) -> 0.00273314038 | T36: 0.0819942114 | W36: 30 | X36: =1/入力部分!$I$38/(2*3.14)^0.5*EXP(-1/2*(((W36+入力部分!$I$47)-入力部分!$I$29)/入力部分!$I$38)^2) -> 0.003487028148 | Y36: 0.1046108444 | AB36: 30 | AC36: =1/入力部分!$I$39/(2*3.14)^0.5*EXP(-1/2*(((AB36+入力部分!$I$48)-入力部分!$I$30)/入力部分!$I$39)^2) -> 0.001485584182 | AD36: 0.04456752546
I37: 31 | J37: =(入力部分!D$7*N37+入力部分!D$8*S37+入力部分!D$9*X37+入力部分!D$10*AC37)/(SUM(入力部分!D$7:D$10)) -> 0.002664484216 | M37: 31 | N37: =1/入力部分!$I$36/(2*3.14)^0.5*EXP(-1/2*(((M37+入力部分!$I$45)-入力部分!$I$27)/入力部分!$I$36)^2) -> 0.001892921728 | O37: 0.05868057356 | R37: 31 | S37: =1/入力部分!$I$37/(2*3.14)^0.5*EXP(-1/2*(((R37+入力部分!$I$46)-入力部分!$I$28)/入力部分!$I$37)^2) -> 0.002798207946 | T37: 0.08674444632 | W37: 31 | X37: =1/入力部分!$I$38/(2*3.14)^0.5*EXP(-1/2*(((W37+入力部分!$I$47)-入力部分!$I$29)/入力部分!$I$38)^2) -> 0.003691838205 | Y37: 0.1144469844 | AB37: 31 | AC37: =1/入力部分!$I$39/(2*3.14)^0.5*EXP(-1/2*(((AB37+入力部分!$I$48)-入力部分!$I$30)/入力部分!$I$39)^2) -> 0.001822325876 | AD37: 0.05649210215
I38: 32 | J38: =(入力部分!D$7*N38+入力部分!D$8*S38+入力部分!D$9*X38+入力部分!D$10*AC38)/(SUM(入力部分!D$7:D$10)) -> 0.002844519364 | M38: 32 | N38: =1/入力部分!$I$36/(2*3.14)^0.5*EXP(-1/2*(((M38+入力部分!$I$45)-入力部分!$I$27)/入力部分!$I$36)^2) -> 0.001916479001 | O38: 0.06132732804 | R38: 32 | S38: =1/入力部分!$I$37/(2*3.14)^0.5*EXP(-1/2*(((R38+入力部分!$I$46)-入力部分!$I$28)/入力部分!$I$37)^2) -> 0.002863961216 | T38: 0.09164675892 | W38: 32 | X38: =1/入力部分!$I$38/(2*3.14)^0.5*EXP(-1/2*(((W38+入力部分!$I$47)-入力部分!$I$29)/入力部分!$I$38)^2) -> 0.00390396816 | Y38: 0.1249269811 | AB38: 32 | AC38: =1/入力部分!$I$39/(2*3.14)^0.5*EXP(-1/2*(((AB38+入力部分!$I$48)-入力部分!$I$30)/入力部分!$I$39)^2) -> 0.002219927971 | AD38: 0.07103769509
I39: 33 | J39: =(入力部分!D$7*N39+入力部分!D$8*S39+入力部分!D$9*X39+入力部分!D$10*AC39)/(SUM(入力部分!D$7:D$10)) -> 0.003043627134 | M39: 33 | N39: =1/入力部分!$I$36/(2*3.14)^0.5*EXP(-1/2*(((M39+入力部分!$I$45)-入力部分!$I$27)/入力部分!$I$36)^2) -> 0.00194013148 | O39: 0.06402433885 | R39: 33 | S39: =1/入力部分!$I$37/(2*3.14)^0.5*EXP(-1/2*(((R39+入力部分!$I$46)-入力部分!$I$28)/入力部分!$I$37)^2) -> 0.002930376207 | T39: 0.09670241485 | W39: 33 | X39: =1/入力部分!$I$38/(2*3.14)^0.5*EXP(-1/2*(((W39+入力部分!$I$47)-入力部分!$I$29)/入力部分!$I$38)^2) -> 0.004123312726 | Y39: 0.13606932 | AB39: 33 | AC39: =1/入力部分!$I$39/(2*3.14)^0.5*EXP(-1/2*(((AB39+入力部分!$I$48)-入力部分!$I$30)/入力部分!$I$39)^2) -> 0.002685565759 | AD39: 0.08862367005
I40: 34 | J40: =(入力部分!D$7*N40+入力部分!D$8*S40+入力部分!D$9*X40+入力部分!D$10*AC40)/(SUM(入力部分!D$7:D$10)) -> 0.003263550625 | M40: 34 | N40: =1/入力部分!$I$36/(2*3.14)^0.5*EXP(-1/2*(((M40+入力部分!$I$45)-入力部分!$I$27)/入力部分!$I$36)^2) -> 0.001963875485 | O40: 0.06677176648 | R40: 34 | S40: =1/入力部分!$I$37/(2*3.14)^0.5*EXP(-1/2*(((R40+入力部分!$I$46)-入力部分!$I$28)/入力部分!$I$37)^2) -> 0.002997427771 | T40: 0.1019125442 | W40: 34 | X40: =1/入力部分!$I$38/(2*3.14)^0.5*EXP(-1/2*(((W40+入力部分!$I$47)-入力部分!$I$29)/入力部分!$I$38)^2) -> 0.00434973383 | Y40: 0.1478909502 | AB40: 34 | AC40: =1/入力部分!$I$39/(2*3.14)^0.5*EXP(-1/2*(((AB40+入力部分!$I$48)-入力部分!$I$30)/入力部分!$I$39)^2) -> 0.00322638927 | AD40: 0.1096972352
I41: 35 | J41: =(入力部分!D$7*N41+入力部分!D$8*S41+入力部分!D$9*X41+入力部分!D$10*AC41)/(SUM(入力部分!D$7:D$10)) -> 0.003505961967 | M41: 35 | N41: =1/入力部分!$I$36/(2*3.14)^0.5*EXP(-1/2*(((M41+入力部分!$I$45)-入力部分!$I$27)/入力部分!$I$36)^2) -> 0.001987707259 | O41: 0.06956975408 | R41: 35 | S41: =1/入力部分!$I$37/(2*3.14)^0.5*EXP(-1/2*(((R41+入力部分!$I$46)-入力部分!$I$28)/入力部分!$I$37)^2) -> 0.003065089596 | T41: 0.1072781359 | W41: 35 | X41: =1/入力部分!$I$38/(2*3.14)^0.5*EXP(-1/2*(((W41+入力部分!$I$47)-入力部分!$I$29)/入力部分!$I$38)^2) -> 0.004583059447 | Y41: 0.1604070806 | AB41: 35 | AC41: =1/入力部分!$I$39/(2*3.14)^0.5*EXP(-1/2*(((AB41+入力部分!$I$48)-入力部分!$I$30)/入力部分!$I$39)^2) -> 0.003849300397 | AD41: 0.1347255139
I42: 36 | J42: =(入力部分!D$7*N42+入力部分!D$8*S42+入力部分!D$9*X42+入力部分!D$10*AC42)/(SUM(入力部分!D$7:D$10)) -> 0.003772397289 | M42: 36 | N42: =1/入力部分!$I$36/(2*3.14)^0.5*EXP(-1/2*(((M42+入力部分!$I$45)-入力部分!$I$27)/入力部分!$I$36)^2) -> 0.002011622977 | O42: 0.07241842718 | R42: 36 | S42: =1/入力部分!$I$37/(2*3.14)^0.5*EXP(-1/2*(((R42+入力部分!$I$46)-入力部分!$I$28)/入力部分!$I$37)^2) -> 0.003133334216 | T42: 0.1128000318 | W42: 36 | X42: =1/入力部分!$I$38/(2*3.14)^0.5*EXP(-1/2*(((W42+入力部分!$I$47)-入力部分!$I$29)/入力部分!$I$38)^2) -> 0.004823082593 | Y42: 0.1736309734 | AB42: 36 | AC42: =1/入力部分!$I$39/(2*3.14)^0.5*EXP(-1/2*(((AB42+入力部分!$I$48)-入力部分!$I$30)/入力部分!$I$39)^2) -> 0.00456069375 | AD42: 0.164184975
I43: 37 | J43: =(入力部分!D$7*N43+入力部分!D$8*S43+入力部分!D$9*X43+入力部分!D$10*AC43)/(SUM(入力部分!D$7:D$10)) -> 0.004064183778 | M43: 37 | N43: =1/入力部分!$I$36/(2*3.14)^0.5*EXP(-1/2*(((M43+入力部分!$I$45)-入力部分!$I$27)/入力部分!$I$36)^2) -> 0.002035618739 | O43: 0.07531789334 | R43: 37 | S43: =1/入力部分!$I$37/(2*3.14)^0.5*EXP(-1/2*(((R43+入力部分!$I$46)-入力部分!$I$28)/入力部分!$I$37)^2) -> 0.003202133018 | T43: 0.1184789217 | W43: 37 | X43: =1/入力部分!$I$38/(2*3.14)^0.5*EXP(-1/2*(((W43+入力部分!$I$47)-入力部分!$I$29)/入力部分!$I$38)^2) -> 0.005069560474 | Y43: 0.1875737375 | AB43: 37 | AC43: =1/入力部分!$I$39/(2*3.14)^0.5*EXP(-1/2*(((AB43+入力部分!$I$48)-入力部分!$I$30)/入力部分!$I$39)^2) -> 0.005366165742 | AD43: 0.1985481325
I44: 38 | J44: =(入力部分!D$7*N44+入力部分!D$8*S44+入力部分!D$9*X44+入力部分!D$10*AC44)/(SUM(入力部分!D$7:D$10)) -> 0.004382360602 | M44: 38 | N44: =1/入力部分!$I$36/(2*3.14)^0.5*EXP(-1/2*(((M44+入力部分!$I$45)-入力部分!$I$27)/入力部分!$I$36)^2) -> 0.002059690574 | O44: 0.0782682418 | R44: 38 | S44: =1/入力部分!$I$37/(2*3.14)^0.5*EXP(-1/2*(((R44+入力部分!$I$46)-入力部分!$I$28)/入力部分!$I$37)^2) -> 0.003271456246 | T44: 0.1243153374 | W44: 38 | X44: =1/入力部分!$I$38/(2*3.14)^0.5*EXP(-1/2*(((W44+入力部分!$I$47)-入力部分!$I$29)/入力部分!$I$38)^2) -> 0.005322213808 | Y44: 0.2022441247 | AB44: 38 | AC44: =1/入力部分!$I$39/(2*3.14)^0.5*EXP(-1/2*(((AB44+入力部分!$I$48)-入力部分!$I$30)/入力部分!$I$39)^2) -> 0.006270198942 | AD44: 0.2382675598
I45: 39 | J45: =(入力部分!D$7*N45+入力部分!D$8*S45+入力部分!D$9*X45+入力部分!D$10*AC45)/(SUM(入力部分!D$7:D$10)) -> 0.004727596115 | M45: 39 | N45: =1/入力部分!$I$36/(2*3.14)^0.5*EXP(-1/2*(((M45+入力部分!$I$45)-入力部分!$I$27)/入力部分!$I$36)^2) -> 0.00208383444 | O45: 0.08126954317 | R45: 39 | S45: =1/入力部分!$I$37/(2*3.14)^0.5*EXP(-1/2*(((R45+入力部分!$I$46)-入力部分!$I$28)/入力部分!$I$37)^2) -> 0.00334127302 | T45: 0.1303096478 | W45: 39 | X45: =1/入力部分!$I$38/(2*3.14)^0.5*EXP(-1/2*(((W45+入力部分!$I$47)-入力部分!$I$29)/入力部分!$I$38)^2) -> 0.005580726344 | Y45: 0.2176483274 | AB45: 39 | AC45: =1/入力部分!$I$39/(2*3.14)^0.5*EXP(-1/2*(((AB45+入力部分!$I$48)-入力部分!$I$30)/入力部分!$I$39)^2) -> 0.007275831364 | AD45: 0.2837574232
I46: 40 | J46: =(入力部分!D$7*N46+入力部分!D$8*S46+入力部分!D$9*X46+入力部分!D$10*AC46)/(SUM(入力部分!D$7:D$10)) -> 0.005100104399 | M46: 40 | N46: =1/入力部分!$I$36/(2*3.14)^0.5*EXP(-1/2*(((M46+入力部分!$I$45)-入力部分!$I$27)/入力部分!$I$36)^2) -> 0.002108046227 | O46: 0.08432184909 | R46: 40 | S46: =1/入力部分!$I$37/(2*3.14)^0.5*EXP(-1/2*(((R46+入力部分!$I$46)-入力部分!$I$28)/入力部分!$I$37)^2) -> 0.003411551342 | T46: 0.1364620537 | W46: 40 | X46: =1/入力部分!$I$38/(2*3.14)^0.5*EXP(-1/2*(((W46+入力部分!$I$47)-入力部分!$I$29)/入力部分!$I$38)^2) -> 0.005844744582 | Y46: 0.2337897833 | AB46: 40 | AC46: =1/入力部分!$I$39/(2*3.14)^0.5*EXP(-1/2*(((AB46+入力部分!$I$48)-入力部分!$I$30)/入力部分!$I$39)^2) -> 0.008384322886 | AD46: 0.3353729154
I47: 41 | J47: =(入力部分!D$7*N47+入力部分!D$8*S47+入力部分!D$9*X47+入力部分!D$10*AC47)/(SUM(入力部分!D$7:D$10)) -> 0.005499564751 | M47: 41 | N47: =1/入力部分!$I$36/(2*3.14)^0.5*EXP(-1/2*(((M47+入力部分!$I$45)-入力部分!$I$27)/入力部分!$I$36)^2) -> 0.002132321755 | O47: 0.08742519196 | R47: 41 | S47: =1/入力部分!$I$37/(2*3.14)^0.5*EXP(-1/2*(((R47+入力部分!$I$46)-入力部分!$I$28)/入力部分!$I$37)^2) -> 0.003482258117 | T47: 0.1427725828 | W47: 41 | X47: =1/入力部分!$I$38/(2*3.14)^0.5*EXP(-1/2*(((W47+入力部分!$I$47)-入力部分!$I$29)/入力部分!$I$38)^2) -> 0.006113877706 | Y47: 0.250668986 | AB47: 41 | AC47: =1/入力部分!$I$39/(2*3.14)^0.5*EXP(-1/2*(((AB47+入力部分!$I$48)-入力部分!$I$30)/入力部分!$I$39)^2) -> 0.009594833246 | AD47: 0.3933881631
I48: 42 | J48: =(入力部分!D$7*N48+入力部分!D$8*S48+入力部分!D$9*X48+入力部分!D$10*AC48)/(SUM(入力部分!D$7:D$10)) -> 0.005925048177 | M48: 42 | N48: =1/入力部分!$I$36/(2*3.14)^0.5*EXP(-1/2*(((M48+入力部分!$I$45)-入力部分!$I$27)/入力部分!$I$36)^2) -> 0.002156656776 | O48: 0.09057958458 | R48: 42 | S48: =1/入力部分!$I$37/(2*3.14)^0.5*EXP(-1/2*(((R48+入力部分!$I$46)-入力部分!$I$28)/入力部分!$I$37)^2) -> 0.003553359166 | T48: 0.149241085 | W48: 42 | X48: =1/入力部分!$I$38/(2*3.14)^0.5*EXP(-1/2*(((W48+入力部分!$I$47)-入力部分!$I$29)/入力部分!$I$38)^2) -> 0.00638769775 | Y48: 0.2682833055 | AB48: 42 | AC48: =1/入力部分!$I$39/(2*3.14)^0.5*EXP(-1/2*(((AB48+入力部分!$I$48)-入力部分!$I$30)/入力部分!$I$39)^2) -> 0.01090412782 | AD48: 0.4579733685
I49: 43 | J49: =(入力部分!D$7*N49+入力部分!D$8*S49+入力部分!D$9*X49+入力部分!D$10*AC49)/(SUM(入力部分!D$7:D$10)) -> 0.006374955203 | M49: 43 | N49: =1/入力部分!$I$36/(2*3.14)^0.5*EXP(-1/2*(((M49+入力部分!$I$45)-入力部分!$I$27)/入力部分!$I$36)^2) -> 0.002181046974 | O49: 0.09378501989 | R49: 43 | S49: =1/入力部分!$I$37/(2*3.14)^0.5*EXP(-1/2*(((R49+入力部分!$I$46)-入力部分!$I$28)/入力部分!$I$37)^2) -> 0.003624819248 | T49: 0.1558672277 | W49: 43 | X49: =1/入力部分!$I$38/(2*3.14)^0.5*EXP(-1/2*(((W49+入力部分!$I$47)-入力部分!$I$29)/入力部分!$I$38)^2) -> 0.006665739993 | Y49: 0.2866268197 | AB49: 43 | AC49: =1/入力部分!$I$39/(2*3.14)^0.5*EXP(-1/2*(((AB49+入力部分!$I$48)-入力部分!$I$30)/入力部分!$I$39)^2) -> 0.01230632846 | AD49: 0.5291721238
I50: 44 | J50: =(入力部分!D$7*N50+入力部分!D$8*S50+入力部分!D$9*X50+入力部分!D$10*AC50)/(SUM(入力部分!D$7:D$10)) -> 0.006846969401 | M50: 44 | N50: =1/入力部分!$I$36/(2*3.14)^0.5*EXP(-1/2*(((M50+入力部分!$I$45)-入力部分!$I$27)/入力部分!$I$36)^2) -> 0.002205487969 | O50: 0.09704147065 | R50: 44 | S50: =1/入力部分!$I$37/(2*3.14)^0.5*EXP(-1/2*(((R50+入力部分!$I$46)-入力部分!$I$28)/入力部分!$I$37)^2) -> 0.003696602078 | T50: 0.1626504914 | W50: 44 | X50: =1/入力部分!$I$38/(2*3.14)^0.5*EXP(-1/2*(((W50+入力部分!$I$47)-入力部分!$I$29)/入力部分!$I$38)^2) -> 0.006947503606 | Y50: 0.3056901586 | AB50: 44 | AC50: =1/入力部分!$I$39/(2*3.14)^0.5*EXP(-1/2*(((AB50+入力部分!$I$48)-入力部分!$I$30)/入力部分!$I$39)^2) -> 0.0137927269 | AD50: 0.6068799834
I51: 45 | J51: =(入力部分!D$7*N51+入力部分!D$8*S51+入力部分!D$9*X51+入力部分!D$10*AC51)/(SUM(入力部分!D$7:D$10)) -> 0.007338030803 | M51: 45 | N51: =1/入力部分!$I$36/(2*3.14)^0.5*EXP(-1/2*(((M51+入力部分!$I$45)-入力部分!$I$27)/入力部分!$I$36)^2) -> 0.002229975316 | O51: 0.1003488892 | R51: 45 | S51: =1/入力部分!$I$37/(2*3.14)^0.5*EXP(-1/2*(((R51+入力部分!$I$46)-入力部分!$I$28)/入力部分!$I$37)^2) -> 0.003768670356 | T51: 0.169590166 | W51: 45 | X51: =1/入力部分!$I$38/(2*3.14)^0.5*EXP(-1/2*(((W51+入力部分!$I$47)-入力部分!$I$29)/入力部分!$I$38)^2) -> 0.007232452544 | Y51: 0.3254603645 | AB51: 45 | AC51: =1/入力部分!$I$39/(2*3.14)^0.5*EXP(-1/2*(((AB51+入力部分!$I$48)-入力部分!$I$30)/入力部分!$I$39)^2) -> 0.01535167748 | AD51: 0.6908254865
I52: 46 | J52: =(入力部分!D$7*N52+入力部分!D$8*S52+入力部分!D$9*X52+入力部分!D$10*AC52)/(SUM(入力部分!D$7:D$10)) -> 0.007844332926 | M52: 46 | N52: =1/入力部分!$I$36/(2*3.14)^0.5*EXP(-1/2*(((M52+入力部分!$I$45)-入力部分!$I$27)/入力部分!$I$36)^2) -> 0.002254504503 | O52: 0.1037072071 | R52: 46 | S52: =1/入力部分!$I$37/(2*3.14)^0.5*EXP(-1/2*(((R52+入力部分!$I$46)-入力部分!$I$28)/入力部分!$I$37)^2) -> 0.003840985784 | T52: 0.1766853461 | W52: 46 | X52: =1/入力部分!$I$38/(2*3.14)^0.5*EXP(-1/2*(((W52+入力部分!$I$47)-入力部分!$I$29)/入力部分!$I$38)^2) -> 0.007520016698 | Y52: 0.3459207681 | AB52: 46 | AC52: =1/入力部分!$I$39/(2*3.14)^0.5*EXP(-1/2*(((AB52+入力部分!$I$48)-入力部分!$I$30)/入力部分!$I$39)^2) -> 0.01696858408 | AD52: 0.7805548676
I53: 47 | J53: =(入力部分!D$7*N53+入力部分!D$8*S53+入力部分!D$9*X53+入力部分!D$10*AC53)/(SUM(入力部分!D$7:D$10)) -> 0.008361346381 | M53: 47 | N53: =1/入力部分!$I$36/(2*3.14)^0.5*EXP(-1/2*(((M53+入力部分!$I$45)-入力部分!$I$27)/入力部分!$I$36)^2) -> 0.002279070959 | O53: 0.1071163351 | R53: 47 | S53: =1/入力部分!$I$37/(2*3.14)^0.5*EXP(-1/2*(((R53+入力部分!$I$46)-入力部分!$I$28)/入力部分!$I$37)^2) -> 0.003913509101 | T53: 0.1839349277 | W53: 47 | X53: =1/入力部分!$I$38/(2*3.14)^0.5*EXP(-1/2*(((W53+入力部分!$I$47)-入力部分!$I$29)/入力部分!$I$38)^2) -> 0.007809593296 | Y53: 0.3670508849 | AB53: 47 | AC53: =1/入力部分!$I$39/(2*3.14)^0.5*EXP(-1/2*(((AB53+入力部分!$I$48)-入力部分!$I$30)/入力部分!$I$39)^2) -> 0.0186259931 | AD53: 0.8754216755
I54: 48 | J54: =(入力部分!D$7*N54+入力部分!D$8*S54+入力部分!D$9*X54+入力部分!D$10*AC54)/(SUM(入力部分!D$7:D$10)) -> 0.008883871055 | M54: 48 | N54: =1/入力部分!$I$36/(2*3.14)^0.5*EXP(-1/2*(((M54+入力部分!$I$45)-入力部分!$I$27)/入力部分!$I$36)^2) -> 0.00230367005 | O54: 0.1105761624 | R54: 48 | S54: =1/入力部分!$I$37/(2*3.14)^0.5*EXP(-1/2*(((R54+入力部分!$I$46)-入力部分!$I$28)/入力部分!$I$37)^2) -> 0.003986200108 | T54: 0.1913376052 | W54: 48 | X54: =1/入力部分!$I$38/(2*3.14)^0.5*EXP(-1/2*(((W54+入力部分!$I$47)-入力部分!$I$29)/入力部分!$I$38)^2) -> 0.008100548572 | Y54: 0.3888263315 | AB54: 48 | AC54: =1/入力部分!$I$39/(2*3.14)^0.5*EXP(-1/2*(((AB54+入力部分!$I$48)-入力部分!$I$30)/入力部分!$I$39)^2) -> 0.02030380046 | AD54: 0.9745824222
I55: 49 | J55: =(入力部分!D$7*N55+入力部分!D$8*S55+入力部分!D$9*X55+入力部分!D$10*AC55)/(SUM(入力部分!D$7:D$10)) -> 0.009406117585 | M55: 49 | N55: =1/入力部分!$I$36/(2*3.14)^0.5*EXP(-1/2*(((M55+入力部分!$I$45)-入力部分!$I$27)/入力部分!$I$36)^2) -> 0.002328297081 | O55: 0.114086557 | R55: 49 | S55: =1/入力部分!$I$37/(2*3.14)^0.5*EXP(-1/2*(((R55+入力部分!$I$46)-入力部分!$I$28)/入力部分!$I$37)^2) -> 0.0040590177 | T55: 0.1988918673 | W55: 49 | X55: =1/入力部分!$I$38/(2*3.14)^0.5*EXP(-1/2*(((W55+入力部分!$I$47)-入力部分!$I$29)/入力部分!$I$38)^2) -> 0.008392219681 | Y55: 0.4112187644 | AB55: 49 | AC55: =1/入力部分!$I$39/(2*3.14)^0.5*EXP(-1/2*(((AB55+入力部分!$I$48)-入力部分!$I$30)/入力部分!$I$39)^2) -> 0.02197957557 | AD55: 1.076999203
I56: 50 | J56: =(入力部分!D$7*N56+入力部分!D$8*S56+入力部分!D$9*X56+入力部分!D$10*AC56)/(SUM(入力部分!D$7:D$10)) -> 0.009921817467 | M56: 50 | N56: =1/入力部分!$I$36/(2*3.14)^0.5*EXP(-1/2*(((M56+入力部分!$I$45)-入力部分!$I$27)/入力部分!$I$36)^2) -> 0.002352947299 | O56: 0.117647365 | R56: 50 | S56: =1/入力部分!$I$37/(2*3.14)^0.5*EXP(-1/2*(((R56+入力部分!$I$46)-入力部分!$I$28)/入力部分!$I$37)^2) -> 0.004131919899 | T56: 0.2065959949 | W56: 50 | X56: =1/入力部分!$I$38/(2*3.14)^0.5*EXP(-1/2*(((W56+入力部分!$I$47)-入力部分!$I$29)/入力部分!$I$38)^2) -> 0.008683916872 | Y56: 0.4341958436 | AB56: 50 | AC56: =1/入力部分!$I$39/(2*3.14)^0.5*EXP(-1/2*(((AB56+入力部分!$I$48)-入力部分!$I$30)/入力部分!$I$39)^2) -> 0.0236289995 | AD56: 1.181449975
I57: 51 | J57: =(入力部分!D$7*N57+入力部分!D$8*S57+入力部分!D$9*X57+入力部分!D$10*AC57)/(SUM(入力部分!D$7:D$10)) -> 0.01042435964 | M57: 51 | N57: =1/入力部分!$I$36/(2*3.14)^0.5*EXP(-1/2*(((M57+入力部分!$I$45)-入力部分!$I$27)/入力部分!$I$36)^2) -> 0.002377615894 | O57: 0.1212584106 | R57: 51 | S57: =1/入力部分!$I$37/(2*3.14)^0.5*EXP(-1/2*(((R57+入力部分!$I$46)-入力部分!$I$28)/入力部分!$I$37)^2) -> 0.00420486389 | T57: 0.2144480584 | W57: 51 | X57: =1/入力部分!$I$38/(2*3.14)^0.5*EXP(-1/2*(((W57+入力部分!$I$47)-入力部分!$I$29)/入力部分!$I$38)^2) -> 0.008974925898 | Y57: 0.4577212208 | AB57: 51 | AC57: =1/入力部分!$I$39/(2*3.14)^0.5*EXP(-1/2*(((AB57+入力部分!$I$48)-入力部分!$I$30)/入力部分!$I$39)^2) -> 0.02522640887 | AD57: 1.286546852
I58: 52 | J58: =(入力部分!D$7*N58+入力部分!D$8*S58+入力部分!D$9*X58+入力部分!D$10*AC58)/(SUM(入力部分!D$7:D$10)) -> 0.01090694983 | M58: 52 | N58: =1/入力部分!$I$36/(2*3.14)^0.5*EXP(-1/2*(((M58+入力部分!$I$45)-入力部分!$I$27)/入力部分!$I$36)^2) -> 0.002402297997 | O58: 0.1249194958 | R58: 52 | S58: =1/入力部分!$I$37/(2*3.14)^0.5*EXP(-1/2*(((R58+入力部分!$I$46)-入力部分!$I$28)/入力部分!$I$37)^2) -> 0.004277806059 | T58: 0.2224459151 | W58: 52 | X58: =1/入力部分!$I$38/(2*3.14)^0.5*EXP(-1/2*(((W58+入力部分!$I$47)-入力部分!$I$29)/入力部分!$I$38)^2) -> 0.009264510671 | Y58: 0.4817545549 | AB58: 52 | AC58: =1/入力部分!$I$39/(2*3.14)^0.5*EXP(-1/2*(((AB58+入力部分!$I$48)-入力部分!$I$30)/入力部分!$I$39)^2) -> 0.02674543057 | AD58: 1.39076239
I59: 53 | J59: =(入力部分!D$7*N59+入力部分!D$8*S59+入力部分!D$9*X59+入力部分!D$10*AC59)/(SUM(入力部分!D$7:D$10)) -> 0.01136278763 | M59: 53 | N59: =1/入力部分!$I$36/(2*3.14)^0.5*EXP(-1/2*(((M59+入力部分!$I$45)-入力部分!$I$27)/入力部分!$I$36)^2) -> 0.002426988686 | O59: 0.1286304004 | R59: 53 | S59: =1/入力部分!$I$37/(2*3.14)^0.5*EXP(-1/2*(((R59+入力部分!$I$46)-入力部分!$I$28)/入力部分!$I$37)^2) -> 0.004350702027 | T59: 0.2305872074 | W59: 53 | X59: =1/入力部分!$I$38/(2*3.14)^0.5*EXP(-1/2*(((W59+入力部分!$I$47)-入力部分!$I$29)/入力部分!$I$38)^2) -> 0.009551916133 | Y59: 0.5062515551 | AB59: 53 | AC59: =1/入力部分!$I$39/(2*3.14)^0.5*EXP(-1/2*(((AB59+入力部分!$I$48)-入力部分!$I$30)/入力部分!$I$39)^2) -> 0.02815968702 | AD59: 1.492463412
I60: 54 | J60: =(入力部分!D$7*N60+入力部分!D$8*S60+入力部分!D$9*X60+入力部分!D$10*AC60)/(SUM(入力部分!D$7:D$10)) -> 0.01178525483 | M60: 54 | N60: =1/入力部分!$I$36/(2*3.14)^0.5*EXP(-1/2*(((M60+入力部分!$I$45)-入力部分!$I$27)/入力部分!$I$36)^2) -> 0.002451682986 | O60: 0.1323908813 | R60: 54 | S60: =1/入力部分!$I$37/(2*3.14)^0.5*EXP(-1/2*(((R60+入力部分!$I$46)-入力部分!$I$28)/入力部分!$I$37)^2) -> 0.004423506697 | T60: 0.2388693616 | W60: 54 | X60: =1/入力部分!$I$38/(2*3.14)^0.5*EXP(-1/2*(((W60+入力部分!$I$47)-入力部分!$I$29)/入力部分!$I$38)^2) -> 0.009836371341 | Y60: 0.5311640524 | AB60: 54 | AC60: =1/入力部分!$I$39/(2*3.14)^0.5*EXP(-1/2*(((AB60+入力部分!$I$48)-入力部分!$I$30)/入力部分!$I$39)^2) -> 0.02944354644 | AD60: 1.589951508
I61: 55 | J61: =(入力部分!D$7*N61+入力部分!D$8*S61+入力部分!D$9*X61+入力部分!D$10*AC61)/(SUM(入力部分!D$7:D$10)) -> 0.0121681078 | M61: 55 | N61: =1/入力部分!$I$36/(2*3.14)^0.5*EXP(-1/2*(((M61+入力部分!$I$45)-入力部分!$I$27)/入力部分!$I$36)^2) -> 0.002476375869 | O61: 0.1362006728 | R61: 55 | S61: =1/入力部分!$I$37/(2*3.14)^0.5*EXP(-1/2*(((R61+入力部分!$I$46)-入力部分!$I$28)/入力部分!$I$37)^2) -> 0.004496174293 | T61: 0.2472895861 | W61: 55 | X61: =1/入力部分!$I$38/(2*3.14)^0.5*EXP(-1/2*(((W61+入力部分!$I$47)-入力部分!$I$29)/入力部分!$I$38)^2) -> 0.01011709275 | Y61: 0.556440101 | AB61: 55 | AC61: =1/入力部分!$I$39/(2*3.14)^0.5*EXP(-1/2*(((AB61+入力部分!$I$48)-入力部分!$I$30)/入力部分!$I$39)^2) -> 0.03057288909 | AD61: 1.6815089
I62: 56 | J62: =(入力部分!D$7*N62+入力部分!D$8*S62+入力部分!D$9*X62+入力部分!D$10*AC62)/(SUM(入力部分!D$7:D$10)) -> 0.01250566598 | M62: 56 | N62: =1/入力部分!$I$36/(2*3.14)^0.5*EXP(-1/2*(((M62+入力部分!$I$45)-入力部分!$I$27)/入力部分!$I$36)^2) -> 0.002501062256 | O62: 0.1400594864 | R62: 56 | S62: =1/入力部分!$I$37/(2*3.14)^0.5*EXP(-1/2*(((R62+入力部分!$I$46)-入力部分!$I$28)/入力部分!$I$37)^2) -> 0.004568658404 | T62: 0.2558448706 | W62: 56 | X62: =1/入力部分!$I$38/(2*3.14)^0.5*EXP(-1/2*(((W62+入力部分!$I$47)-入力部分!$I$29)/入力部分!$I$38)^2) -> 0.01039328765 | Y62: 0.5820241083 | AB62: 56 | AC62: =1/入力部分!$I$39/(2*3.14)^0.5*EXP(-1/2*(((AB62+入力部分!$I$48)-入力部分!$I$30)/入力部分!$I$39)^2) -> 0.03152585754 | AD62: 1.765448022
I63: 57 | J63: =(入力部分!D$7*N63+入力部分!D$8*S63+入力部分!D$9*X63+入力部分!D$10*AC63)/(SUM(入力部分!D$7:D$10)) -> 0.01279298828 | M63: 57 | N63: =1/入力部分!$I$36/(2*3.14)^0.5*EXP(-1/2*(((M63+入力部分!$I$45)-入力部分!$I$27)/入力部分!$I$36)^2) -> 0.002525737021 | O63: 0.1439670102 | R63: 57 | S63: =1/入力部分!$I$37/(2*3.14)^0.5*EXP(-1/2*(((R63+入力部分!$I$46)-入力部分!$I$28)/入力部分!$I$37)^2) -> 0.004640912033 | T63: 0.2645319859 | W63: 57 | X63: =1/入力部分!$I$38/(2*3.14)^0.5*EXP(-1/2*(((W63+入力部分!$I$47)-入力部分!$I$29)/入力部分!$I$38)^2) -> 0.01066415781 | Y63: 0.6078569954 | AB63: 57 | AC63: =1/入力部分!$I$39/(2*3.14)^0.5*EXP(-1/2*(((AB63+入力部分!$I$48)-入力部分!$I$30)/入力部分!$I$39)^2) -> 0.03228355874 | AD63: 1.840162848
I64: 58 | J64: =(入力部分!D$7*N64+入力部分!D$8*S64+入力部分!D$9*X64+入力部分!D$10*AC64)/(SUM(入力部分!D$7:D$10)) -> 0.01302602964 | M64: 58 | N64: =1/入力部分!$I$36/(2*3.14)^0.5*EXP(-1/2*(((M64+入力部分!$I$45)-入力部分!$I$27)/入力部分!$I$36)^2) -> 0.002550394989 | O64: 0.1479229094 | R64: 58 | S64: =1/入力部分!$I$37/(2*3.14)^0.5*EXP(-1/2*(((R64+入力部分!$I$46)-入力部分!$I$28)/入力部分!$I$37)^2) -> 0.004712887641 | T64: 0.2733474832 | W64: 58 | X64: =1/入力部分!$I$38/(2*3.14)^0.5*EXP(-1/2*(((W64+入力部分!$I$47)-入力部分!$I$29)/入力部分!$I$38)^2) -> 0.01092890322 | Y64: 0.6338763865 | AB64: 58 | AC64: =1/入力部分!$I$39/(2*3.14)^0.5*EXP(-1/2*(((AB64+入力部分!$I$48)-入力部分!$I$30)/入力部分!$I$39)^2) -> 0.0328306864 | AD64: 1.904179811
I65: 59 | J65: =(入力部分!D$7*N65+入力部分!D$8*S65+入力部分!D$9*X65+入力部分!D$10*AC65)/(SUM(入力部分!D$7:D$10)) -> 0.01320177053 | M65: 59 | N65: =1/入力部分!$I$36/(2*3.14)^0.5*EXP(-1/2*(((M65+入力部分!$I$45)-入力部分!$I$27)/入力部分!$I$36)^2) -> 0.00257503094 | O65: 0.1519268255 | R65: 59 | S65: =1/入力部分!$I$37/(2*3.14)^0.5*EXP(-1/2*(((R65+入力部分!$I$46)-入力部分!$I$28)/入力部分!$I$37)^2) -> 0.004784537198 | T65: 0.2822876947 | W65: 59 | X65: =1/入力部分!$I$38/(2*3.14)^0.5*EXP(-1/2*(((W65+入力部分!$I$47)-入力部分!$I$29)/入力部分!$I$38)^2) -> 0.0111867259 | Y65: 0.660016828 | AB65: 59 | AC65: =1/入力部分!$I$39/(2*3.14)^0.5*EXP(-1/2*(((AB65+入力部分!$I$48)-入力部分!$I$30)/入力部分!$I$39)^2) -> 0.03315603496 | AD65: 1.956206062
I66: 60 | J66: =(入力部分!D$7*N66+入力部分!D$8*S66+入力部分!D$9*X66+入力部分!D$10*AC66)/(SUM(入力部分!D$7:D$10)) -> 0.01331831332 | M66: 60 | N66: =1/入力部分!$I$36/(2*3.14)^0.5*EXP(-1/2*(((M66+入力部分!$I$45)-入力部分!$I$27)/入力部分!$I$36)^2) -> 0.002599639611 | O66: 0.1559783766 | R66: 60 | S66: =1/入力部分!$I$37/(2*3.14)^0.5*EXP(-1/2*(((R66+入力部分!$I$46)-入力部分!$I$28)/入力部分!$I$37)^2) -> 0.004855812234 | T66: 0.291348734 | W66: 60 | X66: =1/入力部分!$I$38/(2*3.14)^0.5*EXP(-1/2*(((W66+入力部分!$I$47)-入力部分!$I$29)/入力部分!$I$38)^2) -> 0.01143683391 | Y66: 0.6862100347 | AB66: 60 | AC66: =1/入力部分!$I$39/(2*3.14)^0.5*EXP(-1/2*(((AB66+入力部分!$I$48)-入力部分!$I$30)/入力部分!$I$39)^2) -> 0.03325288123 | AD66: 1.995172874
I67: 61 | J67: =(入力部分!D$7*N67+入力部分!D$8*S67+入力部分!D$9*X67+入力部分!D$10*AC67)/(SUM(入力部分!D$7:D$10)) -> 0.0133749411 | M67: 61 | N67: =1/入力部分!$I$36/(2*3.14)^0.5*EXP(-1/2*(((M67+入力部分!$I$45)-入力部分!$I$27)/入力部分!$I$36)^2) -> 0.002624215694 | O67: 0.1600771573 | R67: 61 | S67: =1/入力部分!$I$37/(2*3.14)^0.5*EXP(-1/2*(((R67+入力部分!$I$46)-入力部分!$I$28)/入力部分!$I$37)^2) -> 0.00492666389 | T67: 0.3005264973 | W67: 61 | X67: =1/入力部分!$I$38/(2*3.14)^0.5*EXP(-1/2*(((W67+入力部分!$I$47)-入力部分!$I$29)/入力部分!$I$38)^2) -> 0.01167844533 | Y67: 0.712385165 | AB67: 61 | AC67: =1/入力部分!$I$39/(2*3.14)^0.5*EXP(-1/2*(((AB67+入力部分!$I$48)-入力部分!$I$30)/入力部分!$I$39)^2) -> 0.03311921538 | AD67: 2.020272138
I68: 62 | J68: =(入力部分!D$7*N68+入力部分!D$8*S68+入力部分!D$9*X68+入力部分!D$10*AC68)/(SUM(入力部分!D$7:D$10)) -> 0.01337213599 | M68: 62 | N68: =1/入力部分!$I$36/(2*3.14)^0.5*EXP(-1/2*(((M68+入力部分!$I$45)-入力部分!$I$27)/入力部分!$I$36)^2) -> 0.002648753843 | O68: 0.1642227383 | R68: 62 | S68: =1/入力部分!$I$37/(2*3.14)^0.5*EXP(-1/2*(((R68+入力部分!$I$46)-入力部分!$I$28)/入力部分!$I$37)^2) -> 0.004997042973 | T68: 0.3098166643 | W68: 62 | X68: =1/入力部分!$I$38/(2*3.14)^0.5*EXP(-1/2*(((W68+入力部分!$I$47)-入力部分!$I$29)/入力部分!$I$38)^2) -> 0.01191079226 | Y68: 0.73846912 | AB68: 62 | AC68: =1/入力部分!$I$39/(2*3.14)^0.5*EXP(-1/2*(((AB68+入力部分!$I$48)-入力部分!$I$30)/入力部分!$I$39)^2) -> 0.03275781032 | AD68: 2.03098424
I69: 63 | J69: =(入力部分!D$7*N69+入力部分!D$8*S69+入力部分!D$9*X69+入力部分!D$10*AC69)/(SUM(入力部分!D$7:D$10)) -> 0.01331155632 | M69: 63 | N69: =1/入力部分!$I$36/(2*3.14)^0.5*EXP(-1/2*(((M69+入力部分!$I$45)-入力部分!$I$27)/入力部分!$I$36)^2) -> 0.002673248674 | O69: 0.1684146665 | R69: 63 | S69: =1/入力部分!$I$37/(2*3.14)^0.5*EXP(-1/2*(((R69+入力部分!$I$46)-入力部分!$I$28)/入力部分!$I$37)^2) -> 0.005066900011 | T69: 0.3192147007 | W69: 63 | X69: =1/入力部分!$I$38/(2*3.14)^0.5*EXP(-1/2*(((W69+入力部分!$I$47)-入力部分!$I$29)/入力部分!$I$38)^2) -> 0.0121331249 | Y69: 0.7643868689 | AB69: 63 | AC69: =1/入力部分!$I$39/(2*3.14)^0.5*EXP(-1/2*(((AB69+入力部分!$I$48)-入力部分!$I$30)/入力部分!$I$39)^2) -> 0.03217612603 | AD69: 2.02709594
I70: 64 | J70: =(入力部分!D$7*N70+入力部分!D$8*S70+入力部分!D$9*X70+入力部分!D$10*AC70)/(SUM(入力部分!D$7:D$10)) -> 0.0131959736 | M70: 64 | N70: =1/入力部分!$I$36/(2*3.14)^0.5*EXP(-1/2*(((M70+入力部分!$I$45)-入力部分!$I$27)/入力部分!$I$36)^2) -> 0.002697694765 | O70: 0.1726524649 | R70: 64 | S70: =1/入力部分!$I$37/(2*3.14)^0.5*EXP(-1/2*(((R70+入力部分!$I$46)-入力部分!$I$28)/入力部分!$I$37)^2) -> 0.005136185305 | T70: 0.3287158595 | W70: 64 | X70: =1/入力部分!$I$38/(2*3.14)^0.5*EXP(-1/2*(((W70+入力部分!$I$47)-入力部分!$I$29)/入力部分!$I$38)^2) -> 0.01234471555 | Y70: 0.790061795 | AB70: 64 | AC70: =1/入力部分!$I$39/(2*3.14)^0.5*EXP(-1/2*(((AB70+入力部分!$I$48)-入力部分!$I$30)/入力部分!$I$39)^2) -> 0.03138605352 | AD70: 2.008707426
I71: 65 | J71: =(入力部分!D$7*N71+入力部分!D$8*S71+入力部分!D$9*X71+入力部分!D$10*AC71)/(SUM(入力部分!D$7:D$10)) -> 0.0130291725 | M71: 65 | N71: =1/入力部分!$I$36/(2*3.14)^0.5*EXP(-1/2*(((M71+入力部分!$I$45)-入力部分!$I$27)/入力部分!$I$36)^2) -> 0.002722086658 | O71: 0.1769356328 | R71: 65 | S71: =1/入力部分!$I$37/(2*3.14)^0.5*EXP(-1/2*(((R71+入力部分!$I$46)-入力部分!$I$28)/入力部分!$I$37)^2) -> 0.005204848993 | T71: 0.3383151846 | W71: 65 | X71: =1/入力部分!$I$38/(2*3.14)^0.5*EXP(-1/2*(((W71+入力部分!$I$47)-入力部分!$I$29)/入力部分!$I$38)^2) -> 0.01254486252 | Y71: 0.815416064 | AB71: 65 | AC71: =1/入力部分!$I$39/(2*3.14)^0.5*EXP(-1/2*(((AB71+入力部分!$I$48)-入力部分!$I$30)/入力部分!$I$39)^2) -> 0.03040351064 | AD71: =AB71*$AC71 -> 1.976228192
I72: 66 | J72: =(入力部分!D$7*N72+入力部分!D$8*S72+入力部分!D$9*X72+入力部分!D$10*AC72)/(SUM(入力部分!D$7:D$10)) -> 0.01281581853 | M72: 66 | N72: =1/入力部分!$I$36/(2*3.14)^0.5*EXP(-1/2*(((M72+入力部分!$I$45)-入力部分!$I$27)/入力部分!$I$36)^2) -> 0.002746418864 | O72: =M72*$N72 -> 0.181263645 | R72: 66 | S72: =1/入力部分!$I$37/(2*3.14)^0.5*EXP(-1/2*(((R72+入力部分!$I$46)-入力部分!$I$28)/入力部分!$I$37)^2) -> 0.005272841103 | T72: =R72*$S72 -> 0.3480075128 | W72: 66 | X72: =1/入力部分!$I$38/(2*3.14)^0.5*EXP(-1/2*(((W72+入力部分!$I$47)-入力部分!$I$29)/入力部分!$I$38)^2) -> 0.01273289406 | Y72: =W72*$X72 -> 0.8403710082 | AB72: 66 | AC72: =1/入力部分!$I$39/(2*3.14)^0.5*EXP(-1/2*(((AB72+入力部分!$I$48)-入力部分!$I$30)/入力部分!$I$39)^2) -> 0.02924790898 | AD72: 1.930361993
I73: 67 | J73: =(入力部分!D$7*N73+入力部分!D$8*S73+入力部分!D$9*X73+入力部分!D$10*AC73)/(SUM(入力部分!D$7:D$10)) -> 0.01256129979 | M73: 67 | N73: =1/入力部分!$I$36/(2*3.14)^0.5*EXP(-1/2*(((M73+入力部分!$I$45)-入力部分!$I$27)/入力部分!$I$36)^2) -> 0.002770685862 | O73: 0.1856359528 | R73: 67 | S73: =1/入力部分!$I$37/(2*3.14)^0.5*EXP(-1/2*(((R73+入力部分!$I$46)-入力部分!$I$28)/入力部分!$I$37)^2) -> 0.005340111613 | T73: 0.357787478 | W73: 67 | X73: =1/入力部分!$I$38/(2*3.14)^0.5*EXP(-1/2*(((W73+入力部分!$I$47)-入力部分!$I$29)/入力部分!$I$38)^2) -> 0.01290817206 | Y73: 0.864847528 | AB73: 67 | AC73: =1/入力部分!$I$39/(2*3.14)^0.5*EXP(-1/2*(((AB73+入力部分!$I$48)-入力部分!$I$30)/入力部分!$I$39)^2) -> 0.02794151677 | AD73: 1.872081623
I74: 68 | J74: =(入力部分!D$7*N74+入力部分!D$8*S74+入力部分!D$9*X74+入力部分!D$10*AC74)/(SUM(入力部分!D$7:D$10)) -> 0.01227154984 | M74: 68 | N74: =1/入力部分!$I$36/(2*3.14)^0.5*EXP(-1/2*(((M74+入力部分!$I$45)-入力部分!$I$27)/入力部分!$I$36)^2) -> 0.002794882103 | O74: 0.190051983 | R74: 68 | S74: =1/入力部分!$I$37/(2*3.14)^0.5*EXP(-1/2*(((R74+入力部分!$I$46)-入力部分!$I$28)/入力部分!$I$37)^2) -> 0.005406610512 | T74: 0.3676495148 | W74: 68 | X74: =1/入力部分!$I$38/(2*3.14)^0.5*EXP(-1/2*(((W74+入力部分!$I$47)-入力部分!$I$29)/入力部分!$I$38)^2) -> 0.01307009565 | Y74: 0.8887665043 | AB74: 68 | AC74: =1/入力部分!$I$39/(2*3.14)^0.5*EXP(-1/2*(((AB74+入力部分!$I$48)-入力部分!$I$30)/入力部分!$I$39)^2) -> 0.0265087469 | AD74: 1.802594789
I75: 69 | J75: =(入力部分!D$7*N75+入力部分!D$8*S75+入力部分!D$9*X75+入力部分!D$10*AC75)/(SUM(入力部分!D$7:D$10)) -> 0.01195285984 | M75: 69 | N75: =1/入力部分!$I$36/(2*3.14)^0.5*EXP(-1/2*(((M75+入力部分!$I$45)-入力部分!$I$27)/入力部分!$I$36)^2) -> 0.00281900201 | O75: 0.1945111387 | R75: 69 | S75: =1/入力部分!$I$37/(2*3.14)^0.5*EXP(-1/2*(((R75+入力部分!$I$46)-入力部分!$I$28)/入力部分!$I$37)^2) -> 0.005472287863 | T75: 0.3775878625 | W75: 69 | X75: =1/入力部分!$I$38/(2*3.14)^0.5*EXP(-1/2*(((W75+入力部分!$I$47)-入力部分!$I$29)/入力部分!$I$38)^2) -> 0.01321810467 | Y75: 0.9120492221 | AB75: 69 | AC75: =1/入力部分!$I$39/(2*3.14)^0.5*EXP(-1/2*(((AB75+入力部分!$I$48)-入力部分!$I$30)/入力部分!$I$39)^2) -> 0.02497540191 | AD75: 1.723302732
I76: 70 | J76: =(入力部分!D$7*N76+入力部分!D$8*S76+入力部分!D$9*X76+入力部分!D$10*AC76)/(SUM(入力部分!D$7:D$10)) -> 0.01161168797 | M76: 70 | N76: =1/入力部分!$I$36/(2*3.14)^0.5*EXP(-1/2*(((M76+入力部分!$I$45)-入力部分!$I$27)/入力部分!$I$36)^2) -> 0.002843039981 | O76: 0.1990127986 | R76: 70 | S76: =1/入力部分!$I$37/(2*3.14)^0.5*EXP(-1/2*(((R76+入力部分!$I$46)-入力部分!$I$28)/入力部分!$I$37)^2) -> 0.005537093859 | T76: 0.3875965701 | W76: 70 | X76: =1/入力部分!$I$38/(2*3.14)^0.5*EXP(-1/2*(((W76+入力部分!$I$47)-入力部分!$I$29)/入力部分!$I$38)^2) -> 0.01335168284 | Y76: 0.9346177989 | AB76: 70 | AC76: =1/入力部分!$I$39/(2*3.14)^0.5*EXP(-1/2*(((AB76+入力部分!$I$48)-入力部分!$I$30)/入力部分!$I$39)^2) -> 0.02336790825 | AD76: 1.635753578
I77: 71 | J77: =(入力部分!D$7*N77+入力部分!D$8*S77+入力部分!D$9*X77+入力部分!D$10*AC77)/(SUM(入力部分!D$7:D$10)) -> 0.01125447392 | M77: 71 | N77: =1/入力部分!$I$36/(2*3.14)^0.5*EXP(-1/2*(((M77+入力部分!$I$45)-入力部分!$I$27)/入力部分!$I$36)^2) -> 0.002866990391 | O77: 0.2035563178 | R77: 71 | S77: =1/入力部分!$I$37/(2*3.14)^0.5*EXP(-1/2*(((R77+入力部分!$I$46)-入力部分!$I$28)/入力部分!$I$37)^2) -> 0.00560097889 | T77: 0.3976695012 | W77: 71 | X77: =1/入力部分!$I$38/(2*3.14)^0.5*EXP(-1/2*(((W77+入力部分!$I$47)-入力部分!$I$29)/入力部分!$I$38)^2) -> 0.01347036081 | Y77: 0.9563956178 | AB77: 71 | AC77: =1/入力部分!$I$39/(2*3.14)^0.5*EXP(-1/2*(((AB77+入力部分!$I$48)-入力部分!$I$30)/入力部分!$I$39)^2) -> 0.02171257133 | AD77: 1.541592564
I78: 72 | J78: =(入力部分!D$7*N78+入力部分!D$8*S78+入力部分!D$9*X78+入力部分!D$10*AC78)/(SUM(入力部分!D$7:D$10)) -> 0.01088746575 | M78: 72 | N78: =1/入力部分!$I$36/(2*3.14)^0.5*EXP(-1/2*(((M78+入力部分!$I$45)-入力部分!$I$27)/入力部分!$I$36)^2) -> 0.002890847596 | O78: 0.2081410269 | R78: 72 | S78: =1/入力部分!$I$37/(2*3.14)^0.5*EXP(-1/2*(((R78+入力部分!$I$46)-入力部分!$I$28)/入力部分!$I$37)^2) -> 0.005663893603 | T78: 0.4078003394 | W78: 72 | X78: =1/入力部分!$I$38/(2*3.14)^0.5*EXP(-1/2*(((W78+入力部分!$I$47)-入力部分!$I$29)/入力部分!$I$38)^2) -> 0.01357371888 | Y78: 0.9773077595 | AB78: 72 | AC78: =1/入力部分!$I$39/(2*3.14)^0.5*EXP(-1/2*(((AB78+入力部分!$I$48)-入力部分!$I$30)/入力部分!$I$39)^2) -> 0.02003487991 | AD78: 1.442511354
I79: 73 | J79: =(入力部分!D$7*N79+入力部分!D$8*S79+入力部分!D$9*X79+入力部分!D$10*AC79)/(SUM(入力部分!D$7:D$10)) -> 0.01051656515 | M79: 73 | N79: =1/入力部分!$I$36/(2*3.14)^0.5*EXP(-1/2*(((M79+入力部分!$I$45)-入力部分!$I$27)/入力部分!$I$36)^2) -> 0.002914605931 | O79: 0.2127662329 | R79: 73 | S79: =1/入力部分!$I$37/(2*3.14)^0.5*EXP(-1/2*(((R79+入力部分!$I$46)-入力部分!$I$28)/入力部分!$I$37)^2) -> 0.005725788964 | T79: 0.4179825944 | W79: 73 | X79: =1/入力部分!$I$38/(2*3.14)^0.5*EXP(-1/2*(((W79+入力部分!$I$47)-入力部分!$I$29)/入力部分!$I$38)^2) -> 0.01366138946 | Y79: 0.9972814309 | AB79: 73 | AC79: =1/入力部分!$I$39/(2*3.14)^0.5*EXP(-1/2*(((AB79+入力部分!$I$48)-入力部分!$I$30)/入力部分!$I$39)^2) -> 0.01835888473 | AD79: 1.340198586
I80: 74 | J80: =(入力部分!D$7*N80+入力部分!D$8*S80+入力部分!D$9*X80+入力部分!D$10*AC80)/(SUM(入力部分!D$7:D$10)) -> 0.01014719609 | M80: 74 | N80: =1/入力部分!$I$36/(2*3.14)^0.5*EXP(-1/2*(((M80+入力部分!$I$45)-入力部分!$I$27)/入力部分!$I$36)^2) -> 0.002938259715 | O80: 0.2174312189 | R80: 74 | S80: =1/入力部分!$I$37/(2*3.14)^0.5*EXP(-1/2*(((R80+入力部分!$I$46)-入力部分!$I$28)/入力部分!$I$37)^2) -> 0.005786616326 | T80: 0.4282096081 | W80: 74 | X80: =1/入力部分!$I$38/(2*3.14)^0.5*EXP(-1/2*(((W80+入力部分!$I$47)-入力部分!$I$29)/入力部分!$I$38)^2) -> 0.01373305929 | Y80: 1.016246387 | AB80: 74 | AC80: =1/入力部分!$I$39/(2*3.14)^0.5*EXP(-1/2*(((AB80+入力部分!$I$48)-入力部分!$I$30)/入力部分!$I$39)^2) -> 0.01670667071 | AD80: 1.236293633
I81: 75 | J81: =(入力部分!D$7*N81+入力部分!D$8*S81+入力部分!D$9*X81+入力部分!D$10*AC81)/(SUM(入力部分!D$7:D$10)) -> 0.009784200167 | M81: 75 | N81: =1/入力部分!$I$36/(2*3.14)^0.5*EXP(-1/2*(((M81+入力部分!$I$45)-入力部分!$I$27)/入力部分!$I$36)^2) -> 0.002961803256 | O81: 0.2221352442 | R81: 75 | S81: =1/入力部分!$I$37/(2*3.14)^0.5*EXP(-1/2*(((R81+入力部分!$I$46)-入力部分!$I$28)/入力部分!$I$37)^2) -> 0.005846327484 | T81: 0.4384745613 | W81: 75 | X81: =1/入力部分!$I$38/(2*3.14)^0.5*EXP(-1/2*(((W81+入力部分!$I$47)-入力部分!$I$29)/入力部分!$I$38)^2) -> 0.01378847125 | Y81: 1.034135343 | AB81: 75 | AC81: =1/入力部分!$I$39/(2*3.14)^0.5*EXP(-1/2*(((AB81+入力部分!$I$48)-入力部分!$I$30)/入力部分!$I$39)^2) -> 0.01509793657 | AD81: 1.132345243
I82: 76 | J82: =(入力部分!D$7*N82+入力部分!D$8*S82+入力部分!D$9*X82+入力部分!D$10*AC82)/(SUM(入力部分!D$7:D$10)) -> 0.009431760768 | M82: 76 | N82: =1/入力部分!$I$36/(2*3.14)^0.5*EXP(-1/2*(((M82+入力部分!$I$45)-入力部分!$I$27)/入力部分!$I$36)^2) -> 0.002985230845 | O82: 0.2268775442 | R82: 76 | S82: =1/入力部分!$I$37/(2*3.14)^0.5*EXP(-1/2*(((R82+入力部分!$I$46)-入力部分!$I$28)/入力部分!$I$37)^2) -> 0.005904874747 | T82: 0.4487704807 | W82: 76 | X82: =1/入力部分!$I$38/(2*3.14)^0.5*EXP(-1/2*(((W82+入力部分!$I$47)-入力部分!$I$29)/入力部分!$I$38)^2) -> 0.01382742594 | Y82: 1.050884371 | AB82: 76 | AC82: =1/入力部分!$I$39/(2*3.14)^0.5*EXP(-1/2*(((AB82+入力部分!$I$48)-入力部分!$I$30)/入力部分!$I$39)^2) -> 0.0135496896 | AD82: 1.029776409
I83: 77 | J83: =(入力部分!D$7*N83+入力部分!D$8*S83+入力部分!D$9*X83+入力部分!D$10*AC83)/(SUM(入力部分!D$7:D$10)) -> 0.009093356237 | M83: 77 | N83: =1/入力部分!$I$36/(2*3.14)^0.5*EXP(-1/2*(((M83+入力部分!$I$45)-入力部分!$I$27)/入力部分!$I$36)^2) -> 0.003008536766 | O83: 0.231657331 | R83: 77 | S83: =1/入力部分!$I$37/(2*3.14)^0.5*EXP(-1/2*(((R83+入力部分!$I$46)-入力部分!$I$28)/入力部分!$I$37)^2) -> 0.005962210993 | T83: 0.4590902464 | W83: 77 | X83: =1/入力部分!$I$38/(2*3.14)^0.5*EXP(-1/2*(((W83+入力部分!$I$47)-入力部分!$I$29)/入力部分!$I$38)^2) -> 0.01384978286 | Y83: 1.06643328 | AB83: 77 | AC83: =1/入力部分!$I$39/(2*3.14)^0.5*EXP(-1/2*(((AB83+入力部分!$I$48)-入力部分!$I$30)/入力部分!$I$39)^2) -> 0.01207605722 | AD83: 0.9298564059
I84: 78 | J84: =(入力部分!D$7*N84+入力部分!D$8*S84+入力部分!D$9*X84+入力部分!D$10*AC84)/(SUM(入力部分!D$7:D$10)) -> 0.008771741284 | M84: 78 | N84: =1/入力部分!$I$36/(2*3.14)^0.5*EXP(-1/2*(((M84+入力部分!$I$45)-入力部分!$I$27)/入力部分!$I$36)^2) -> 0.003031715295 | O84: 0.236473793 | R84: 78 | S84: =1/入力部分!$I$37/(2*3.14)^0.5*EXP(-1/2*(((R84+入力部分!$I$46)-入力部分!$I$28)/入力部分!$I$37)^2) -> 0.006018289738 | T84: 0.4694265996 | W84: 78 | X84: =1/入力部分!$I$38/(2*3.14)^0.5*EXP(-1/2*(((W84+入力部分!$I$47)-入力部分!$I$29)/入力部分!$I$38)^2) -> 0.01385546126 | Y84: 1.080725978 | AB84: 78 | AC84: =1/入力部分!$I$39/(2*3.14)^0.5*EXP(-1/2*(((AB84+入力部分!$I$48)-入力部分!$I$30)/入力部分!$I$39)^2) -> 0.01068821162 | AD84: 0.8336805067
I85: 79 | J85: =(入力部分!D$7*N85+入力部分!D$8*S85+入力部分!D$9*X85+入力部分!D$10*AC85)/(SUM(入力部分!D$7:D$10)) -> 0.008468954387 | M85: 79 | N85: =1/入力部分!$I$36/(2*3.14)^0.5*EXP(-1/2*(((M85+入力部分!$I$45)-入力部分!$I$27)/入力部分!$I$36)^2) -> 0.003054760703 | O85: 0.2413260955 | R85: 79 | S85: =1/入力部分!$I$37/(2*3.14)^0.5*EXP(-1/2*(((R85+入力部分!$I$46)-入力部分!$I$28)/入力部分!$I$37)^2) -> 0.006073065195 | T85: 0.4797721504 | W85: 79 | X85: =1/入力部分!$I$38/(2*3.14)^0.5*EXP(-1/2*(((W85+入力部分!$I$47)-入力部分!$I$29)/入力部分!$I$38)^2) -> 0.01384444061 | Y85: 1.093710808 | AB85: 79 | AC85: =1/入力部分!$I$39/(2*3.14)^0.5*EXP(-1/2*(((AB85+入力部分!$I$48)-入力部分!$I$30)/入力部分!$I$39)^2) -> 0.009394398796 | AD85: 0.7421575049
I86: 80 | J86: =(入力部分!D$7*N86+入力部分!D$8*S86+入力部分!D$9*X86+入力部分!D$10*AC86)/(SUM(入力部分!D$7:D$10)) -> 0.008186348107 | M86: 80 | N86: =1/入力部分!$I$36/(2*3.14)^0.5*EXP(-1/2*(((M86+入力部分!$I$45)-入力部分!$I$27)/入力部分!$I$36)^2) -> 0.003077667258 | O86: 0.2462133806 | R86: 80 | S86: =1/入力部分!$I$37/(2*3.14)^0.5*EXP(-1/2*(((R86+入力部分!$I$46)-入力部分!$I$28)/入力部分!$I$37)^2) -> 0.006126492338 | T86: 0.4901193871 | W86: 80 | X86: =1/入力部分!$I$38/(2*3.14)^0.5*EXP(-1/2*(((W86+入力部分!$I$47)-入力部分!$I$29)/入力部分!$I$38)^2) -> 0.01381676074 | Y86: 1.105340859 | AB86: 80 | AC86: =1/入力部分!$I$39/(2*3.14)^0.5*EXP(-1/2*(((AB86+入力部分!$I$48)-入力部分!$I$30)/入力部分!$I$39)^2) -> 0.008200059552 | AD86: 0.6560047642
I87: 81 | J87: =(入力部分!D$7*N87+入力部分!D$8*S87+入力部分!D$9*X87+入力部分!D$10*AC87)/(SUM(入力部分!D$7:D$10)) -> 0.007924638487 | M87: 81 | N87: =1/入力部分!$I$36/(2*3.14)^0.5*EXP(-1/2*(((M87+入力部分!$I$45)-入力部分!$I$27)/入力部分!$I$36)^2) -> 0.003100429226 | O87: 0.2511347673 | R87: 81 | S87: =1/入力部分!$I$37/(2*3.14)^0.5*EXP(-1/2*(((R87+入力部分!$I$46)-入力部分!$I$28)/入力部分!$I$37)^2) -> 0.006178526962 | T87: 0.5004606839 | W87: 81 | X87: =1/入力部分!$I$38/(2*3.14)^0.5*EXP(-1/2*(((W87+入力部分!$I$47)-入力部分!$I$29)/入力部分!$I$38)^2) -> 0.0137725216 | Y87: 1.115574249 | AB87: 81 | AC87: =1/入力部分!$I$39/(2*3.14)^0.5*EXP(-1/2*(((AB87+入力部分!$I$48)-入力部分!$I$30)/入力部分!$I$39)^2) -> 0.007108027293 | AD87: 0.5757502107
I88: 82 | J88: =(入力部分!D$7*N88+入力部分!D$8*S88+入力部分!D$9*X88+入力部分!D$10*AC88)/(SUM(入力部分!D$7:D$10)) -> 0.007683969313 | M88: 82 | N88: =1/入力部分!$I$36/(2*3.14)^0.5*EXP(-1/2*(((M88+入力部分!$I$45)-入力部分!$I$27)/入力部分!$I$36)^2) -> 0.003123040878 | O88: 0.256089352 | R88: 82 | S88: =1/入力部分!$I$37/(2*3.14)^0.5*EXP(-1/2*(((R88+入力部分!$I$46)-入力部分!$I$28)/入力部分!$I$37)^2) -> 0.006229125742 | T88: 0.5107883109 | W88: 82 | X88: =1/入力部分!$I$38/(2*3.14)^0.5*EXP(-1/2*(((W88+入力部分!$I$47)-入力部分!$I$29)/入力部分!$I$38)^2) -> 0.01371188264 | Y88: 1.124374376 | AB88: 82 | AC88: =1/入力部分!$I$39/(2*3.14)^0.5*EXP(-1/2*(((AB88+入力部分!$I$48)-入力部分!$I$30)/入力部分!$I$39)^2) -> 0.00611878556 | AD88: 0.5017404159
I89: 83 | J89: =(入力部分!D$7*N89+入力部分!D$8*S89+入力部分!D$9*X89+入力部分!D$10*AC89)/(SUM(入力部分!D$7:D$10)) -> 0.007463986854 | M89: 83 | N89: =1/入力部分!$I$36/(2*3.14)^0.5*EXP(-1/2*(((M89+入力部分!$I$45)-入力部分!$I$27)/入力部分!$I$36)^2) -> 0.003145496485 | O89: 0.2610762083 | R89: 83 | S89: =1/入力部分!$I$37/(2*3.14)^0.5*EXP(-1/2*(((R89+入力部分!$I$46)-入力部分!$I$28)/入力部分!$I$37)^2) -> 0.006278246299 | T89: 0.5210944428 | W89: 83 | X89: =1/入力部分!$I$38/(2*3.14)^0.5*EXP(-1/2*(((W89+入力部分!$I$47)-入力部分!$I$29)/入力部分!$I$38)^2) -> 0.01363506188 | Y89: 1.131710136 | AB89: 83 | AC89: =1/入力部分!$I$39/(2*3.14)^0.5*EXP(-1/2*(((AB89+入力部分!$I$48)-入力部分!$I$30)/入力部分!$I$39)^2) -> 0.005230767848 | AD89: 0.4341537314
I90: 84 | J90: =(入力部分!D$7*N90+入力部分!D$8*S90+入力部分!D$9*X90+入力部分!D$10*AC90)/(SUM(入力部分!D$7:D$10)) -> 0.007263920782 | M90: 84 | N90: =1/入力部分!$I$36/(2*3.14)^0.5*EXP(-1/2*(((M90+入力部分!$I$45)-入力部分!$I$27)/入力部分!$I$36)^2) -> 0.003167790327 | O90: 0.2660943875 | R90: 84 | S90: =1/入力部分!$I$37/(2*3.14)^0.5*EXP(-1/2*(((R90+入力部分!$I$46)-入力部分!$I$28)/入力部分!$I$37)^2) -> 0.006325847253 | T90: 0.5313711693 | W90: 84 | X90: =1/入力部分!$I$38/(2*3.14)^0.5*EXP(-1/2*(((W90+入力部分!$I$47)-入力部分!$I$29)/入力部分!$I$38)^2) -> 0.01354233457 | Y90: 1.137556104 | AB90: 84 | AC90: =1/入力部分!$I$39/(2*3.14)^0.5*EXP(-1/2*(((AB90+入力部分!$I$48)-入力部分!$I$30)/入力部分!$I$39)^2) -> 0.004440682511 | AD90: 0.373017331
I91: 85 | J91: =(入力部分!D$7*N91+入力部分!D$8*S91+入力部分!D$9*X91+入力部分!D$10*AC91)/(SUM(入力部分!D$7:D$10)) -> 0.007082667294 | M91: 85 | N91: =1/入力部分!$I$36/(2*3.14)^0.5*EXP(-1/2*(((M91+入力部分!$I$45)-入力部分!$I$27)/入力部分!$I$36)^2) -> 0.003189916693 | O91: 0.2711429189 | R91: 85 | S91: =1/入力部分!$I$37/(2*3.14)^0.5*EXP(-1/2*(((R91+入力部分!$I$46)-入力部分!$I$28)/入力部分!$I$37)^2) -> 0.006371888284 | T91: 0.5416105041 | W91: 85 | X91: =1/入力部分!$I$38/(2*3.14)^0.5*EXP(-1/2*(((W91+入力部分!$I$47)-入力部分!$I$29)/入力部分!$I$38)^2) -> 0.0134340316 | Y91: 1.141892686 | AB91: 85 | AC91: =1/入力部分!$I$39/(2*3.14)^0.5*EXP(-1/2*(((AB91+入力部分!$I$48)-入力部分!$I$30)/入力部分!$I$39)^2) -> 0.0037438468 | AD91: 0.318226978
I92: 86 | J92: =(入力部分!D$7*N92+入力部分!D$8*S92+入力部分!D$9*X92+入力部分!D$10*AC92)/(SUM(入力部分!D$7:D$10)) -> 0.006918870903 | M92: 86 | N92: =1/入力部分!$I$36/(2*3.14)^0.5*EXP(-1/2*(((M92+入力部分!$I$45)-入力部分!$I$27)/入力部分!$I$36)^2) -> 0.003211869882 | O92: 0.2762208098 | R92: 86 | S92: =1/入力部分!$I$37/(2*3.14)^0.5*EXP(-1/2*(((R92+入力部分!$I$46)-入力部分!$I$28)/入力部分!$I$37)^2) -> 0.006416330186 | T92: 0.551804396 | W92: 86 | X92: =1/入力部分!$I$38/(2*3.14)^0.5*EXP(-1/2*(((W92+入力部分!$I$47)-入力部分!$I$29)/入力部分!$I$38)^2) -> 0.01331053747 | Y92: 1.144706223 | AB92: 86 | AC92: =1/入力部分!$I$39/(2*3.14)^0.5*EXP(-1/2*(((AB92+入力部分!$I$48)-入力部分!$I$30)/入力部分!$I$39)^2) -> 0.003134515918 | AD92: 0.269568369
I93: 87 | J93: =(入力部分!D$7*N93+入力部分!D$8*S93+入力部分!D$9*X93+入力部分!D$10*AC93)/(SUM(入力部分!D$7:D$10)) -> 0.006771001962 | M93: 87 | N93: =1/入力部分!$I$36/(2*3.14)^0.5*EXP(-1/2*(((M93+入力部分!$I$45)-入力部分!$I$27)/入力部分!$I$36)^2) -> 0.003233644207 | O93: 0.281327046 | R93: 87 | S93: =1/入力部分!$I$37/(2*3.14)^0.5*EXP(-1/2*(((R93+入力部分!$I$46)-入力部分!$I$28)/入力部分!$I$37)^2) -> 0.006459134927 | T93: 0.5619447386 | W93: 87 | X93: =1/入力部分!$I$38/(2*3.14)^0.5*EXP(-1/2*(((W93+入力部分!$I$47)-入力部分!$I$29)/入力部分!$I$38)^2) -> 0.01317228806 | Y93: 1.145989061 | AB93: 87 | AC93: =1/入力部分!$I$39/(2*3.14)^0.5*EXP(-1/2*(((AB93+入力部分!$I$48)-入力部分!$I$30)/入力部分!$I$39)^2) -> 0.002606195296 | AD93: 0.2267389907
I94: 88 | J94: =(入力部分!D$7*N94+入力部分!D$8*S94+入力部分!D$9*X94+入力部分!D$10*AC94)/(SUM(入力部分!D$7:D$10)) -> 0.006637427605 | M94: 88 | N94: =1/入力部分!$I$36/(2*3.14)^0.5*EXP(-1/2*(((M94+入力部分!$I$45)-入力部分!$I$27)/入力部分!$I$36)^2) -> 0.003255233997 | O94: 0.2864605918 | R94: 88 | S94: =1/入力部分!$I$37/(2*3.14)^0.5*EXP(-1/2*(((R94+入力部分!$I$46)-入力部分!$I$28)/入力部分!$I$37)^2) -> 0.006500265699 | T94: 0.5720233815 | W94: 88 | X94: =1/入力部分!$I$38/(2*3.14)^0.5*EXP(-1/2*(((W94+入力部分!$I$47)-入力部分!$I$29)/入力部分!$I$38)^2) -> 0.01301976805 | Y94: 1.145739588 | AB94: 88 | AC94: =1/入力部分!$I$39/(2*3.14)^0.5*EXP(-1/2*(((AB94+入力部分!$I$48)-入力部分!$I$30)/入力部分!$I$39)^2) -> 0.002151926826 | AD94: 0.1893695607
I95: 89 | J95: =(入力部分!D$7*N95+入力部分!D$8*S95+入力部分!D$9*X95+入力部分!D$10*AC95)/(SUM(入力部分!D$7:D$10)) -> 0.006516474446 | M95: 89 | N95: =1/入力部分!$I$36/(2*3.14)^0.5*EXP(-1/2*(((M95+入力部分!$I$45)-入力部分!$I$27)/入力部分!$I$36)^2) -> 0.003276633601 | O95: 0.2916203905 | R95: 89 | S95: =1/入力部分!$I$37/(2*3.14)^0.5*EXP(-1/2*(((R95+入力部分!$I$46)-入力部分!$I$28)/入力部分!$I$37)^2) -> 0.006539686973 | T95: 0.5820321406 | W95: 89 | X95: =1/入力部分!$I$38/(2*3.14)^0.5*EXP(-1/2*(((W95+入力部分!$I$47)-入力部分!$I$29)/入力部分!$I$38)^2) -> 0.01285350808 | Y95: 1.143962219 | AB95: 89 | AC95: =1/入力部分!$I$39/(2*3.14)^0.5*EXP(-1/2*(((AB95+入力部分!$I$48)-入力部分!$I$30)/入力部分!$I$39)^2) -> 0.001764542441 | AD95: 0.1570442773
I96: 90 | J96: =(入力部分!D$7*N96+入力部分!D$8*S96+入力部分!D$9*X96+入力部分!D$10*AC96)/(SUM(入力部分!D$7:D$10)) -> 0.006406482046 | M96: 90 | N96: =1/入力部分!$I$36/(2*3.14)^0.5*EXP(-1/2*(((M96+入力部分!$I$45)-入力部分!$I$27)/入力部分!$I$36)^2) -> 0.003297837387 | O96: 0.2968053649 | R96: 90 | S96: =1/入力部分!$I$37/(2*3.14)^0.5*EXP(-1/2*(((R96+入力部分!$I$46)-入力部分!$I$28)/入力部分!$I$37)^2) -> 0.00657736455 | T96: 0.5919628095 | W96: 90 | X96: =1/入力部分!$I$38/(2*3.14)^0.5*EXP(-1/2*(((W96+入力部分!$I$47)-入力部分!$I$29)/入力部分!$I$38)^2) -> 0.01267408173 | Y96: 1.140667355 | AB96: 90 | AC96: =1/入力部分!$I$39/(2*3.14)^0.5*EXP(-1/2*(((AB96+入力部分!$I$48)-入力部分!$I$30)/入力部分!$I$39)^2) -> 0.001436880939 | AD96: 0.1293192845
I97: 91 | J97: =(入力部分!D$7*N97+入力部分!D$8*S97+入力部分!D$9*X97+入力部分!D$10*AC97)/(SUM(入力部分!D$7:D$10)) -> 0.006305846675 | M97: 91 | N97: =1/入力部分!$I$36/(2*3.14)^0.5*EXP(-1/2*(((M97+入力部分!$I$45)-入力部分!$I$27)/入力部分!$I$36)^2) -> 0.003318839748 | O97: 0.3020144171 | R97: 91 | S97: =1/入力部分!$I$37/(2*3.14)^0.5*EXP(-1/2*(((R97+入力部分!$I$46)-入力部分!$I$28)/入力部分!$I$37)^2) -> 0.006613265609 | T97: 0.6018071704 | W97: 91 | X97: =1/入力部分!$I$38/(2*3.14)^0.5*EXP(-1/2*(((W97+入力部分!$I$47)-入力部分!$I$29)/入力部分!$I$38)^2) -> 0.01248210213 | Y97: 1.135871294 | AB97: 91 | AC97: =1/入力部分!$I$39/(2*3.14)^0.5*EXP(-1/2*(((AB97+入力部分!$I$48)-入力部分!$I$30)/入力部分!$I$39)^2) -> 0.00116196628 | AD97: 0.1057389315
I98: 92 | J98: =(入力部分!D$7*N98+入力部分!D$8*S98+入力部分!D$9*X98+入力部分!D$10*AC98)/(SUM(入力部分!D$7:D$10)) -> 0.006213055462 | M98: 92 | N98: =1/入力部分!$I$36/(2*3.14)^0.5*EXP(-1/2*(((M98+入力部分!$I$45)-入力部分!$I$27)/入力部分!$I$36)^2) -> 0.003339635101 | O98: 0.3072464293 | R98: 92 | S98: =1/入力部分!$I$37/(2*3.14)^0.5*EXP(-1/2*(((R98+入力部分!$I$46)-入力部分!$I$28)/入力部分!$I$37)^2) -> 0.006647358755 | T98: 0.6115570054 | W98: 92 | X98: =1/入力部分!$I$38/(2*3.14)^0.5*EXP(-1/2*(((W98+入力部分!$I$47)-入力部分!$I$29)/入力部分!$I$38)^2) -> 0.01227821859 | Y98: 1.12959611 | AB98: 92 | AC98: =1/入力部分!$I$39/(2*3.14)^0.5*EXP(-1/2*(((AB98+入力部分!$I$48)-入力部分!$I$30)/入力部分!$I$39)^2) -> 0.0009331475764 | AD98: 0.08584957703
I99: 93 | J99: =(入力部分!D$7*N99+入力部分!D$8*S99+入力部分!D$9*X99+入力部分!D$10*AC99)/(SUM(入力部分!D$7:D$10)) -> 0.00612671138 | M99: 93 | N99: =1/入力部分!$I$36/(2*3.14)^0.5*EXP(-1/2*(((M99+入力部分!$I$45)-入力部分!$I$27)/入力部分!$I$36)^2) -> 0.003360217892 | O99: 0.312500264 | R99: 93 | S99: =1/入力部分!$I$37/(2*3.14)^0.5*EXP(-1/2*(((R99+入力部分!$I$46)-入力部分!$I$28)/入力部分!$I$37)^2) -> 0.006679614066 | T99: 0.6212041082 | W99: 93 | X99: =1/入力部分!$I$38/(2*3.14)^0.5*EXP(-1/2*(((W99+入力部分!$I$47)-入力部分!$I$29)/入力部分!$I$38)^2) -> 0.01206311284 | Y99: 1.121869494 | AB99: 93 | AC99: =1/入力部分!$I$39/(2*3.14)^0.5*EXP(-1/2*(((AB99+入力部分!$I$48)-入力部分!$I$30)/入力部分!$I$39)^2) -> 0.0007442026393 | AD99: 0.06921084545
I100: 94 | J100: =(入力部分!D$7*N100+入力部分!D$8*S100+入力部分!D$9*X100+入力部分!D$10*AC100)/(SUM(入力部分!D$7:D$10)) -> 0.006045549869 | M100: 94 | N100: =1/入力部分!$I$36/(2*3.14)^0.5*EXP(-1/2*(((M100+入力部分!$I$45)-入力部分!$I$27)/入力部分!$I$36)^2) -> 0.003380582599 | O100: 0.3177747643 | R100: 94 | S100: =1/入力部分!$I$37/(2*3.14)^0.5*EXP(-1/2*(((R100+入力部分!$I$46)-入力部分!$I$28)/入力部分!$I$37)^2) -> 0.006710003138 | T100: 0.6307402949 | W100: 94 | X100: =1/入力部分!$I$38/(2*3.14)^0.5*EXP(-1/2*(((W100+入力部分!$I$47)-入力部分!$I$29)/入力部分!$I$38)^2) -> 0.01183749531 | Y100: 1.112724559 | AB100: 94 | AC100: =1/入力部分!$I$39/(2*3.14)^0.5*EXP(-1/2*(((AB100+入力部分!$I$48)-入力部分!$I$30)/入力部分!$I$39)^2) -> 0.0005894081619 | AD100: 0.05540436721
I101: 95 | J101: =(入力部分!D$7*N101+入力部分!D$8*S101+入力部分!D$9*X101+入力部分!D$10*AC101)/(SUM(入力部分!D$7:D$10)) -> 0.005968448063 | M101: 95 | N101: =1/入力部分!$I$36/(2*3.14)^0.5*EXP(-1/2*(((M101+入力部分!$I$45)-入力部分!$I$27)/入力部分!$I$36)^2) -> 0.003400723733 | O101: 0.3230687546 | R101: 95 | S101: =1/入力部分!$I$37/(2*3.14)^0.5*EXP(-1/2*(((R101+入力部分!$I$46)-入力部分!$I$28)/入力部分!$I$37)^2) -> 0.00673849912 | T101: 0.6401574164 | W101: 95 | X101: =1/入力部分!$I$38/(2*3.14)^0.5*EXP(-1/2*(((W101+入力部分!$I$47)-入力部分!$I$29)/入力部分!$I$38)^2) -> 0.01160210122 | Y101: 1.102199616 | AB101: 95 | AC101: =1/入力部分!$I$39/(2*3.14)^0.5*EXP(-1/2*(((AB101+入力部分!$I$48)-入力部分!$I$30)/入力部分!$I$39)^2) -> 0.000463580491 | AD101: 0.04404014665
I102: 96 | J102: =(入力部分!D$7*N102+入力部分!D$8*S102+入力部分!D$9*X102+入力部分!D$10*AC102)/(SUM(入力部分!D$7:D$10)) -> 0.005894427765 | M102: 96 | N102: =1/入力部分!$I$36/(2*3.14)^0.5*EXP(-1/2*(((M102+入力部分!$I$45)-入力部分!$I$27)/入力部分!$I$36)^2) -> 0.003420635838 | O102: 0.3283810404 | R102: 96 | S102: =1/入力部分!$I$37/(2*3.14)^0.5*EXP(-1/2*(((R102+入力部分!$I$46)-入力部分!$I$28)/入力部分!$I$37)^2) -> 0.006765076761 | T102: 0.6494473691 | W102: 96 | X102: =1/入力部分!$I$38/(2*3.14)^0.5*EXP(-1/2*(((W102+入力部分!$I$47)-入力部分!$I$29)/入力部分!$I$38)^2) -> 0.01135768659 | Y102: 1.090337913 | AB102: 96 | AC102: =1/入力部分!$I$39/(2*3.14)^0.5*EXP(-1/2*(((AB102+入力部分!$I$48)-入力部分!$I$30)/入力部分!$I$39)^2) -> 0.0003620914107 | AD102: 0.03476077543
I103: 97 | J103: =(入力部分!D$7*N103+入力部分!D$8*S103+入力部分!D$9*X103+入力部分!D$10*AC103)/(SUM(入力部分!D$7:D$10)) -> 0.005822653301 | M103: 97 | N103: =1/入力部分!$I$36/(2*3.14)^0.5*EXP(-1/2*(((M103+入力部分!$I$45)-入力部分!$I$27)/入力部分!$I$36)^2) -> 0.003440313499 | O103: 0.3337104094 | R103: 97 | S103: =1/入力部分!$I$37/(2*3.14)^0.5*EXP(-1/2*(((R103+入力部分!$I$46)-入力部分!$I$28)/入力部分!$I$37)^2) -> 0.006789712446 | T103: 0.6586021073 | W103: 97 | X103: =1/入力部分!$I$38/(2*3.14)^0.5*EXP(-1/2*(((W103+入力部分!$I$47)-入力部分!$I$29)/入力部分!$I$38)^2) -> 0.01110502425 | Y103: 1.077187352 | AB103: 97 | AC103: =1/入力部分!$I$39/(2*3.14)^0.5*EXP(-1/2*(((AB103+入力部分!$I$48)-入力部分!$I$30)/入力部分!$I$39)^2) -> 0.000280863537 | AD103: 0.02724376309
I104: 98 | J104: =(入力部分!D$7*N104+入力部分!D$8*S104+入力部分!D$9*X104+入力部分!D$10*AC104)/(SUM(入力部分!D$7:D$10)) -> 0.005752425401 | M104: 98 | N104: =1/入力部分!$I$36/(2*3.14)^0.5*EXP(-1/2*(((M104+入力部分!$I$45)-入力部分!$I$27)/入力部分!$I$36)^2) -> 0.003459751341 | O104: 0.3390556314 | R104: 98 | S104: =1/入力部分!$I$37/(2*3.14)^0.5*EXP(-1/2*(((R104+入力部分!$I$46)-入力部分!$I$28)/入力部分!$I$37)^2) -> 0.006812384226 | T104: 0.6676136541 | W104: 98 | X104: =1/入力部分!$I$38/(2*3.14)^0.5*EXP(-1/2*(((W104+入力部分!$I$47)-入力部分!$I$29)/入力部分!$I$38)^2) -> 0.01084489976 | Y104: 1.062800177 | AB104: 98 | AC104: =1/入力部分!$I$39/(2*3.14)^0.5*EXP(-1/2*(((AB104+入力部分!$I$48)-入力部分!$I$30)/入力部分!$I$39)^2) -> 0.0002163498332 | AD104: 0.02120228365
I105: 99 | J105: =(入力部分!D$7*N105+入力部分!D$8*S105+入力部分!D$9*X105+入力部分!D$10*AC105)/(SUM(入力部分!D$7:D$10)) -> 0.005683172176 | M105: 99 | N105: =1/入力部分!$I$36/(2*3.14)^0.5*EXP(-1/2*(((M105+入力部分!$I$45)-入力部分!$I$27)/入力部分!$I$36)^2) -> 0.00347894403 | O105: 0.344415459 | R105: 99 | S105: =1/入力部分!$I$37/(2*3.14)^0.5*EXP(-1/2*(((R105+入力部分!$I$46)-入力部分!$I$28)/入力部分!$I$37)^2) -> 0.006833071856 | T105: 0.6764741137 | W105: 99 | X105: =1/入力部分!$I$38/(2*3.14)^0.5*EXP(-1/2*(((W105+入力部分!$I$47)-入力部分!$I$29)/入力部分!$I$38)^2) -> 0.01057810744 | Y105: 1.047232637 | AB105: 99 | AC105: =1/入力部分!$I$39/(2*3.14)^0.5*EXP(-1/2*(((AB105+入力部分!$I$48)-入力部分!$I$30)/入力部分!$I$39)^2) -> 0.0001655014621 | AD105: 0.01638464475
I106: 100 | J106: =(入力部分!D$7*N106+入力部分!D$8*S106+入力部分!D$9*X106+入力部分!D$10*AC106)/(SUM(入力部分!D$7:D$10)) -> 0.005614438115 | M106: 100 | N106: =1/入力部分!$I$36/(2*3.14)^0.5*EXP(-1/2*(((M106+入力部分!$I$45)-入力部分!$I$27)/入力部分!$I$36)^2) -> 0.003497886281 | O106: 0.3497886281 | R106: 100 | S106: =1/入力部分!$I$37/(2*3.14)^0.5*EXP(-1/2*(((R106+入力部分!$I$46)-入力部分!$I$28)/入力部分!$I$37)^2) -> 0.006851756823 | T106: 0.6851756823 | W106: 100 | X106: =1/入力部分!$I$38/(2*3.14)^0.5*EXP(-1/2*(((W106+入力部分!$I$47)-入力部分!$I$29)/入力部分!$I$38)^2) -> 0.01030544633 | Y106: 1.030544633 | AB106: 100 | AC106: =1/入力部分!$I$39/(2*3.14)^0.5*EXP(-1/2*(((AB106+入力部分!$I$48)-入力部分!$I$30)/入力部分!$I$39)^2) -> 0.0001257277579 | AD106: 0.01257277579
I107: 101 | J107: =(入力部分!D$7*N107+入力部分!D$8*S107+入力部分!D$9*X107+入力部分!D$10*AC107)/(SUM(入力部分!D$7:D$10)) -> 0.005545871963 | M107: 101 | N107: =1/入力部分!$I$36/(2*3.14)^0.5*EXP(-1/2*(((M107+入力部分!$I$45)-入力部分!$I$27)/入力部分!$I$36)^2) -> 0.003516572853 | O107: 0.3551738582 | R107: 101 | S107: =1/入力部分!$I$37/(2*3.14)^0.5*EXP(-1/2*(((R107+入力部分!$I$46)-入力部分!$I$28)/入力部分!$I$37)^2) -> 0.006868422373 | T107: 0.6937106596 | W107: 101 | X107: =1/入力部分!$I$38/(2*3.14)^0.5*EXP(-1/2*(((W107+入力部分!$I$47)-入力部分!$I$29)/入力部分!$I$38)^2) -> 0.01002771629 | Y107: 1.012799345 | AB107: 101 | AC107: =1/入力部分!$I$39/(2*3.14)^0.5*EXP(-1/2*(((AB107+入力部分!$I$48)-入力部分!$I$30)/入力部分!$I$39)^2) -> 9.485158078e-05 | AD107: 0.009580009659
I108: 102 | J108: =(入力部分!D$7*N108+入力部分!D$8*S108+入力部分!D$9*X108+入力部分!D$10*AC108)/(SUM(入力部分!D$7:D$10)) -> 0.005477214131 | M108: 102 | N108: =1/入力部分!$I$36/(2*3.14)^0.5*EXP(-1/2*(((M108+入力部分!$I$45)-入力部分!$I$27)/入力部分!$I$36)^2) -> 0.003534998558 | O108: 0.3605698529 | R108: 102 | S108: =1/入力部分!$I$37/(2*3.14)^0.5*EXP(-1/2*(((R108+入力部分!$I$46)-入力部分!$I$28)/入力部分!$I$37)^2) -> 0.006883053537 | T108: 0.7020714608 | W108: 102 | X108: =1/入力部分!$I$38/(2*3.14)^0.5*EXP(-1/2*(((W108+入力部分!$I$47)-入力部分!$I$29)/入力部分!$I$38)^2) -> 0.009745714185 | Y108: 0.9940628469 | AB108: 102 | AC108: =1/入力部分!$I$39/(2*3.14)^0.5*EXP(-1/2*(((AB108+入力部分!$I$48)-入力部分!$I$30)/入力部分!$I$39)^2) -> 7.106275518e-05 | AD108: 0.007248401028
I109: 103 | J109: =(入力部分!D$7*N109+入力部分!D$8*S109+入力部分!D$9*X109+入力部分!D$10*AC109)/(SUM(入力部分!D$7:D$10)) -> 0.005408284195 | M109: 103 | N109: =1/入力部分!$I$36/(2*3.14)^0.5*EXP(-1/2*(((M109+入力部分!$I$45)-入力部分!$I$27)/入力部分!$I$36)^2) -> 0.003553158259 | O109: 0.3659753007 | R109: 103 | S109: =1/入力部分!$I$37/(2*3.14)^0.5*EXP(-1/2*(((R109+入力部分!$I$46)-入力部分!$I$28)/入力部分!$I$37)^2) -> 0.006895637154 | T109: 0.7102506269 | W109: 103 | X109: =1/入力部分!$I$38/(2*3.14)^0.5*EXP(-1/2*(((W109+入力部分!$I$47)-入力部分!$I$29)/入力部分!$I$38)^2) -> 0.009460230182 | Y109: 0.9744037087 | AB109: 103 | AC109: =1/入力部分!$I$39/(2*3.14)^0.5*EXP(-1/2*(((AB109+入力部分!$I$48)-入力部分!$I$30)/入力部分!$I$39)^2) -> 5.287173669e-05 | AD109: 0.005445788879
I110: 104 | J110: =(入力部分!D$7*N110+入力部分!D$8*S110+入力部分!D$9*X110+入力部分!D$10*AC110)/(SUM(入力部分!D$7:D$10)) -> 0.005338968887 | M110: 104 | N110: =1/入力部分!$I$36/(2*3.14)^0.5*EXP(-1/2*(((M110+入力部分!$I$45)-入力部分!$I$27)/入力部分!$I$36)^2) -> 0.003571046874 | O110: 0.3713888749 | R110: 104 | S110: =1/入力部分!$I$37/(2*3.14)^0.5*EXP(-1/2*(((R110+入力部分!$I$46)-入力部分!$I$28)/入力部分!$I$37)^2) -> 0.006906161889 | T110: 0.7182408365 | W110: 104 | X110: =1/入力部分!$I$38/(2*3.14)^0.5*EXP(-1/2*(((W110+入力部分!$I$47)-入力部分!$I$29)/入力部分!$I$38)^2) -> 0.009172044158 | Y110: 0.9538925924 | AB110: 104 | AC110: =1/入力部分!$I$39/(2*3.14)^0.5*EXP(-1/2*(((AB110+入力部分!$I$48)-入力部分!$I$30)/入力部分!$I$39)^2) -> 3.906512124e-05 | AD110: 0.004062772609
I111: 105 | J111: =(入力部分!D$7*N111+入力部分!D$8*S111+入力部分!D$9*X111+入力部分!D$10*AC111)/(SUM(入力部分!D$7:D$10)) -> 0.005269210881 | M111: 105 | N111: =1/入力部分!$I$36/(2*3.14)^0.5*EXP(-1/2*(((M111+入力部分!$I$45)-入力部分!$I$27)/入力部分!$I$36)^2) -> 0.00358865938 | O111: 0.3768092349 | R111: 105 | S111: =1/入力部分!$I$37/(2*3.14)^0.5*EXP(-1/2*(((R111+入力部分!$I$46)-入力部分!$I$28)/入力部分!$I$37)^2) -> 0.006914618251 | T111: 0.7260349164 | W111: 105 | X111: =1/入力部分!$I$38/(2*3.14)^0.5*EXP(-1/2*(((W111+入力部分!$I$47)-入力部分!$I$29)/入力部分!$I$38)^2) -> 0.008881922321 | Y111: 0.9326018437 | AB111: 105 | AC111: =1/入力部分!$I$39/(2*3.14)^0.5*EXP(-1/2*(((AB111+入力部分!$I$48)-入力部分!$I$30)/入力部分!$I$39)^2) -> 2.866413517e-05 | AD111: 0.003009734193
I112: 106 | J112: =(入力部分!D$7*N112+入力部分!D$8*S112+入力部分!D$9*X112+入力部分!D$10*AC112)/(SUM(入力部分!D$7:D$10)) -> 0.005198998534 | M112: 106 | N112: =1/入力部分!$I$36/(2*3.14)^0.5*EXP(-1/2*(((M112+入力部分!$I$45)-入力部分!$I$27)/入力部分!$I$36)^2) -> 0.003605990812 | O112: 0.3822350261 | R112: 106 | S112: =1/入力部分!$I$37/(2*3.14)^0.5*EXP(-1/2*(((R112+入力部分!$I$46)-入力部分!$I$28)/入力部分!$I$37)^2) -> 0.006920998608 | T112: 0.7336258524 | W112: 106 | X112: =1/入力部分!$I$38/(2*3.14)^0.5*EXP(-1/2*(((W112+入力部分!$I$47)-入力部分!$I$29)/入力部分!$I$38)^2) -> 0.008590613986 | Y112: 0.9106050825 | AB112: 106 | AC112: =1/入力部分!$I$39/(2*3.14)^0.5*EXP(-1/2*(((AB112+入力部分!$I$48)-入力部分!$I$30)/入力部分!$I$39)^2) -> 2.088683211e-05 | AD112: 0.002214004204
I113: 107 | J113: =(入力部分!D$7*N113+入力部分!D$8*S113+入力部分!D$9*X113+入力部分!D$10*AC113)/(SUM(入力部分!D$7:D$10)) -> 0.005128356715 | M113: 107 | N113: =1/入力部分!$I$36/(2*3.14)^0.5*EXP(-1/2*(((M113+入力部分!$I$45)-入力部分!$I$27)/入力部分!$I$36)^2) -> 0.003623036267 | O113: 0.3876648806 | R113: 107 | S113: =1/入力部分!$I$37/(2*3.14)^0.5*EXP(-1/2*(((R113+入力部分!$I$46)-入力部分!$I$28)/入力部分!$I$37)^2) -> 0.006925297196 | T113: 0.7410068 | W113: 107 | X113: =1/入力部分!$I$38/(2*3.14)^0.5*EXP(-1/2*(((W113+入力部分!$I$47)-入力部分!$I$29)/入力部分!$I$38)^2) -> 0.008298848553 | Y113: 0.8879767951 | AB113: 107 | AC113: =1/入力部分!$I$39/(2*3.14)^0.5*EXP(-1/2*(((AB113+入力部分!$I$48)-入力部分!$I$30)/入力部分!$I$39)^2) -> 1.511438132e-05 | AD113: 0.001617238801
I114: 108 | J114: =(入力部分!D$7*N114+入力部分!D$8*S114+入力部分!D$9*X114+入力部分!D$10*AC114)/(SUM(入力部分!D$7:D$10)) -> 0.00505733873 | M114: 108 | N114: =1/入力部分!$I$36/(2*3.14)^0.5*EXP(-1/2*(((M114+入力部分!$I$45)-入力部分!$I$27)/入力部分!$I$36)^2) -> 0.003639790907 | O114: 0.393097418 | R114: 108 | S114: =1/入力部分!$I$37/(2*3.14)^0.5*EXP(-1/2*(((R114+入力部分!$I$46)-入力部分!$I$28)/入力部分!$I$37)^2) -> 0.006927510131 | T114: 0.7481710942 | W114: 108 | X114: =1/入力部分!$I$38/(2*3.14)^0.5*EXP(-1/2*(((W114+入力部分!$I$47)-入力部分!$I$29)/入力部分!$I$38)^2) -> 0.008007332707 | Y114: 0.8647919324 | AB114: 108 | AC114: =1/入力部分!$I$39/(2*3.14)^0.5*EXP(-1/2*(((AB114+入力部分!$I$48)-入力部分!$I$30)/入力部分!$I$39)^2) -> 1.086156085e-05 | AD114: 0.001173048572
I115: 109 | J115: =(入力部分!D$7*N115+入力部分!D$8*S115+入力部分!D$9*X115+入力部分!D$10*AC115)/(SUM(入力部分!D$7:D$10)) -> 0.004986019327 | M115: 109 | N115: =1/入力部分!$I$36/(2*3.14)^0.5*EXP(-1/2*(((M115+入力部分!$I$45)-入力部分!$I$27)/入力部分!$I$36)^2) -> 0.003656249962 | O115: 0.3985312458 | R115: 109 | S115: =1/入力部分!$I$37/(2*3.14)^0.5*EXP(-1/2*(((R115+入力部分!$I$46)-入力部分!$I$28)/入力部分!$I$37)^2) -> 0.006927635413 | T115: 0.75511226 | W115: 109 | X115: =1/入力部分!$I$38/(2*3.14)^0.5*EXP(-1/2*(((W115+入力部分!$I$47)-入力部分!$I$29)/入力部分!$I$38)^2) -> 0.007716747841 | Y115: 0.8411255147 | AB115: 109 | AC115: =1/入力部分!$I$39/(2*3.14)^0.5*EXP(-1/2*(((AB115+入力部分!$I$48)-入力部分!$I$30)/入力部分!$I$39)^2) -> 7.751364698e-06 | AD115: 0.0008448987521
I116: 110 | J116: =(入力部分!D$7*N116+入力部分!D$8*S116+入力部分!D$9*X116+入力部分!D$10*AC116)/(SUM(入力部分!D$7:D$10)) -> 0.00491448874 | M116: 110 | N116: =1/入力部分!$I$36/(2*3.14)^0.5*EXP(-1/2*(((M116+入力部分!$I$45)-入力部分!$I$27)/入力部分!$I$36)^2) -> 0.003672408727 | O116: 0.40396496 | R116: 110 | S116: =1/入力部分!$I$37/(2*3.14)^0.5*EXP(-1/2*(((R116+入力部分!$I$46)-入力部分!$I$28)/入力部分!$I$37)^2) -> 0.006925672928 | T116: 0.7618240221 | W116: 110 | X116: =1/入力部分!$I$38/(2*3.14)^0.5*EXP(-1/2*(((W116+入力部分!$I$47)-入力部分!$I$29)/入力部分!$I$38)^2) -> 0.007427747719 | Y116: 0.8170522491 | AB116: 110 | AC116: =1/入力部分!$I$39/(2*3.14)^0.5*EXP(-1/2*(((AB116+入力部分!$I$48)-入力部分!$I$30)/入力部分!$I$39)^2) -> 5.493487844e-06 | AD116: 0.0006042836629
I117: 111 | J117: =(入力部分!D$7*N117+入力部分!D$8*S117+入力部分!D$9*X117+入力部分!D$10*AC117)/(SUM(入力部分!D$7:D$10)) -> 0.004842847676 | M117: 111 | N117: =1/入力部分!$I$36/(2*3.14)^0.5*EXP(-1/2*(((M117+入力部分!$I$45)-入力部分!$I$27)/入力部分!$I$36)^2) -> 0.003688262571 | O117: 0.4093971454 | R117: 111 | S117: =1/入力部分!$I$37/(2*3.14)^0.5*EXP(-1/2*(((R117+入力部分!$I$46)-入力部分!$I$28)/入力部分!$I$37)^2) -> 0.00692162445 | T117: 0.7683003139 | W117: 111 | X117: =1/入力部分!$I$38/(2*3.14)^0.5*EXP(-1/2*(((W117+入力部分!$I$47)-入力部分!$I$29)/入力部分!$I$38)^2) -> 0.007140956385 | Y117: 0.7926461587 | AB117: 111 | AC117: =1/入力部分!$I$39/(2*3.14)^0.5*EXP(-1/2*(((AB117+入力部分!$I$48)-入力部分!$I$30)/入力部分!$I$39)^2) -> 3.866359484e-06 | AD117: 0.0004291659027
I118: 112 | J118: =(入力部分!D$7*N118+入力部分!D$8*S118+入力部分!D$9*X118+入力部分!D$10*AC118)/(SUM(入力部分!D$7:D$10)) -> 0.004771203149 | M118: 112 | N118: =1/入力部分!$I$36/(2*3.14)^0.5*EXP(-1/2*(((M118+入力部分!$I$45)-入力部分!$I$27)/入力部分!$I$36)^2) -> 0.003703806937 | O118: 0.414826377 | R118: 112 | S118: =1/入力部分!$I$37/(2*3.14)^0.5*EXP(-1/2*(((R118+入力部分!$I$46)-入力部分!$I$28)/入力部分!$I$37)^2) -> 0.006915493638 | T118: 0.7745352875 | W118: 112 | X118: =1/入力部分!$I$38/(2*3.14)^0.5*EXP(-1/2*(((W118+入力部分!$I$47)-入力部分!$I$29)/入力部分!$I$38)^2) -> 0.006856966328 | Y118: 0.7679802287 | AB118: 112 | AC118: =1/入力部分!$I$39/(2*3.14)^0.5*EXP(-1/2*(((AB118+入力部分!$I$48)-入力部分!$I$30)/入力部分!$I$39)^2) -> 2.702342307e-06 | AD118: 0.0003026623384
I119: 113 | J119: =(入力部分!D$7*N119+入力部分!D$8*S119+入力部分!D$9*X119+入力部分!D$10*AC119)/(SUM(入力部分!D$7:D$10)) -> 0.004699665077 | M119: 113 | N119: =1/入力部分!$I$36/(2*3.14)^0.5*EXP(-1/2*(((M119+入力部分!$I$45)-入力部分!$I$27)/入力部分!$I$36)^2) -> 0.003719037341 | O119: 0.4202512195 | R119: 113 | S119: =1/入力部分!$I$37/(2*3.14)^0.5*EXP(-1/2*(((R119+入力部分!$I$46)-入力部分!$I$28)/入力部分!$I$37)^2) -> 0.00690728603 | T119: 0.7805233214 | W119: 113 | X119: =1/入力部分!$I$38/(2*3.14)^0.5*EXP(-1/2*(((W119+入力部分!$I$47)-入力部分!$I$29)/入力部分!$I$38)^2) -> 0.006576336897 | Y119: 0.7431260693 | AB119: 113 | AC119: =1/入力部分!$I$39/(2*3.14)^0.5*EXP(-1/2*(((AB119+入力部分!$I$48)-入力部分!$I$30)/入力部分!$I$39)^2) -> 1.875696447e-06 | AD119: 0.0002119536986
I120: 114 | J120: =(入力部分!D$7*N120+入力部分!D$8*S120+入力部分!D$9*X120+入力部分!D$10*AC120)/(SUM(入力部分!D$7:D$10)) -> 0.004628343534 | M120: 114 | N120: =1/入力部分!$I$36/(2*3.14)^0.5*EXP(-1/2*(((M120+入力部分!$I$45)-入力部分!$I$27)/入力部分!$I$36)^2) -> 0.003733949378 | O120: 0.4256702291 | R120: 114 | S120: =1/入力部分!$I$37/(2*3.14)^0.5*EXP(-1/2*(((R120+入力部分!$I$46)-入力部分!$I$28)/入力部分!$I$37)^2) -> 0.006897009035 | T120: 0.78625903 | W120: 114 | X120: =1/入力部分!$I$38/(2*3.14)^0.5*EXP(-1/2*(((W120+入力部分!$I$47)-入力部分!$I$29)/入力部分!$I$38)^2) -> 0.006299592981 | Y120: 0.7181535998 | AB120: 114 | AC120: =1/入力部分!$I$39/(2*3.14)^0.5*EXP(-1/2*(((AB120+入力部分!$I$48)-入力部分!$I$30)/入力部分!$I$39)^2) -> 1.292911557e-06 | AD120: 0.0001473919174
I121: 115 | J121: =(入力部分!D$7*N121+入力部分!D$8*S121+入力部分!D$9*X121+入力部分!D$10*AC121)/(SUM(入力部分!D$7:D$10)) -> 0.004557346554 | M121: 115 | N121: =1/入力部分!$I$36/(2*3.14)^0.5*EXP(-1/2*(((M121+入力部分!$I$45)-入力部分!$I$27)/入力部分!$I$36)^2) -> 0.003748538723 | O121: 0.4310819531 | R121: 115 | S121: =1/入力部分!$I$37/(2*3.14)^0.5*EXP(-1/2*(((R121+入力部分!$I$46)-入力部分!$I$28)/入力部分!$I$37)^2) -> 0.006884671922 | T121: 0.791737271 | W121: 115 | X121: =1/入力部分!$I$38/(2*3.14)^0.5*EXP(-1/2*(((W121+入力部分!$I$47)-入力部分!$I$29)/入力部分!$I$38)^2) -> 0.006027223938 | Y121: 0.6931307529 | AB121: 115 | AC121: =1/入力部分!$I$39/(2*3.14)^0.5*EXP(-1/2*(((AB121+入力部分!$I$48)-入力部分!$I$30)/入力部分!$I$39)^2) -> 8.85032349e-07 | AD121: 0.0001017787201
I122: 116 | J122: =(入力部分!D$7*N122+入力部分!D$8*S122+入力部分!D$9*X122+入力部分!D$10*AC122)/(SUM(入力部分!D$7:D$10)) -> 0.004486778424 | M122: 116 | N122: =1/入力部分!$I$36/(2*3.14)^0.5*EXP(-1/2*(((M122+入力部分!$I$45)-入力部分!$I$27)/入力部分!$I$36)^2) -> 0.003762801131 | O122: 0.4364849312 | R122: 116 | S122: =1/入力部分!$I$37/(2*3.14)^0.5*EXP(-1/2*(((R122+入力部分!$I$46)-入力部分!$I$28)/入力部分!$I$37)^2) -> 0.006870285804 | T122: 0.7969531533 | W122: 116 | X122: =1/入力部分!$I$38/(2*3.14)^0.5*EXP(-1/2*(((W122+入力部分!$I$47)-入力部分!$I$29)/入力部分!$I$38)^2) -> 0.005759682788 | Y122: 0.6681232034 | AB122: 116 | AC122: =1/入力部分!$I$39/(2*3.14)^0.5*EXP(-1/2*(((AB122+入力部分!$I$48)-入力部分!$I$30)/入力部分!$I$39)^2) -> 6.01635617e-07 | AD122: 6.978973157e-05
I123: 117 | J123: =(入力部分!D$7*N123+入力部分!D$8*S123+入力部分!D$9*X123+入力部分!D$10*AC123)/(SUM(入力部分!D$7:D$10)) -> 0.004416738364 | M123: 117 | N123: =1/入力部分!$I$36/(2*3.14)^0.5*EXP(-1/2*(((M123+入力部分!$I$45)-入力部分!$I$27)/入力部分!$I$36)^2) -> 0.003776732444 | O123: 0.441877696 | R123: 117 | S123: =1/入力部分!$I$37/(2*3.14)^0.5*EXP(-1/2*(((R123+入力部分!$I$46)-入力部分!$I$28)/入力部分!$I$37)^2) -> 0.006853863626 | T123: 0.8019020442 | W123: 117 | X123: =1/入力部分!$I$38/(2*3.14)^0.5*EXP(-1/2*(((W123+入力部分!$I$47)-入力部分!$I$29)/入力部分!$I$38)^2) -> 0.005497385639 | Y123: 0.6431941197 | AB123: 117 | AC123: =1/入力部分!$I$39/(2*3.14)^0.5*EXP(-1/2*(((AB123+入力部分!$I$48)-入力部分!$I$30)/入力部分!$I$39)^2) -> 4.061551819e-07 | AD123: 4.752015628e-05
I124: 118 | J124: =(入力部分!D$7*N124+入力部分!D$8*S124+入力部分!D$9*X124+入力部分!D$10*AC124)/(SUM(入力部分!D$7:D$10)) -> 0.004347319542 | M124: 118 | N124: =1/入力部分!$I$36/(2*3.14)^0.5*EXP(-1/2*(((M124+入力部分!$I$45)-入力部分!$I$27)/入力部分!$I$36)^2) -> 0.003790328588 | O124: 0.4472587733 | R124: 118 | S124: =1/入力部分!$I$37/(2*3.14)^0.5*EXP(-1/2*(((R124+入力部分!$I$46)-入力部分!$I$28)/入力部分!$I$37)^2) -> 0.006835420139 | T124: 0.8065795764 | W124: 118 | X124: =1/入力部分!$I$38/(2*3.14)^0.5*EXP(-1/2*(((W124+入力部分!$I$47)-入力部分!$I$29)/入力部分!$I$38)^2) -> 0.005240711373 | Y124: 0.618403942 | AB124: 118 | AC124: =1/入力部分!$I$39/(2*3.14)^0.5*EXP(-1/2*(((AB124+入力部分!$I$48)-入力部分!$I$30)/入力部分!$I$39)^2) -> 2.722917759e-07 | AD124: 3.213042956e-05
I125: 119 | J125: =(入力部分!D$7*N125+入力部分!D$8*S125+入力部分!D$9*X125+入力部分!D$10*AC125)/(SUM(入力部分!D$7:D$10)) -> 0.004278608364 | M125: 119 | N125: =1/入力部分!$I$36/(2*3.14)^0.5*EXP(-1/2*(((M125+入力部分!$I$45)-入力部分!$I$27)/入力部分!$I$36)^2) -> 0.003803585575 | O125: 0.4526266835 | R125: 119 | S125: =1/入力部分!$I$37/(2*3.14)^0.5*EXP(-1/2*(((R125+入力部分!$I$46)-入力部分!$I$28)/入力部分!$I$37)^2) -> 0.006814971886 | T125: 0.8109816544 | W125: 119 | X125: =1/入力部分!$I$38/(2*3.14)^0.5*EXP(-1/2*(((W125+入力部分!$I$47)-入力部分!$I$29)/入力部分!$I$38)^2) -> 0.004990001553 | Y125: 0.5938101848 | AB125: 119 | AC125: =1/入力部分!$I$39/(2*3.14)^0.5*EXP(-1/2*(((AB125+入力部分!$I$48)-入力部分!$I$30)/入力部分!$I$39)^2) -> 1.812846851e-07 | AD125: 2.157287752e-05
I126: 120 | J126: =(入力部分!D$7*N126+入力部分!D$8*S126+入力部分!D$9*X126+入力部分!D$10*AC126)/(SUM(入力部分!D$7:D$10)) -> 0.004210683982 | M126: 120 | N126: =1/入力部分!$I$36/(2*3.14)^0.5*EXP(-1/2*(((M126+入力部分!$I$45)-入力部分!$I$27)/入力部分!$I$36)^2) -> 0.003816499512 | O126: 0.4579799414 | R126: 120 | S126: =1/入力部分!$I$37/(2*3.14)^0.5*EXP(-1/2*(((R126+入力部分!$I$46)-入力部分!$I$28)/入力部分!$I$37)^2) -> 0.006792537169 | T126: 0.8151044602 | W126: 120 | X126: =1/入力部分!$I$38/(2*3.14)^0.5*EXP(-1/2*(((W126+入力部分!$I$47)-入力部分!$I$29)/入力部分!$I$38)^2) -> 0.00474556056 | Y126: 0.5694672672 | AB126: 120 | AC126: =1/入力部分!$I$39/(2*3.14)^0.5*EXP(-1/2*(((AB126+入力部分!$I$48)-入力部分!$I$30)/入力部分!$I$39)^2) -> 1.198593104e-07 | AD126: 1.438311724e-05
I127: 121 | J127: =(入力部分!D$7*N127+入力部分!D$8*S127+入力部分!D$9*X127+入力部分!D$10*AC127)/(SUM(入力部分!D$7:D$10)) -> 0.004143617993 | M127: 121 | N127: =1/入力部分!$I$36/(2*3.14)^0.5*EXP(-1/2*(((M127+入力部分!$I$45)-入力部分!$I$27)/入力部分!$I$36)^2) -> 0.003829066593 | O127: 0.4633170577 | R127: 121 | S127: =1/入力部分!$I$37/(2*3.14)^0.5*EXP(-1/2*(((R127+入力部分!$I$46)-入力部分!$I$28)/入力部分!$I$37)^2) -> 0.006768136027 | T127: 0.8189444593 | W127: 121 | X127: =1/入力部分!$I$38/(2*3.14)^0.5*EXP(-1/2*(((W127+入力部分!$I$47)-入力部分!$I$29)/入力部分!$I$38)^2) -> 0.004507655937 | Y127: 0.5454263683 | AB127: 121 | AC127: =1/入力部分!$I$39/(2*3.14)^0.5*EXP(-1/2*(((AB127+入力部分!$I$48)-入力部分!$I$30)/入力部分!$I$39)^2) -> 7.869850798e-08 | AD127: 9.522519466e-06
I128: 122 | J128: =(入力部分!D$7*N128+入力部分!D$8*S128+入力部分!D$9*X128+入力部分!D$10*AC128)/(SUM(入力部分!D$7:D$10)) -> 0.004077474278 | M128: 122 | N128: =1/入力部分!$I$36/(2*3.14)^0.5*EXP(-1/2*(((M128+入力部分!$I$45)-入力部分!$I$27)/入力部分!$I$36)^2) -> 0.003841283107 | O128: 0.4686365391 | R128: 122 | S128: =1/入力部分!$I$37/(2*3.14)^0.5*EXP(-1/2*(((R128+入力部分!$I$46)-入力部分!$I$28)/入力部分!$I$37)^2) -> 0.006741790206 | T128: 0.8224984051 | W128: 122 | X128: =1/入力部分!$I$38/(2*3.14)^0.5*EXP(-1/2*(((W128+入力部分!$I$47)-入力部分!$I$29)/入力部分!$I$38)^2) -> 0.004276518936 | Y128: 0.5217353102 | AB128: 122 | AC128: =1/入力部分!$I$39/(2*3.14)^0.5*EXP(-1/2*(((AB128+入力部分!$I$48)-入力部分!$I$30)/入力部分!$I$39)^2) -> 5.131511294e-08 | AD128: 6.260443779e-06
I129: 123 | J129: =(入力部分!D$7*N129+入力部分!D$8*S129+入力部分!D$9*X129+入力部分!D$10*AC129)/(SUM(入力部分!D$7:D$10)) -> 0.004012308972 | M129: 123 | N129: =1/入力部分!$I$36/(2*3.14)^0.5*EXP(-1/2*(((M129+入力部分!$I$45)-入力部分!$I$27)/入力部分!$I$36)^2) -> 0.00385314544 | O129: 0.4739368891 | R129: 123 | S129: =1/入力部分!$I$37/(2*3.14)^0.5*EXP(-1/2*(((R129+入力部分!$I$46)-入力部分!$I$28)/入力部分!$I$37)^2) -> 0.006713523123 | T129: 0.8257633441 | W129: 123 | X129: =1/入力部分!$I$38/(2*3.14)^0.5*EXP(-1/2*(((W129+入力部分!$I$47)-入力部分!$I$29)/入力部分!$I$38)^2) -> 0.004052345255 | Y129: 0.4984384664 | AB129: 123 | AC129: =1/入力部分!$I$39/(2*3.14)^0.5*EXP(-1/2*(((AB129+入力部分!$I$48)-入力部分!$I$30)/入力部分!$I$39)^2) -> 3.322830174e-08 | AD129: 4.087081113e-06
I130: 124 | J130: =(入力部分!D$7*N130+入力部分!D$8*S130+入力部分!D$9*X130+入力部分!D$10*AC130)/(SUM(入力部分!D$7:D$10)) -> 0.003948170524 | M130: 124 | N130: =1/入力部分!$I$36/(2*3.14)^0.5*EXP(-1/2*(((M130+入力部分!$I$45)-入力部分!$I$27)/入力部分!$I$36)^2) -> 0.003864650073 | O130: 0.4792166091 | R130: 124 | S130: =1/入力部分!$I$37/(2*3.14)^0.5*EXP(-1/2*(((R130+入力部分!$I$46)-入力部分!$I$28)/入力部分!$I$37)^2) -> 0.006683359836 | T130: 0.8287366197 | W130: 124 | X130: =1/入力部分!$I$38/(2*3.14)^0.5*EXP(-1/2*(((W130+入力部分!$I$47)-入力部分!$I$29)/入力部分!$I$38)^2) -> 0.003835295937 | Y130: 0.4755766961 | AB130: 124 | AC130: =1/入力部分!$I$39/(2*3.14)^0.5*EXP(-1/2*(((AB130+入力部分!$I$48)-入力部分!$I$30)/入力部分!$I$39)^2) -> 2.136756669e-08 | AD130: 2.649578269e-06
I131: 125 | J131: =(入力部分!D$7*N131+入力部分!D$8*S131+入力部分!D$9*X131+入力部分!D$10*AC131)/(SUM(入力部分!D$7:D$10)) -> 0.003885099844 | M131: 125 | N131: =1/入力部分!$I$36/(2*3.14)^0.5*EXP(-1/2*(((M131+入力部分!$I$45)-入力部分!$I$27)/入力部分!$I$36)^2) -> 0.003875793587 | O131: 0.4844741984 | R131: 125 | S131: =1/入力部分!$I$37/(2*3.14)^0.5*EXP(-1/2*(((R131+入力部分!$I$46)-入力部分!$I$28)/入力部分!$I$37)^2) -> 0.006651327004 | T131: 0.8314158755 | W131: 125 | X131: =1/入力部分!$I$38/(2*3.14)^0.5*EXP(-1/2*(((W131+入力部分!$I$47)-入力部分!$I$29)/入力部分!$I$38)^2) -> 0.003625498429 | Y131: 0.4531873037 | AB131: 125 | AC131: =1/入力部分!$I$39/(2*3.14)^0.5*EXP(-1/2*(((AB131+入力部分!$I$48)-入力部分!$I$30)/入力部分!$I$39)^2) -> 1.364539326e-08 | AD131: 1.705674158e-06
I132: 126 | J132: =(入力部分!D$7*N132+入力部分!D$8*S132+入力部分!D$9*X132+入力部分!D$10*AC132)/(SUM(入力部分!D$7:D$10)) -> 0.003823130512 | M132: 126 | N132: =1/入力部分!$I$36/(2*3.14)^0.5*EXP(-1/2*(((M132+入力部分!$I$45)-入力部分!$I$27)/入力部分!$I$36)^2) -> 0.003886572665 | O132: 0.4897081558 | R132: 126 | S132: =1/入力部分!$I$37/(2*3.14)^0.5*EXP(-1/2*(((R132+入力部分!$I$46)-入力部分!$I$28)/入力部分!$I$37)^2) -> 0.006617452848 | T132: 0.8337990588 | W132: 126 | X132: =1/入力部分!$I$38/(2*3.14)^0.5*EXP(-1/2*(((W132+入力部分!$I$47)-入力部分!$I$29)/入力部分!$I$38)^2) -> 0.003423047792 | Y132: 0.4313040217 | AB132: 126 | AC132: =1/入力部分!$I$39/(2*3.14)^0.5*EXP(-1/2*(((AB132+入力部分!$I$48)-入力部分!$I$30)/入力部分!$I$39)^2) -> 8.653685573e-09 | AD132: 1.090364382e-06
I133: 127 | J133: =(入力部分!D$7*N133+入力部分!D$8*S133+入力部分!D$9*X133+入力部分!D$10*AC133)/(SUM(入力部分!D$7:D$10)) -> 0.003762289043 | M133: 127 | N133: =1/入力部分!$I$36/(2*3.14)^0.5*EXP(-1/2*(((M133+入力部分!$I$45)-入力部分!$I$27)/入力部分!$I$36)^2) -> 0.003896984089 | O133: 0.4949169793 | R133: 127 | S133: =1/入力部分!$I$37/(2*3.14)^0.5*EXP(-1/2*(((R133+入力部分!$I$46)-入力部分!$I$28)/入力部分!$I$37)^2) -> 0.006581767109 | T133: 0.8358844229 | W133: 127 | X133: =1/入力部分!$I$38/(2*3.14)^0.5*EXP(-1/2*(((W133+入力部分!$I$47)-入力部分!$I$29)/入力部分!$I$38)^2) -> 0.003228008015 | Y133: 0.4099570179 | AB133: 127 | AC133: =1/入力部分!$I$39/(2*3.14)^0.5*EXP(-1/2*(((AB133+入力部分!$I$48)-入力部分!$I$30)/入力部分!$I$39)^2) -> 5.450046806e-09 | AD133: 6.921559444e-07
I134: 128 | J134: =(入力部分!D$7*N134+入力部分!D$8*S134+入力部分!D$9*X134+入力部分!D$10*AC134)/(SUM(入力部分!D$7:D$10)) -> 0.003702595189 | M134: 128 | N134: =1/入力部分!$I$36/(2*3.14)^0.5*EXP(-1/2*(((M134+入力部分!$I$45)-入力部分!$I$27)/入力部分!$I$36)^2) -> 0.003907024748 | O134: 0.5000991677 | R134: 128 | S134: =1/入力部分!$I$37/(2*3.14)^0.5*EXP(-1/2*(((R134+入力部分!$I$46)-入力部分!$I$28)/入力部分!$I$37)^2) -> 0.00654430101 | T134: 0.8376705292 | W134: 128 | X134: =1/入力部分!$I$38/(2*3.14)^0.5*EXP(-1/2*(((W134+入力部分!$I$47)-入力部分!$I$29)/入力部分!$I$38)^2) -> 0.00304041346 | Y134: 0.3891729229 | AB134: 128 | AC134: =1/入力部分!$I$39/(2*3.14)^0.5*EXP(-1/2*(((AB134+入力部分!$I$48)-入力部分!$I$30)/入力部分!$I$39)^2) -> 3.408657918e-09 | AD134: 4.363082135e-07
I135: 129 | J135: =(入力部分!D$7*N135+入力部分!D$8*S135+入力部分!D$9*X135+入力部分!D$10*AC135)/(SUM(入力部分!D$7:D$10)) -> 0.003644062279 | M135: 129 | N135: =1/入力部分!$I$36/(2*3.14)^0.5*EXP(-1/2*(((M135+入力部分!$I$45)-入力部分!$I$27)/入力部分!$I$36)^2) -> 0.003916691635 | O135: 0.5052532209 | R135: 129 | S135: =1/入力部分!$I$37/(2*3.14)^0.5*EXP(-1/2*(((R135+入力部分!$I$46)-入力部分!$I$28)/入力部分!$I$37)^2) -> 0.0065050872 | T135: 0.8391562488 | W135: 129 | X135: =1/入力部分!$I$38/(2*3.14)^0.5*EXP(-1/2*(((W135+入力部分!$I$47)-入力部分!$I$29)/入力部分!$I$38)^2) -> 0.002860270381 | Y135: 0.3689748792 | AB135: 129 | AC135: =1/入力部分!$I$39/(2*3.14)^0.5*EXP(-1/2*(((AB135+入力部分!$I$48)-入力部分!$I$30)/入力部分!$I$39)^2) -> 2.117145335e-09 | AD135: =AB135*$AC135 -> 2.731117483e-07
I136: 130 | J136: =(入力部分!D$7*N136+入力部分!D$8*S136+入力部分!D$9*X136+入力部分!D$10*AC136)/(SUM(入力部分!D$7:D$10)) -> 0.003586697585 | M136: 130 | N136: =1/入力部分!$I$36/(2*3.14)^0.5*EXP(-1/2*(((M136+入力部分!$I$45)-入力部分!$I$27)/入力部分!$I$36)^2) -> 0.003925981849 | O136: =M136*$N136 -> 0.5103776404 | R136: 130 | S136: =1/入力部分!$I$37/(2*3.14)^0.5*EXP(-1/2*(((R136+入力部分!$I$46)-入力部分!$I$28)/入力部分!$I$37)^2) -> 0.006464159717 | T136: =R136*$S136 -> 0.8403407633 | W136: 130 | X136: =1/入力部分!$I$38/(2*3.14)^0.5*EXP(-1/2*(((W136+入力部分!$I$47)-入力部分!$I$29)/入力部分!$I$38)^2) -> 0.002687558534 | Y136: =W136*$X136 -> 0.3493826094 | AB136: 130 | AC136: =1/入力部分!$I$39/(2*3.14)^0.5*EXP(-1/2*(((AB136+入力部分!$I$48)-入力部分!$I$30)/入力部分!$I$39)^2) -> 1.305876153e-09 | AD136: 1.697638999e-07
I137: 131 | J137: =(入力部分!D$7*N137+入力部分!D$8*S137+入力部分!D$9*X137+入力部分!D$10*AC137)/(SUM(入力部分!D$7:D$10)) -> 0.003530502709 | M137: 131 | N137: =1/入力部分!$I$36/(2*3.14)^0.5*EXP(-1/2*(((M137+入力部分!$I$45)-入力部分!$I$27)/入力部分!$I$36)^2) -> 0.003934892601 | O137: 0.5154709308 | R137: 131 | S137: =1/入力部分!$I$37/(2*3.14)^0.5*EXP(-1/2*(((R137+入力部分!$I$46)-入力部分!$I$28)/入力部分!$I$37)^2) -> 0.006421553934 | T137: 0.8412235654 | W137: 131 | X137: =1/入力部分!$I$38/(2*3.14)^0.5*EXP(-1/2*(((W137+入力部分!$I$47)-入力部分!$I$29)/入力部分!$I$38)^2) -> 0.002522232834 | Y137: 0.3304125012 | AB137: 131 | AC137: =1/入力部分!$I$39/(2*3.14)^0.5*EXP(-1/2*(((AB137+入力部分!$I$48)-入力部分!$I$30)/入力部分!$I$39)^2) -> 7.999030933e-10 | AD137: 1.047873052e-07
I138: 132 | J138: =(入力部分!D$7*N138+入力部分!D$8*S138+入力部分!D$9*X138+入力部分!D$10*AC138)/(SUM(入力部分!D$7:D$10)) -> 0.003475473981 | M138: 132 | N138: =1/入力部分!$I$36/(2*3.14)^0.5*EXP(-1/2*(((M138+入力部分!$I$45)-入力部分!$I$27)/入力部分!$I$36)^2) -> 0.003943421208 | O138: 0.5205315995 | R138: 132 | S138: =1/入力部分!$I$37/(2*3.14)^0.5*EXP(-1/2*(((R138+入力部分!$I$46)-入力部分!$I$28)/入力部分!$I$37)^2) -> 0.006377306507 | T138: 0.8418044589 | W138: 132 | X138: =1/入力部分!$I$38/(2*3.14)^0.5*EXP(-1/2*(((W138+入力部分!$I$47)-入力部分!$I$29)/入力部分!$I$38)^2) -> 0.002364225071 | Y138: 0.3120777094 | AB138: 132 | AC138: =1/入力部分!$I$39/(2*3.14)^0.5*EXP(-1/2*(((AB138+入力部分!$I$48)-入力部分!$I$30)/入力部分!$I$39)^2) -> 4.865828833e-10 | AD138: 6.42289406e-08
I139: 133 | J139: =(入力部分!D$7*N139+入力部分!D$8*S139+入力部分!D$9*X139+入力部分!D$10*AC139)/(SUM(入力部分!D$7:D$10)) -> 0.00342160287 | M139: 133 | N139: =1/入力部分!$I$36/(2*3.14)^0.5*EXP(-1/2*(((M139+入力部分!$I$45)-入力部分!$I$27)/入力部分!$I$36)^2) -> 0.0039515651 | O139: 0.5255581583 | R139: 133 | S139: =1/入力部分!$I$37/(2*3.14)^0.5*EXP(-1/2*(((R139+入力部分!$I$46)-入力部分!$I$28)/入力部分!$I$37)^2) -> 0.006331455324 | T139: 0.8420835581 | W139: 133 | X139: =1/入力部分!$I$38/(2*3.14)^0.5*EXP(-1/2*(((W139+入力部分!$I$47)-入力部分!$I$29)/入力部分!$I$38)^2) -> 0.002213445649 | Y139: 0.2943882713 | AB139: 133 | AC139: =1/入力部分!$I$39/(2*3.14)^0.5*EXP(-1/2*(((AB139+入力部分!$I$48)-入力部分!$I$30)/入力部分!$I$39)^2) -> 2.939411202e-10 | AD139: 3.909416899e-08
I140: 134 | J140: =(入力部分!D$7*N140+入力部分!D$8*S140+入力部分!D$9*X140+入力部分!D$10*AC140)/(SUM(入力部分!D$7:D$10)) -> 0.003368876402 | M140: 134 | N140: =1/入力部分!$I$36/(2*3.14)^0.5*EXP(-1/2*(((M140+入力部分!$I$45)-入力部分!$I$27)/入力部分!$I$36)^2) -> 0.003959321819 | O140: 0.5305491237 | R140: 134 | S140: =1/入力部分!$I$37/(2*3.14)^0.5*EXP(-1/2*(((R140+入力部分!$I$46)-入力部分!$I$28)/入力部分!$I$37)^2) -> 0.006284039454 | T140: 0.8420612868 | W140: 134 | X140: =1/入力部分!$I$38/(2*3.14)^0.5*EXP(-1/2*(((W140+入力部分!$I$47)-入力部分!$I$29)/入力部分!$I$38)^2) -> 0.00206978534 | Y140: 0.2773512356 | AB140: 134 | AC140: =1/入力部分!$I$39/(2*3.14)^0.5*EXP(-1/2*(((AB140+入力部分!$I$48)-入力部分!$I$30)/入力部分!$I$39)^2) -> 1.763388192e-10 | AD140: 2.362940178e-08
I141: 135 | J141: =(入力部分!D$7*N141+入力部分!D$8*S141+入力部分!D$9*X141+入力部分!D$10*AC141)/(SUM(入力部分!D$7:D$10)) -> 0.003317277573 | M141: 135 | N141: =1/入力部分!$I$36/(2*3.14)^0.5*EXP(-1/2*(((M141+入力部分!$I$45)-入力部分!$I$27)/入力部分!$I$36)^2) -> 0.00396668902 | O141: 0.5355030177 | R141: 135 | S141: =1/入力部分!$I$37/(2*3.14)^0.5*EXP(-1/2*(((R141+入力部分!$I$46)-入力部分!$I$28)/入力部分!$I$37)^2) -> 0.006235099084 | T141: 0.8417383764 | W141: 135 | X141: =1/入力部分!$I$38/(2*3.14)^0.5*EXP(-1/2*(((W141+入力部分!$I$47)-入力部分!$I$29)/入力部分!$I$38)^2) -> 0.00193311705 | Y141: 0.2609708017 | AB141: 135 | AC141: =1/入力部分!$I$39/(2*3.14)^0.5*EXP(-1/2*(((AB141+入力部分!$I$48)-入力部分!$I$30)/入力部分!$I$39)^2) -> 1.050556896e-10 | AD141: 1.41825181e-08
I142: 136 | J142: =(入力部分!D$7*N142+入力部分!D$8*S142+入力部分!D$9*X142+入力部分!D$10*AC142)/(SUM(入力部分!D$7:D$10)) -> 0.003266785768 | M142: 136 | N142: =1/入力部分!$I$36/(2*3.14)^0.5*EXP(-1/2*(((M142+入力部分!$I$45)-入力部分!$I$27)/入力部分!$I$36)^2) -> 0.003973664474 | O142: 0.5404183684 | R142: 136 | S142: =1/入力部分!$I$37/(2*3.14)^0.5*EXP(-1/2*(((R142+入力部分!$I$46)-入力部分!$I$28)/入力部分!$I$37)^2) -> 0.006184675472 | T142: 0.8411158642 | W142: 136 | X142: =1/入力部分!$I$38/(2*3.14)^0.5*EXP(-1/2*(((W142+入力部分!$I$47)-入力部分!$I$29)/入力部分!$I$38)^2) -> 0.001803297565 | Y142: 0.2452484689 | AB142: 136 | AC142: =1/入力部分!$I$39/(2*3.14)^0.5*EXP(-1/2*(((AB142+入力部分!$I$48)-入力部分!$I$30)/入力部分!$I$39)^2) -> 6.215488878e-11 | AD142: 8.453064875e-09
I143: 137 | J143: =(入力部分!D$7*N143+入力部分!D$8*S143+入力部分!D$9*X143+入力部分!D$10*AC143)/(SUM(入力部分!D$7:D$10)) -> 0.003217377169 | M143: 137 | N143: =1/入力部分!$I$36/(2*3.14)^0.5*EXP(-1/2*(((M143+入力部分!$I$45)-入力部分!$I$27)/入力部分!$I$36)^2) -> 0.003980246067 | O143: 0.5452937112 | R143: 137 | S143: =1/入力部分!$I$37/(2*3.14)^0.5*EXP(-1/2*(((R143+入力部分!$I$46)-入力部分!$I$28)/入力部分!$I$37)^2) -> 0.00613281088 | T143: 0.8401950906 | W143: 137 | X143: =1/入力部分!$I$38/(2*3.14)^0.5*EXP(-1/2*(((W143+入力部分!$I$47)-入力部分!$I$29)/入力部分!$I$38)^2) -> 0.001680169287 | Y143: 0.2301831923 | AB143: 137 | AC143: =1/入力部分!$I$39/(2*3.14)^0.5*EXP(-1/2*(((AB143+入力部分!$I$48)-入力部分!$I$30)/入力部分!$I$39)^2) -> 3.651868036e-11 | AD143: 5.003059209e-09
I144: 138 | J144: =(入力部分!D$7*N144+入力部分!D$8*S144+入力部分!D$9*X144+入力部分!D$10*AC144)/(SUM(入力部分!D$7:D$10)) -> 0.003169025159 | M144: 138 | N144: =1/入力部分!$I$36/(2*3.14)^0.5*EXP(-1/2*(((M144+入力部分!$I$45)-入力部分!$I$27)/入力部分!$I$36)^2) -> 0.003986431804 | O144: 0.550127589 | R144: 138 | S144: =1/入力部分!$I$37/(2*3.14)^0.5*EXP(-1/2*(((R144+入力部分!$I$46)-入力部分!$I$28)/入力部分!$I$37)^2) -> 0.006079548523 | T144: 0.8389776961 | W144: 138 | X144: =1/入力部分!$I$38/(2*3.14)^0.5*EXP(-1/2*(((W144+入力部分!$I$47)-入力部分!$I$29)/入力部分!$I$38)^2) -> 0.001563561929 | Y144: 0.2157715462 | AB144: 138 | AC144: =1/入力部分!$I$39/(2*3.14)^0.5*EXP(-1/2*(((AB144+入力部分!$I$48)-入力部分!$I$30)/入力部分!$I$39)^2) -> 2.130781529e-11 | AD144: 2.94047851e-09
I145: 139 | J145: =(入力部分!D$7*N145+入力部分!D$8*S145+入力部分!D$9*X145+入力部分!D$10*AC145)/(SUM(入力部分!D$7:D$10)) -> 0.003121700711 | M145: 139 | N145: =1/入力部分!$I$36/(2*3.14)^0.5*EXP(-1/2*(((M145+入力部分!$I$45)-入力部分!$I$27)/入力部分!$I$36)^2) -> 0.003992219806 | O145: 0.554918553 | R145: 139 | S145: =1/入力部分!$I$37/(2*3.14)^0.5*EXP(-1/2*(((R145+入力部分!$I$46)-入力部分!$I$28)/入力部分!$I$37)^2) -> 0.006024932501 | T145: 0.8374656177 | W145: 139 | X145: =1/入力部分!$I$38/(2*3.14)^0.5*EXP(-1/2*(((W145+入力部分!$I$47)-入力部分!$I$29)/入力部分!$I$38)^2) -> 0.001453294177 | Y145: 0.2020078906 | AB145: 139 | AC145: =1/入力部分!$I$39/(2*3.14)^0.5*EXP(-1/2*(((AB145+入力部分!$I$48)-入力部分!$I$30)/入力部分!$I$39)^2) -> 1.234658462e-11 | AD145: 1.716175262e-09
I146: 140 | J146: =(入力部分!D$7*N146+入力部分!D$8*S146+入力部分!D$9*X146+入力部分!D$10*AC146)/(SUM(入力部分!D$7:D$10)) -> 0.00307537277 | M146: 140 | N146: =1/入力部分!$I$36/(2*3.14)^0.5*EXP(-1/2*(((M146+入力部分!$I$45)-入力部分!$I$27)/入力部分!$I$36)^2) -> 0.003997608313 | O146: 0.5596651638 | R146: 140 | S146: =1/入力部分!$I$37/(2*3.14)^0.5*EXP(-1/2*(((R146+入力部分!$I$46)-入力部分!$I$28)/入力部分!$I$37)^2) -> 0.005969007748 | T146: 0.8356610847 | W146: 140 | X146: =1/入力部分!$I$38/(2*3.14)^0.5*EXP(-1/2*(((W146+入力部分!$I$47)-入力部分!$I$29)/入力部分!$I$38)^2) -> 0.001349175294 | Y146: 0.1888845412 | AB146: 140 | AC146: =1/入力部分!$I$39/(2*3.14)^0.5*EXP(-1/2*(((AB146+入力部分!$I$48)-入力部分!$I$30)/入力部分!$I$39)^2) -> 7.104586682e-12 | AD146: 9.946421355e-10
I147: 141 | J147: =(入力部分!D$7*N147+入力部分!D$8*S147+入力部分!D$9*X147+入力部分!D$10*AC147)/(SUM(入力部分!D$7:D$10)) -> 0.003030008615 | M147: 141 | N147: =1/入力部分!$I$36/(2*3.14)^0.5*EXP(-1/2*(((M147+入力部分!$I$45)-入力部分!$I$27)/入力部分!$I$36)^2) -> 0.004002595685 | O147: 0.5643659916 | R147: 141 | S147: =1/入力部分!$I$37/(2*3.14)^0.5*EXP(-1/2*(((R147+入力部分!$I$46)-入力部分!$I$28)/入力部分!$I$37)^2) -> 0.00591181996 | T147: 0.8335666144 | W147: 141 | X147: =1/入力部分!$I$38/(2*3.14)^0.5*EXP(-1/2*(((W147+入力部分!$I$47)-入力部分!$I$29)/入力部分!$I$38)^2) -> 0.001251006674 | Y147: 0.1763919411 | AB147: 141 | AC147: =1/入力部分!$I$39/(2*3.14)^0.5*EXP(-1/2*(((AB147+入力部分!$I$48)-入力部分!$I$30)/入力部分!$I$39)^2) -> 4.059895578e-12 | AD147: 5.724452766e-10
I148: 142 | J148: =(入力部分!D$7*N148+入力部分!D$8*S148+入力部分!D$9*X148+入力部分!D$10*AC148)/(SUM(入力部分!D$7:D$10)) -> 0.002985574212 | M148: 142 | N148: =1/入力部分!$I$36/(2*3.14)^0.5*EXP(-1/2*(((M148+入力部分!$I$45)-入力部分!$I$27)/入力部分!$I$36)^2) -> 0.004007180405 | O148: 0.5690196175 | R148: 142 | S148: =1/入力部分!$I$37/(2*3.14)^0.5*EXP(-1/2*(((R148+入力部分!$I$46)-入力部分!$I$28)/入力部分!$I$37)^2) -> 0.005853415544 | T148: 0.8311850072 | W148: 142 | X148: =1/入力部分!$I$38/(2*3.14)^0.5*EXP(-1/2*(((W148+入力部分!$I$47)-入力部分!$I$29)/入力部分!$I$38)^2) -> 0.001158583326 | Y148: 0.1645188323 | AB148: 142 | AC148: =1/入力部分!$I$39/(2*3.14)^0.5*EXP(-1/2*(((AB148+入力部分!$I$48)-入力部分!$I$30)/入力部分!$I$39)^2) -> 2.303960217e-12 | AD148: 3.271623509e-10
I149: 143 | J149: =(入力部分!D$7*N149+入力部分!D$8*S149+入力部分!D$9*X149+入力部分!D$10*AC149)/(SUM(入力部分!D$7:D$10)) -> 0.002942034536 | M149: 143 | N149: =1/入力部分!$I$36/(2*3.14)^0.5*EXP(-1/2*(((M149+入力部分!$I$45)-入力部分!$I$27)/入力部分!$I$36)^2) -> 0.004011361075 | O149: 0.5736246337 | R149: 143 | S149: =1/入力部分!$I$37/(2*3.14)^0.5*EXP(-1/2*(((R149+入力部分!$I$46)-入力部分!$I$28)/入力部分!$I$37)^2) -> 0.005793841545 | T149: 0.828519341 | W149: 143 | X149: =1/入力部分!$I$38/(2*3.14)^0.5*EXP(-1/2*(((W149+入力部分!$I$47)-入力部分!$I$29)/入力部分!$I$38)^2) -> 0.001071695289 | Y149: 0.1532524263 | AB149: 143 | AC149: =1/入力部分!$I$39/(2*3.14)^0.5*EXP(-1/2*(((AB149+入力部分!$I$48)-入力部分!$I$30)/入力部分!$I$39)^2) -> 1.298431833e-12 | AD149: 1.856757521e-10
I150: 144 | J150: =(入力部分!D$7*N150+入力部分!D$8*S150+入力部分!D$9*X150+入力部分!D$10*AC150)/(SUM(入力部分!D$7:D$10)) -> 0.002899353893 | M150: 144 | N150: =1/入力部分!$I$36/(2*3.14)^0.5*EXP(-1/2*(((M150+入力部分!$I$45)-入力部分!$I$27)/入力部分!$I$36)^2) -> 0.004015136419 | O150: 0.5781796444 | R150: 144 | S150: =1/入力部分!$I$37/(2*3.14)^0.5*EXP(-1/2*(((R150+入力部分!$I$46)-入力部分!$I$28)/入力部分!$I$37)^2) -> 0.005733145593 | T150: 0.8255729653 | W150: 144 | X150: =1/入力部分!$I$38/(2*3.14)^0.5*EXP(-1/2*(((W150+入力部分!$I$47)-入力部分!$I$29)/入力部分!$I$38)^2) -> 0.000990128974 | Y150: 0.1425785723 | AB150: 144 | AC150: =1/入力部分!$I$39/(2*3.14)^0.5*EXP(-1/2*(((AB150+入力部分!$I$48)-入力部分!$I$30)/入力部分!$I$39)^2) -> 7.266870128e-13 | AD150: 1.046429298e-10
I151: 145 | J151: =(入力部分!D$7*N151+入力部分!D$8*S151+入力部分!D$9*X151+入力部分!D$10*AC151)/(SUM(入力部分!D$7:D$10)) -> 0.002857496204 | M151: 145 | N151: =1/入力部分!$I$36/(2*3.14)^0.5*EXP(-1/2*(((M151+入力部分!$I$45)-入力部分!$I$27)/入力部分!$I$36)^2) -> 0.004018505286 | O151: 0.5826832665 | R151: 145 | S151: =1/入力部分!$I$37/(2*3.14)^0.5*EXP(-1/2*(((R151+入力部分!$I$46)-入力部分!$I$28)/入力部分!$I$37)^2) -> 0.00567137583 | T151: 0.8223494954 | W151: 145 | X151: =1/入力部分!$I$38/(2*3.14)^0.5*EXP(-1/2*(((W151+入力部分!$I$47)-入力部分!$I$29)/入力部分!$I$38)^2) -> 0.0009136684273 | Y151: 0.132481922 | AB151: 145 | AC151: =1/入力部分!$I$39/(2*3.14)^0.5*EXP(-1/2*(((AB151+入力部分!$I$48)-入力部分!$I$30)/入力部分!$I$39)^2) -> 4.038868461e-13 | AD151: 5.856359269e-11
I152: 146 | J152: =(入力部分!D$7*N152+入力部分!D$8*S152+入力部分!D$9*X152+入力部分!D$10*AC152)/(SUM(入力部分!D$7:D$10)) -> 0.00281642528 | M152: 146 | N152: =1/入力部分!$I$36/(2*3.14)^0.5*EXP(-1/2*(((M152+入力部分!$I$45)-入力部分!$I$27)/入力部分!$I$36)^2) -> 0.004021466647 | O152: 0.5871341305 | R152: 146 | S152: =1/入力部分!$I$37/(2*3.14)^0.5*EXP(-1/2*(((R152+入力部分!$I$46)-入力部分!$I$28)/入力部分!$I$37)^2) -> 0.005608580858 | T152: 0.8188528053 | W152: 146 | X152: =1/入力部分!$I$38/(2*3.14)^0.5*EXP(-1/2*(((W152+入力部分!$I$47)-入力部分!$I$29)/入力部分!$I$38)^2) -> 0.0008420965078 | Y152: 0.1229460901 | AB152: 146 | AC152: =1/入力部分!$I$39/(2*3.14)^0.5*EXP(-1/2*(((AB152+入力部分!$I$48)-入力部分!$I$30)/入力部分!$I$39)^2) -> 2.229236195e-13 | AD152: 3.254684845e-11
I153: 147 | J153: =(入力部分!D$7*N153+入力部分!D$8*S153+入力部分!D$9*X153+入力部分!D$10*AC153)/(SUM(入力部分!D$7:D$10)) -> 0.002776105071 | M153: 147 | N153: =1/入力部分!$I$36/(2*3.14)^0.5*EXP(-1/2*(((M153+入力部分!$I$45)-入力部分!$I$27)/入力部分!$I$36)^2) -> 0.004024019597 | O153: 0.5915308808 | R153: 147 | S153: =1/入力部分!$I$37/(2*3.14)^0.5*EXP(-1/2*(((R153+入力部分!$I$46)-入力部分!$I$28)/入力部分!$I$37)^2) -> 0.005544809665 | T153: 0.8150870208 | W153: 147 | X153: =1/入力部分!$I$38/(2*3.14)^0.5*EXP(-1/2*(((W153+入力部分!$I$47)-入力部分!$I$29)/入力部分!$I$38)^2) -> 0.0007751959862 | Y153: 0.11395381 | AB153: 147 | AC153: =1/入力部分!$I$39/(2*3.14)^0.5*EXP(-1/2*(((AB153+入力部分!$I$48)-入力部分!$I$30)/入力部分!$I$39)^2) -> 1.22190243e-13 | AD153: 1.796196573e-11
I154: 148 | J154: =(入力部分!D$7*N154+入力部分!D$8*S154+入力部分!D$9*X154+入力部分!D$10*AC154)/(SUM(入力部分!D$7:D$10)) -> 0.002736499897 | M154: 148 | N154: =1/入力部分!$I$36/(2*3.14)^0.5*EXP(-1/2*(((M154+入力部分!$I$45)-入力部分!$I$27)/入力部分!$I$36)^2) -> 0.004026163355 | O154: 0.5958721766 | R154: 148 | S154: =1/入力部分!$I$37/(2*3.14)^0.5*EXP(-1/2*(((R154+入力部分!$I$46)-入力部分!$I$28)/入力部分!$I$37)^2) -> 0.00548011157 | T154: 0.8110565124 | W154: 148 | X154: =1/入力部分!$I$38/(2*3.14)^0.5*EXP(-1/2*(((W154+入力部分!$I$47)-入力部分!$I$29)/入力部分!$I$38)^2) -> 0.0007127505559 | Y154: 0.1054870823 | AB154: 148 | AC154: =1/入力部分!$I$39/(2*3.14)^0.5*EXP(-1/2*(((AB154+入力部分!$I$48)-入力部分!$I$30)/入力部分!$I$39)^2) -> 6.651215779e-14 | AD154: 9.843799353e-12
I155: 149 | J155: =(入力部分!D$7*N155+入力部分!D$8*S155+入力部分!D$9*X155+入力部分!D$10*AC155)/(SUM(入力部分!D$7:D$10)) -> 0.002697574657 | M155: 149 | N155: =1/入力部分!$I$36/(2*3.14)^0.5*EXP(-1/2*(((M155+入力部分!$I$45)-入力部分!$I$27)/入力部分!$I$36)^2) -> 0.004027897267 | O155: 0.6001566928 | R155: 149 | S155: =1/入力部分!$I$37/(2*3.14)^0.5*EXP(-1/2*(((R155+入力部分!$I$46)-入力部分!$I$28)/入力部分!$I$37)^2) -> 0.005414536155 | T155: 0.8067658871 | W155: 149 | X155: =1/入力部分!$I$38/(2*3.14)^0.5*EXP(-1/2*(((W155+入力部分!$I$47)-入力部分!$I$29)/入力部分!$I$38)^2) -> 0.0006545457608 | Y155: 0.09752731835 | AB155: 149 | AC155: =1/入力部分!$I$39/(2*3.14)^0.5*EXP(-1/2*(((AB155+入力部分!$I$48)-入力部分!$I$30)/入力部分!$I$39)^2) -> 3.595419855e-14 | AD155: 5.357175584e-12
I156: 150 | J156: =(入力部分!D$7*N156+入力部分!D$8*S156+入力部分!D$9*X156+入力部分!D$10*AC156)/(SUM(入力部分!D$7:D$10)) -> 0.002659295012 | M156: 150 | N156: =1/入力部分!$I$36/(2*3.14)^0.5*EXP(-1/2*(((M156+入力部分!$I$45)-入力部分!$I$27)/入力部分!$I$36)^2) -> 0.004029220801 | O156: 0.6043831202 | R156: 150 | S156: =1/入力部分!$I$37/(2*3.14)^0.5*EXP(-1/2*(((R156+入力部分!$I$46)-入力部分!$I$28)/入力部分!$I$37)^2) -> 0.005348133207 | T156: 0.802219981 | W156: 150 | X156: =1/入力部分!$I$38/(2*3.14)^0.5*EXP(-1/2*(((W156+入力部分!$I$47)-入力部分!$I$29)/入力部分!$I$38)^2) -> 0.0006003698366 | Y156: 0.09005547548 | AB156: 150 | AC156: =1/入力部分!$I$39/(2*3.14)^0.5*EXP(-1/2*(((AB156+入力部分!$I$48)-入力部分!$I$30)/入力部分!$I$39)^2) -> 1.930110856e-14 | AD156: 2.895166284e-12
I157: 151 | J157: =(入力部分!D$7*N157+入力部分!D$8*S157+入力部分!D$9*X157+入力部分!D$10*AC157)/(SUM(入力部分!D$7:D$10)) -> 0.002621627556 | M157: 151 | N157: =1/入力部分!$I$36/(2*3.14)^0.5*EXP(-1/2*(((M157+入力部分!$I$45)-入力部分!$I$27)/入力部分!$I$36)^2) -> 0.004030133553 | O157: 0.6085501666 | R157: 151 | S157: =1/入力部分!$I$37/(2*3.14)^0.5*EXP(-1/2*(((R157+入力部分!$I$46)-入力部分!$I$28)/入力部分!$I$37)^2) -> 0.005280952651 | T157: 0.7974238502 | W157: 151 | X157: =1/入力部分!$I$38/(2*3.14)^0.5*EXP(-1/2*(((W157+入力部分!$I$47)-入力部分!$I$29)/入力部分!$I$38)^2) -> 0.0005500144697 | Y157: 0.08305218493 | AB157: 151 | AC157: =1/入力部分!$I$39/(2*3.14)^0.5*EXP(-1/2*(((AB157+入力部分!$I$48)-入力部分!$I$30)/入力部分!$I$39)^2) -> 1.02896111e-14 | AD157: 1.553731276e-12
I158: 152 | J158: =(入力部分!D$7*N158+入力部分!D$8*S158+入力部分!D$9*X158+入力部分!D$10*AC158)/(SUM(入力部分!D$7:D$10)) -> 0.002584539958 | M158: 152 | N158: =1/入力部分!$I$36/(2*3.14)^0.5*EXP(-1/2*(((M158+入力部分!$I$45)-入力部分!$I$27)/入力部分!$I$36)^2) -> 0.004030635244 | O158: 0.6126565571 | R158: 152 | S158: =1/入力部分!$I$37/(2*3.14)^0.5*EXP(-1/2*(((R158+入力部分!$I$46)-入力部分!$I$28)/入力部分!$I$37)^2) -> 0.005213044492 | T158: 0.7923827627 | W158: 152 | X158: =1/入力部分!$I$38/(2*3.14)^0.5*EXP(-1/2*(((W158+入力部分!$I$47)-入力部分!$I$29)/入力部分!$I$38)^2) -> 0.0005032754732 | Y158: 0.07649787192 | AB158: 152 | AC158: =1/入力部分!$I$39/(2*3.14)^0.5*EXP(-1/2*(((AB158+入力部分!$I$48)-入力部分!$I$30)/入力部分!$I$39)^2) -> 5.447531295e-15 | AD158: 8.280247568e-13
I159: 153 | J159: =(入力部分!D$7*N159+入力部分!D$8*S159+入力部分!D$9*X159+入力部分!D$10*AC159)/(SUM(入力部分!D$7:D$10)) -> 0.002548001093 | M159: 153 | N159: =1/入力部分!$I$36/(2*3.14)^0.5*EXP(-1/2*(((M159+入力部分!$I$45)-入力部分!$I$27)/入力部分!$I$36)^2) -> 0.004030725719 | O159: 0.6167010351 | R159: 153 | S159: =1/入力部分!$I$37/(2*3.14)^0.5*EXP(-1/2*(((R159+入力部分!$I$46)-入力部分!$I$28)/入力部分!$I$37)^2) -> 0.005144458753 | T159: 0.7871021892 | W159: 153 | X159: =1/入力部分!$I$38/(2*3.14)^0.5*EXP(-1/2*(((W159+入力部分!$I$47)-入力部分!$I$29)/入力部分!$I$38)^2) -> 0.0004599533825 | Y159: 0.07037286753 | AB159: 153 | AC159: =1/入力部分!$I$39/(2*3.14)^0.5*EXP(-1/2*(((AB159+入力部分!$I$48)-入力部分!$I$30)/入力部分!$I$39)^2) -> 2.864076232e-15 | AD159: 4.382036635e-13
I160: 154 | J160: =(入力部分!D$7*N160+入力部分!D$8*S160+入力部分!D$9*X160+入力部分!D$10*AC160)/(SUM(入力部分!D$7:D$10)) -> 0.002511981143 | M160: 154 | N160: =1/入力部分!$I$36/(2*3.14)^0.5*EXP(-1/2*(((M160+入力部分!$I$45)-入力部分!$I$27)/入力部分!$I$36)^2) -> 0.004030404952 | O160: 0.6206823626 | R160: 154 | S160: =1/入力部分!$I$37/(2*3.14)^0.5*EXP(-1/2*(((R160+入力部分!$I$46)-入力部分!$I$28)/入力部分!$I$37)^2) -> 0.005075245416 | T160: 0.781587794 | W160: 154 | X160: =1/入力部分!$I$38/(2*3.14)^0.5*EXP(-1/2*(((W160+入力部分!$I$47)-入力部分!$I$29)/入力部分!$I$38)^2) -> 0.0004198539744 | Y160: 0.06465751205 | AB160: 154 | AC160: =1/入力部分!$I$39/(2*3.14)^0.5*EXP(-1/2*(((AB160+入力部分!$I$48)-入力部分!$I$30)/入力部分!$I$39)^2) -> 1.495386579e-15 | AD160: 2.302895332e-13
I161: 155 | J161: =(入力部分!D$7*N161+入力部分!D$8*S161+入力部分!D$9*X161+入力部分!D$10*AC161)/(SUM(入力部分!D$7:D$10)) -> 0.002476451692 | M161: 155 | N161: =1/入力部分!$I$36/(2*3.14)^0.5*EXP(-1/2*(((M161+入力部分!$I$45)-入力部分!$I$27)/入力部分!$I$36)^2) -> 0.00402967304 | O161: 0.6245993212 | R161: 155 | S161: =1/入力部分!$I$37/(2*3.14)^0.5*EXP(-1/2*(((R161+入力部分!$I$46)-入力部分!$I$28)/入力部分!$I$37)^2) -> 0.00500545436 | T161: 0.7758454257 | W161: 155 | X161: =1/入力部分!$I$38/(2*3.14)^0.5*EXP(-1/2*(((W161+入力部分!$I$47)-入力部分!$I$29)/入力部分!$I$38)^2) -> 0.0003827887103 | Y161: 0.05933225009 | AB161: 155 | AC161: =1/入力部分!$I$39/(2*3.14)^0.5*EXP(-1/2*(((AB161+入力部分!$I$48)-入力部分!$I$30)/入力部分!$I$39)^2) -> 7.753654591e-16 | AD161: 1.201816462e-13
I162: 156 | J162: =(入力部分!D$7*N162+入力部分!D$8*S162+入力部分!D$9*X162+入力部分!D$10*AC162)/(SUM(入力部分!D$7:D$10)) -> 0.002441385793 | M162: 156 | N162: =1/入力部分!$I$36/(2*3.14)^0.5*EXP(-1/2*(((M162+入力部分!$I$45)-入力部分!$I$27)/入力部分!$I$36)^2) -> 0.004028530207 | O162: 0.6284507124 | R162: 156 | S162: =1/入力部分!$I$37/(2*3.14)^0.5*EXP(-1/2*(((R162+入力部分!$I$46)-入力部分!$I$28)/入力部分!$I$37)^2) -> 0.004935135305 | T162: 0.7698811075 | W162: 156 | X162: =1/入力部分!$I$38/(2*3.14)^0.5*EXP(-1/2*(((W162+入力部分!$I$47)-入力部分!$I$29)/入力部分!$I$38)^2) -> 0.0003485751098 | Y162: 0.05437771712 | AB162: 156 | AC162: =1/入力部分!$I$39/(2*3.14)^0.5*EXP(-1/2*(((AB162+入力部分!$I$48)-入力部分!$I$30)/入力部分!$I$39)^2) -> 3.99248679e-16 | AD162: 6.228279392e-14
I163: 157 | J163: =(入力部分!D$7*N163+入力部分!D$8*S163+入力部分!D$9*X163+入力部分!D$10*AC163)/(SUM(入力部分!D$7:D$10)) -> 0.002406758022 | M163: 157 | N163: =1/入力部分!$I$36/(2*3.14)^0.5*EXP(-1/2*(((M163+入力部分!$I$45)-入力部分!$I$27)/入力部分!$I$36)^2) -> 0.004026976804 | O163: 0.6322353582 | R163: 157 | S163: =1/入力部分!$I$37/(2*3.14)^0.5*EXP(-1/2*(((R163+入力部分!$I$46)-入力部分!$I$28)/入力部分!$I$37)^2) -> 0.004864337754 | T163: 0.7637010273 | W163: 157 | X163: =1/入力部分!$I$38/(2*3.14)^0.5*EXP(-1/2*(((W163+入力部分!$I$47)-入力部分!$I$29)/入力部分!$I$38)^2) -> 0.0003170370552 | Y163: 0.04977481767 | AB163: 157 | AC163: =1/入力部分!$I$39/(2*3.14)^0.5*EXP(-1/2*(((AB163+入力部分!$I$48)-入力部分!$I$30)/入力部分!$I$39)^2) -> 2.041571487e-16 | AD163: 3.205267234e-14
I164: 158 | J164: =(入力部分!D$7*N164+入力部分!D$8*S164+入力部分!D$9*X164+入力部分!D$10*AC164)/(SUM(入力部分!D$7:D$10)) -> 0.002372544523 | M164: 158 | N164: =1/入力部分!$I$36/(2*3.14)^0.5*EXP(-1/2*(((M164+入力部分!$I$45)-入力部分!$I$27)/入力部分!$I$36)^2) -> 0.004025013305 | O164: 0.6359521021 | R164: 158 | S164: =1/入力部分!$I$37/(2*3.14)^0.5*EXP(-1/2*(((R164+入力部分!$I$46)-入力部分!$I$28)/入力部分!$I$37)^2) -> 0.004793110937 | T164: 0.757311528 | W164: 158 | X164: =1/入力部分!$I$38/(2*3.14)^0.5*EXP(-1/2*(((W164+入力部分!$I$47)-入力部分!$I$29)/入力部分!$I$38)^2) -> 0.0002880050338 | Y164: 0.04550479534 | AB164: 158 | AC164: =1/入力部分!$I$39/(2*3.14)^0.5*EXP(-1/2*(((AB164+入力部分!$I$48)-入力部分!$I$30)/入力部分!$I$39)^2) -> 1.036739776e-16 | AD164: 1.638048847e-14
I165: 159 | J165: =(入力部分!D$7*N165+入力部分!D$8*S165+入力部分!D$9*X165+入力部分!D$10*AC165)/(SUM(入力部分!D$7:D$10)) -> 0.002338723027 | M165: 159 | N165: =1/入力部分!$I$36/(2*3.14)^0.5*EXP(-1/2*(((M165+入力部分!$I$45)-入力部分!$I$27)/入力部分!$I$36)^2) -> 0.00402264031 | O165: 0.6395998093 | R165: 159 | S165: =1/入力部分!$I$37/(2*3.14)^0.5*EXP(-1/2*(((R165+入力部分!$I$46)-入力部分!$I$28)/入力部分!$I$37)^2) -> 0.004721503755 | T165: 0.750719097 | W165: 159 | X165: =1/入力部分!$I$38/(2*3.14)^0.5*EXP(-1/2*(((W165+入力部分!$I$47)-入力部分!$I$29)/入力部分!$I$38)^2) -> 0.0002613163189 | Y165: 0.04154929471 | AB165: 159 | AC165: =1/入力部分!$I$39/(2*3.14)^0.5*EXP(-1/2*(((AB165+入力部分!$I$48)-入力部分!$I$30)/入力部分!$I$39)^2) -> 5.228281916e-17 | AD165: 8.312968247e-15
I166: 160 | J166: =(入力部分!D$7*N166+入力部分!D$8*S166+入力部分!D$9*X166+入力部分!D$10*AC166)/(SUM(入力部分!D$7:D$10)) -> 0.002305272866 | M166: 160 | N166: =1/入力部分!$I$36/(2*3.14)^0.5*EXP(-1/2*(((M166+入力部分!$I$45)-入力部分!$I$27)/入力部分!$I$36)^2) -> 0.004019858546 | O166: 0.6431773674 | R166: 160 | S166: =1/入力部分!$I$37/(2*3.14)^0.5*EXP(-1/2*(((R166+入力部分!$I$46)-入力部分!$I$28)/入力部分!$I$37)^2) -> 0.004649564728 | T166: 0.7439303565 | W166: 160 | X166: =1/入力部分!$I$38/(2*3.14)^0.5*EXP(-1/2*(((W166+入力部分!$I$47)-入力部分!$I$29)/入力部分!$I$38)^2) -> 0.0002368150972 | Y166: 0.03789041555 | AB166: 160 | AC166: =1/入力部分!$I$39/(2*3.14)^0.5*EXP(-1/2*(((AB166+入力部分!$I$48)-入力部分!$I$30)/入力部分!$I$39)^2) -> 2.618377735e-17 | AD166: 4.189404376e-15
I167: 161 | J167: =(入力部分!D$7*N167+入力部分!D$8*S167+入力部分!D$9*X167+入力部分!D$10*AC167)/(SUM(入力部分!D$7:D$10)) -> 0.002272174972 | M167: 161 | N167: =1/入力部分!$I$36/(2*3.14)^0.5*EXP(-1/2*(((M167+入力部分!$I$45)-入力部分!$I$27)/入力部分!$I$36)^2) -> 0.004016668862 | O167: 0.6466836869 | R167: 161 | S167: =1/入力部分!$I$37/(2*3.14)^0.5*EXP(-1/2*(((R167+入力部分!$I$46)-入力部分!$I$28)/入力部分!$I$37)^2) -> 0.004577341942 | T167: 0.7369520526 | W167: 161 | X167: =1/入力部分!$I$38/(2*3.14)^0.5*EXP(-1/2*(((W167+入力部分!$I$47)-入力部分!$I$29)/入力部分!$I$38)^2) -> 0.0002143525428 | Y167: 0.03451075938 | AB167: 161 | AC167: =1/入力部分!$I$39/(2*3.14)^0.5*EXP(-1/2*(((AB167+入力部分!$I$48)-入力部分!$I$30)/入力部分!$I$39)^2) -> 1.302235911e-17 | AD167: 2.096599817e-15
I168: 162 | J168: =(入力部分!D$7*N168+入力部分!D$8*S168+入力部分!D$9*X168+入力部分!D$10*AC168)/(SUM(入力部分!D$7:D$10)) -> 0.002239411864 | M168: 162 | N168: =1/入力部分!$I$36/(2*3.14)^0.5*EXP(-1/2*(((M168+入力部分!$I$45)-入力部分!$I$27)/入力部分!$I$36)^2) -> 0.004013072233 | O168: 0.6501177018 | R168: 162 | S168: =1/入力部分!$I$37/(2*3.14)^0.5*EXP(-1/2*(((R168+入力部分!$I$46)-入力部分!$I$28)/入力部分!$I$37)^2) -> 0.004504882995 | T168: 0.7297910453 | W168: 162 | X168: =1/入力部分!$I$38/(2*3.14)^0.5*EXP(-1/2*(((W168+入力部分!$I$47)-入力部分!$I$29)/入力部分!$I$38)^2) -> 0.0001937868459 | Y168: 0.03139346904 | AB168: 162 | AC168: =1/入力部分!$I$39/(2*3.14)^0.5*EXP(-1/2*(((AB168+入力部分!$I$48)-入力部分!$I$30)/入力部分!$I$39)^2) -> 6.431778827e-18 | AD168: 1.04194817e-15
I169: 163 | J169: =(入力部分!D$7*N169+入力部分!D$8*S169+入力部分!D$9*X169+入力部分!D$10*AC169)/(SUM(入力部分!D$7:D$10)) -> 0.002206967627 | M169: 163 | N169: =1/入力部分!$I$36/(2*3.14)^0.5*EXP(-1/2*(((M169+入力部分!$I$45)-入力部分!$I$27)/入力部分!$I$36)^2) -> 0.004009069757 | O169: 0.6534783704 | R169: 163 | S169: =1/入力部分!$I$37/(2*3.14)^0.5*EXP(-1/2*(((R169+入力部分!$I$46)-入力部分!$I$28)/入力部分!$I$37)^2) -> 0.004432234955 | T169: 0.7224542977 | W169: 163 | X169: =1/入力部分!$I$38/(2*3.14)^0.5*EXP(-1/2*(((W169+入力部分!$I$47)-入力部分!$I$29)/入力部分!$I$38)^2) -> 0.0001749831978 | Y169: 0.02852226124 | AB169: 163 | AC169: =1/入力部分!$I$39/(2*3.14)^0.5*EXP(-1/2*(((AB169+入力部分!$I$48)-入力部分!$I$30)/入力部分!$I$39)^2) -> 3.154689367e-18 | AD169: 5.142143669e-16
I170: 164 | J170: =(入力部分!D$7*N170+入力部分!D$8*S170+入力部分!D$9*X170+入力部分!D$10*AC170)/(SUM(入力部分!D$7:D$10)) -> 0.00217482788 | M170: 164 | N170: =1/入力部分!$I$36/(2*3.14)^0.5*EXP(-1/2*(((M170+入力部分!$I$45)-入力部分!$I$27)/入力部分!$I$36)^2) -> 0.004004662654 | O170: 0.6567646753 | R170: 164 | S170: =1/入力部分!$I$37/(2*3.14)^0.5*EXP(-1/2*(((R170+入力部分!$I$46)-入力部分!$I$28)/入力部分!$I$37)^2) -> 0.004359444304 | T170: 0.7149488659 | W170: 164 | X170: =1/入力部分!$I$38/(2*3.14)^0.5*EXP(-1/2*(((W170+入力部分!$I$47)-入力部分!$I$29)/入力部分!$I$38)^2) -> 0.0001578137371 | Y170: 0.02588145288 | AB170: 164 | AC170: =1/入力部分!$I$39/(2*3.14)^0.5*EXP(-1/2*(((AB170+入力部分!$I$48)-入力部分!$I$30)/入力部分!$I$39)^2) -> 1.536618892e-18 | AD170: 2.520054984e-16
I171: 165 | J171: =(入力部分!D$7*N171+入力部分!D$8*S171+入力部分!D$9*X171+入力部分!D$10*AC171)/(SUM(入力部分!D$7:D$10)) -> 0.002142979735 | M171: 165 | N171: =1/入力部分!$I$36/(2*3.14)^0.5*EXP(-1/2*(((M171+入力部分!$I$45)-入力部分!$I$27)/入力部分!$I$36)^2) -> 0.003999852269 | O171: 0.6599756244 | R171: 165 | S171: =1/入力部分!$I$37/(2*3.14)^0.5*EXP(-1/2*(((R171+入力部分!$I$46)-入力部分!$I$28)/入力部分!$I$37)^2) -> 0.004286556897 | T171: 0.707281888 | W171: 165 | X171: =1/入力部分!$I$38/(2*3.14)^0.5*EXP(-1/2*(((W171+入力部分!$I$47)-入力部分!$I$29)/入力部分!$I$38)^2) -> 0.0001421574615 | Y171: 0.02345598115 | AB171: 165 | AC171: =1/入力部分!$I$39/(2*3.14)^0.5*EXP(-1/2*(((AB171+入力部分!$I$48)-入力部分!$I$30)/入力部分!$I$39)^2) -> 7.43292586e-19 | AD171: 1.226432767e-16
I172: 166 | J172: =(入力部分!D$7*N172+入力部分!D$8*S172+入力部分!D$9*X172+入力部分!D$10*AC172)/(SUM(入力部分!D$7:D$10)) -> 0.002111411754 | M172: 166 | N172: =1/入力部分!$I$36/(2*3.14)^0.5*EXP(-1/2*(((M172+入力部分!$I$45)-入力部分!$I$27)/入力部分!$I$36)^2) -> 0.003994640066 | O172: 0.663110251 | R172: 166 | S172: =1/入力部分!$I$37/(2*3.14)^0.5*EXP(-1/2*(((R172+入力部分!$I$46)-入力部分!$I$28)/入力部分!$I$37)^2) -> 0.004213617915 | T172: 0.6994605738 | W172: 166 | X172: =1/入力部分!$I$38/(2*3.14)^0.5*EXP(-1/2*(((W172+入力部分!$I$47)-入力部分!$I$29)/入力部分!$I$38)^2) -> 0.0001279001093 | Y172: 0.02123141815 | AB172: 166 | AC172: =1/入力部分!$I$39/(2*3.14)^0.5*EXP(-1/2*(((AB172+入力部分!$I$48)-入力部分!$I$30)/入力部分!$I$39)^2) -> 3.570569571e-19 | AD172: 5.927145488e-17
I173: 167 | J173: =(入力部分!D$7*N173+入力部分!D$8*S173+入力部分!D$9*X173+入力部分!D$10*AC173)/(SUM(入力部分!D$7:D$10)) -> 0.002080113891 | M173: 167 | N173: =1/入力部分!$I$36/(2*3.14)^0.5*EXP(-1/2*(((M173+入力部分!$I$45)-入力部分!$I$27)/入力部分!$I$36)^2) -> 0.003989027633 | O173: 0.6661676147 | R173: 167 | S173: =1/入力部分!$I$37/(2*3.14)^0.5*EXP(-1/2*(((R173+入力部分!$I$46)-入力部分!$I$28)/入力部分!$I$37)^2) -> 0.004140671824 | T173: 0.6914921945 | W173: 167 | X173: =1/入力部分!$I$38/(2*3.14)^0.5*EXP(-1/2*(((W173+入力部分!$I$47)-入力部分!$I$29)/入力部分!$I$38)^2) -> 0.0001149340133 | Y173: 0.01919398023 | AB173: 167 | AC173: =1/入力部分!$I$39/(2*3.14)^0.5*EXP(-1/2*(((AB173+入力部分!$I$48)-入力部分!$I$30)/入力部分!$I$39)^2) -> 1.703331839e-19 | AD173: 2.84456417e-17
I174: 168 | J174: =(入力部分!D$7*N174+入力部分!D$8*S174+入力部分!D$9*X174+入力部分!D$10*AC174)/(SUM(入力部分!D$7:D$10)) -> 0.002049077442 | M174: 168 | N174: =1/入力部分!$I$36/(2*3.14)^0.5*EXP(-1/2*(((M174+入力部分!$I$45)-入力部分!$I$27)/入力部分!$I$36)^2) -> 0.003983016675 | O174: 0.6691468014 | R174: 168 | S174: =1/入力部分!$I$37/(2*3.14)^0.5*EXP(-1/2*(((R174+入力部分!$I$46)-入力部分!$I$28)/入力部分!$I$37)^2) -> 0.004067762333 | T174: 0.6833840719 | W174: 168 | X174: =1/入力部分!$I$38/(2*3.14)^0.5*EXP(-1/2*(((W174+入力部分!$I$47)-入力部分!$I$29)/入力部分!$I$38)^2) -> 0.0001031579323 | Y174: 0.01733053263 | AB174: 168 | AC174: =1/入力部分!$I$39/(2*3.14)^0.5*EXP(-1/2*(((AB174+入力部分!$I$48)-入力部分!$I$30)/入力部分!$I$39)^2) -> 8.069471556e-20 | AD174: 1.355671221e-17
I175: 169 | J175: =(入力部分!D$7*N175+入力部分!D$8*S175+入力部分!D$9*X175+入力部分!D$10*AC175)/(SUM(入力部分!D$7:D$10)) -> 0.002018294976 | M175: 169 | N175: =1/入力部分!$I$36/(2*3.14)^0.5*EXP(-1/2*(((M175+入力部分!$I$45)-入力部分!$I$27)/入力部分!$I$36)^2) -> 0.003976609019 | O175: 0.6720469243 | R175: 169 | S175: =1/入力部分!$I$37/(2*3.14)^0.5*EXP(-1/2*(((R175+入力部分!$I$46)-入力部分!$I$28)/入力部分!$I$37)^2) -> 0.003994932355 | T175: 0.6751435679 | W175: 169 | X175: =1/入力部分!$I$38/(2*3.14)^0.5*EXP(-1/2*(((W175+入力部分!$I$47)-入力部分!$I$29)/入力部分!$I$38)^2) -> 9.247686224e-05 | Y175: 0.01562858972 | AB175: 169 | AC175: =1/入力部分!$I$39/(2*3.14)^0.5*EXP(-1/2*(((AB175+入力部分!$I$48)-入力部分!$I$30)/入力部分!$I$39)^2) -> 3.796426463e-20 | AD175: 6.415960723e-18
I176: 170 | J176: =(入力部分!D$7*N176+入力部分!D$8*S176+入力部分!D$9*X176+入力部分!D$10*AC176)/(SUM(入力部分!D$7:D$10)) -> 0.001987760273 | M176: 170 | N176: =1/入力部分!$I$36/(2*3.14)^0.5*EXP(-1/2*(((M176+入力部分!$I$45)-入力部分!$I$27)/入力部分!$I$36)^2) -> 0.00396980661 | O176: 0.6748671238 | R176: 170 | S176: =1/入力部分!$I$37/(2*3.14)^0.5*EXP(-1/2*(((R176+入力部分!$I$46)-入力部分!$I$28)/入力部分!$I$37)^2) -> 0.00392222397 | T176: 0.6667780749 | W176: 170 | X176: =1/入力部分!$I$38/(2*3.14)^0.5*EXP(-1/2*(((W176+入力部分!$I$47)-入力部分!$I$29)/入力部分!$I$38)^2) -> 8.280183149e-05 | Y176: 0.01407631135 | AB176: 170 | AC176: =1/入力部分!$I$39/(2*3.14)^0.5*EXP(-1/2*(((AB176+入力部分!$I$48)-入力部分!$I$30)/入力部分!$I$39)^2) -> 1.773735895e-20 | AD176: 3.015351022e-18
I177: 171 | J177: =(入力部分!D$7*N177+入力部分!D$8*S177+入力部分!D$9*X177+入力部分!D$10*AC177)/(SUM(入力部分!D$7:D$10)) -> 0.001957468255 | M177: 171 | N177: =1/入力部分!$I$36/(2*3.14)^0.5*EXP(-1/2*(((M177+入力部分!$I$45)-入力部分!$I$27)/入力部分!$I$36)^2) -> 0.00396261151 | O177: 0.6776065682 | R177: 171 | S177: =1/入力部分!$I$37/(2*3.14)^0.5*EXP(-1/2*(((R177+入力部分!$I$46)-入力部分!$I$28)/入力部分!$I$37)^2) -> 0.003849678389 | T177: 0.6582950046 | W177: 171 | X177: =1/入力部分!$I$38/(2*3.14)^0.5*EXP(-1/2*(((W177+入力部分!$I$47)-入力部分!$I$29)/入力部分!$I$38)^2) -> 7.40496825e-05 | Y177: 0.01266249571 | AB177: 171 | AC177: =1/入力部分!$I$39/(2*3.14)^0.5*EXP(-1/2*(((AB177+入力部分!$I$48)-入力部分!$I$30)/入力部分!$I$39)^2) -> 8.229756472e-21 | AD177: 1.407288357e-18
I178: 172 | J178: =(入力部分!D$7*N178+入力部分!D$8*S178+入力部分!D$9*X178+入力部分!D$10*AC178)/(SUM(入力部分!D$7:D$10)) -> 0.001927414919 | M178: 172 | N178: =1/入力部分!$I$36/(2*3.14)^0.5*EXP(-1/2*(((M178+入力部分!$I$45)-入力部分!$I$27)/入力部分!$I$36)^2) -> 0.003955025897 | O178: 0.6802644543 | R178: 172 | S178: =1/入力部分!$I$37/(2*3.14)^0.5*EXP(-1/2*(((R178+入力部分!$I$46)-入力部分!$I$28)/入力部分!$I$37)^2) -> 0.003777335923 | T178: 0.6497017787 | W178: 172 | X178: =1/入力部分!$I$38/(2*3.14)^0.5*EXP(-1/2*(((W178+入力部分!$I$47)-入力部分!$I$29)/入力部分!$I$38)^2) -> 6.614284311e-05 | Y178: 0.01137656902 | AB178: 172 | AC178: =1/入力部分!$I$39/(2*3.14)^0.5*EXP(-1/2*(((AB178+入力部分!$I$48)-入力部分!$I$30)/入力部分!$I$39)^2) -> 3.792006554e-21 | AD178: 6.522251273e-19
I179: 173 | J179: =(入力部分!D$7*N179+入力部分!D$8*S179+入力部分!D$9*X179+入力部分!D$10*AC179)/(SUM(入力部分!D$7:D$10)) -> 0.00189759726 | M179: 173 | N179: =1/入力部分!$I$36/(2*3.14)^0.5*EXP(-1/2*(((M179+入力部分!$I$45)-入力部分!$I$27)/入力部分!$I$36)^2) -> 0.003947052065 | O179: 0.6828400073 | R179: 173 | S179: =1/入力部分!$I$37/(2*3.14)^0.5*EXP(-1/2*(((R179+入力部分!$I$46)-入力部分!$I$28)/入力部分!$I$37)^2) -> 0.003705235946 | T179: 0.6410058186 | W179: 173 | X179: =1/入力部分!$I$38/(2*3.14)^0.5*EXP(-1/2*(((W179+入力部分!$I$47)-入力部分!$I$29)/入力部分!$I$38)^2) -> 5.900909001e-05 | Y179: 0.01020857257 | AB179: 173 | AC179: =1/入力部分!$I$39/(2*3.14)^0.5*EXP(-1/2*(((AB179+入力部分!$I$48)-入力部分!$I$30)/入力部分!$I$39)^2) -> 1.735142873e-21 | AD179: 3.001797169e-19
I180: 174 | J180: =(入力部分!D$7*N180+入力部分!D$8*S180+入力部分!D$9*X180+入力部分!D$10*AC180)/(SUM(入力部分!D$7:D$10)) -> 0.001868013207 | M180: 174 | N180: =1/入力部分!$I$36/(2*3.14)^0.5*EXP(-1/2*(((M180+入力部分!$I$45)-入力部分!$I$27)/入力部分!$I$36)^2) -> 0.003938692423 | O180: 0.6853324816 | R180: 174 | S180: =1/入力部分!$I$37/(2*3.14)^0.5*EXP(-1/2*(((R180+入力部分!$I$46)-入力部分!$I$28)/入力部分!$I$37)^2) -> 0.003633416872 | T180: 0.6322145358 | W180: 174 | X180: =1/入力部分!$I$38/(2*3.14)^0.5*EXP(-1/2*(((W180+入力部分!$I$47)-入力部分!$I$29)/入力部分!$I$38)^2) -> 5.25813069e-05 | Y180: 0.0091491474 | AB180: 174 | AC180: =1/入力部分!$I$39/(2*3.14)^0.5*EXP(-1/2*(((AB180+入力部分!$I$48)-入力部分!$I$30)/入力部分!$I$39)^2) -> 7.884705342e-22 | AD180: 1.37193873e-19
I181: 175 | J181: =(入力部分!D$7*N181+入力部分!D$8*S181+入力部分!D$9*X181+入力部分!D$10*AC181)/(SUM(入力部分!D$7:D$10)) -> 0.001838661543 | M181: 175 | N181: =1/入力部分!$I$36/(2*3.14)^0.5*EXP(-1/2*(((M181+入力部分!$I$45)-入力部分!$I$27)/入力部分!$I$36)^2) -> 0.003929949491 | O181: 0.687741161 | R181: 175 | S181: =1/入力部分!$I$37/(2*3.14)^0.5*EXP(-1/2*(((R181+入力部分!$I$46)-入力部分!$I$28)/入力部分!$I$37)^2) -> 0.003561916125 | T181: 0.6233353218 | W181: 175 | X181: =1/入力部分!$I$38/(2*3.14)^0.5*EXP(-1/2*(((W181+入力部分!$I$47)-入力部分!$I$29)/入力部分!$I$38)^2) -> 4.67972395e-05 | Y181: 0.008189516912 | AB181: 175 | AC181: =1/入力部分!$I$39/(2*3.14)^0.5*EXP(-1/2*(((AB181+入力部分!$I$48)-入力部分!$I$30)/入力部分!$I$39)^2) -> 3.558113205e-22 | AD181: 6.226698109e-20
I182: 176 | J182: =(入力部分!D$7*N182+入力部分!D$8*S182+入力部分!D$9*X182+入力部分!D$10*AC182)/(SUM(入力部分!D$7:D$10)) -> 0.001809541842 | M182: 176 | N182: =1/入力部分!$I$36/(2*3.14)^0.5*EXP(-1/2*(((M182+入力部分!$I$45)-入力部分!$I$27)/入力部分!$I$36)^2) -> 0.003920825903 | O182: 0.6900653589 | R182: 176 | S182: =1/入力部分!$I$37/(2*3.14)^0.5*EXP(-1/2*(((R182+入力部分!$I$46)-入力部分!$I$28)/入力部分!$I$37)^2) -> 0.00349077011 | T182: 0.6143755394 | W182: 176 | X182: =1/入力部分!$I$38/(2*3.14)^0.5*EXP(-1/2*(((W182+入力部分!$I$47)-入力部分!$I$29)/入力部分!$I$38)^2) -> 4.159924945e-05 | Y182: 0.007321467903 | AB182: 176 | AC182: =1/入力部分!$I$39/(2*3.14)^0.5*EXP(-1/2*(((AB182+入力部分!$I$48)-入力部分!$I$30)/入力部分!$I$39)^2) -> 1.594549924e-22 | AD182: 2.806407866e-20
I183: 177 | J183: =(入力部分!D$7*N183+入力部分!D$8*S183+入力部分!D$9*X183+入力部分!D$10*AC183)/(SUM(入力部分!D$7:D$10)) -> 0.001780654391 | M183: 177 | N183: =1/入力部分!$I$36/(2*3.14)^0.5*EXP(-1/2*(((M183+入力部分!$I$45)-入力部分!$I$27)/入力部分!$I$36)^2) -> 0.003911324401 | O183: 0.6923044189 | R183: 177 | S183: =1/入力部分!$I$37/(2*3.14)^0.5*EXP(-1/2*(((R183+入力部分!$I$46)-入力部分!$I$28)/入力部分!$I$37)^2) -> 0.003420014197 | T183: 0.6053425128 | W183: 177 | X183: =1/入力部分!$I$38/(2*3.14)^0.5*EXP(-1/2*(((W183+入力部分!$I$47)-入力部分!$I$29)/入力部分!$I$38)^2) -> 3.693406889e-05 | Y183: 0.006537330194 | AB183: 177 | AC183: =1/入力部分!$I$39/(2*3.14)^0.5*EXP(-1/2*(((AB183+入力部分!$I$48)-入力部分!$I$30)/入力部分!$I$39)^2) -> 7.09644019e-23 | AD183: 1.256069914e-20
I184: 178 | J184: =(入力部分!D$7*N184+入力部分!D$8*S184+入力部分!D$9*X184+入力部分!D$10*AC184)/(SUM(入力部分!D$7:D$10)) -> 0.001752000128 | M184: 178 | N184: =1/入力部分!$I$36/(2*3.14)^0.5*EXP(-1/2*(((M184+入力部分!$I$45)-入力部分!$I$27)/入力部分!$I$36)^2) -> 0.003901447837 | O184: 0.6944577151 | R184: 178 | S184: =1/入力部分!$I$37/(2*3.14)^0.5*EXP(-1/2*(((R184+入力部分!$I$46)-入力部分!$I$28)/入力部分!$I$37)^2) -> 0.003349682691 | T184: 0.596243519 | W184: 178 | X184: =1/入力部分!$I$38/(2*3.14)^0.5*EXP(-1/2*(((W184+入力部分!$I$47)-入力部分!$I$29)/入力部分!$I$38)^2) -> 3.275255731e-05 | Y184: 0.005829955201 | AB184: 178 | AC184: =1/入力部分!$I$39/(2*3.14)^0.5*EXP(-1/2*(((AB184+入力部分!$I$48)-入力部分!$I$30)/入力部分!$I$39)^2) -> 3.136368177e-23 | AD184: 5.582735354e-21
I185: 179 | J185: =(入力部分!D$7*N185+入力部分!D$8*S185+入力部分!D$9*X185+入力部分!D$10*AC185)/(SUM(入力部分!D$7:D$10)) -> 0.00172358057 | M185: 179 | N185: =1/入力部分!$I$36/(2*3.14)^0.5*EXP(-1/2*(((M185+入力部分!$I$45)-入力部分!$I$27)/入力部分!$I$36)^2) -> 0.003891199173 | O185: 0.6965246519 | R185: 179 | S185: =1/入力部分!$I$37/(2*3.14)^0.5*EXP(-1/2*(((R185+入力部分!$I$46)-入力部分!$I$28)/入力部分!$I$37)^2) -> 0.00327980882 | T185: 0.5870857789 | W185: 179 | X185: =1/入力部分!$I$38/(2*3.14)^0.5*EXP(-1/2*(((W185+入力部分!$I$47)-入力部分!$I$29)/入力部分!$I$38)^2) -> 2.900946209e-05 | Y185: 0.005192693713 | AB185: 179 | AC185: =1/入力部分!$I$39/(2*3.14)^0.5*EXP(-1/2*(((AB185+入力部分!$I$48)-入力部分!$I$30)/入力部分!$I$39)^2) -> 1.376567768e-23 | AD185: 2.464056305e-21
I186: 180 | J186: =(入力部分!D$7*N186+入力部分!D$8*S186+入力部分!D$9*X186+入力部分!D$10*AC186)/(SUM(入力部分!D$7:D$10)) -> 0.001695397748 | M186: 180 | N186: =1/入力部分!$I$36/(2*3.14)^0.5*EXP(-1/2*(((M186+入力部分!$I$45)-入力部分!$I$27)/入力部分!$I$36)^2) -> 0.003880581473 | O186: 0.6985046651 | R186: 180 | S186: =1/入力部分!$I$37/(2*3.14)^0.5*EXP(-1/2*(((R186+入力部分!$I$46)-入力部分!$I$28)/入力部分!$I$37)^2) -> 0.003210424714 | T186: 0.5778764485 | W186: 180 | X186: =1/入力部分!$I$38/(2*3.14)^0.5*EXP(-1/2*(((W186+入力部分!$I$47)-入力部分!$I$29)/入力部分!$I$38)^2) -> 2.566318395e-05 | Y186: 0.004619373111 | AB186: 180 | AC186: =1/入力部分!$I$39/(2*3.14)^0.5*EXP(-1/2*(((AB186+入力部分!$I$48)-入力部分!$I$30)/入力部分!$I$39)^2) -> 6.000013402e-24 | AD186: 1.080002412e-21
I187: 181 | J187: =(入力部分!D$7*N187+入力部分!D$8*S187+入力部分!D$9*X187+入力部分!D$10*AC187)/(SUM(入力部分!D$7:D$10)) -> 0.001667454146 | M187: 181 | N187: =1/入力部分!$I$36/(2*3.14)^0.5*EXP(-1/2*(((M187+入力部分!$I$45)-入力部分!$I$27)/入力部分!$I$36)^2) -> 0.003869597908 | O187: 0.7003972213 | R187: 181 | S187: =1/入力部分!$I$37/(2*3.14)^0.5*EXP(-1/2*(((R187+入力部分!$I$46)-入力部分!$I$28)/入力部分!$I$37)^2) -> 0.003141561388 | T187: 0.5686226112 | W187: 181 | X187: =1/入力部分!$I$38/(2*3.14)^0.5*EXP(-1/2*(((W187+入力部分!$I$47)-入力部分!$I$29)/入力部分!$I$38)^2) -> 2.267554836e-05 | Y187: 0.004104274253 | AB187: 181 | AC187: =1/入力部分!$I$39/(2*3.14)^0.5*EXP(-1/2*(((AB187+入力部分!$I$48)-入力部分!$I$30)/入力部分!$I$39)^2) -> 2.597113385e-24 | AD187: 4.700775227e-22
I188: 182 | J188: =(入力部分!D$7*N188+入力部分!D$8*S188+入力部分!D$9*X188+入力部分!D$10*AC188)/(SUM(入力部分!D$7:D$10)) -> 0.001639752639 | M188: 182 | N188: =1/入力部分!$I$36/(2*3.14)^0.5*EXP(-1/2*(((M188+入力部分!$I$45)-入力部分!$I$27)/入力部分!$I$36)^2) -> 0.003858251752 | O188: 0.7022018188 | R188: 182 | S188: =1/入力部分!$I$37/(2*3.14)^0.5*EXP(-1/2*(((R188+入力部分!$I$46)-入力部分!$I$28)/入力部分!$I$37)^2) -> 0.003073248732 | T188: 0.5593312693 | W188: 182 | X188: =1/入力部分!$I$38/(2*3.14)^0.5*EXP(-1/2*(((W188+入力部分!$I$47)-入力部分!$I$29)/入力部分!$I$38)^2) -> 2.001158372e-05 | Y188: 0.003642108236 | AB188: 182 | AC188: =1/入力部分!$I$39/(2*3.14)^0.5*EXP(-1/2*(((AB188+入力部分!$I$48)-入力部分!$I$30)/入力部分!$I$39)^2) -> 1.116384162e-24 | AD188: 2.031819176e-22
I189: 183 | J189: =(入力部分!D$7*N189+入力部分!D$8*S189+入力部分!D$9*X189+入力部分!D$10*AC189)/(SUM(入力部分!D$7:D$10)) -> 0.001612296436 | M189: 183 | N189: =1/入力部分!$I$36/(2*3.14)^0.5*EXP(-1/2*(((M189+入力部分!$I$45)-入力部分!$I$27)/入力部分!$I$36)^2) -> 0.003846546379 | O189: 0.7039179874 | R189: 183 | S189: =1/入力部分!$I$37/(2*3.14)^0.5*EXP(-1/2*(((R189+入力部分!$I$46)-入力部分!$I$28)/入力部分!$I$37)^2) -> 0.003005515499 | T189: 0.5500093363 | W189: 183 | X189: =1/入力部分!$I$38/(2*3.14)^0.5*EXP(-1/2*(((W189+入力部分!$I$47)-入力部分!$I$29)/入力部分!$I$38)^2) -> 1.763930713e-05 | Y189: 0.003227993205 | AB189: 183 | AC189: =1/入力部分!$I$39/(2*3.14)^0.5*EXP(-1/2*(((AB189+入力部分!$I$48)-入力部分!$I$30)/入力部分!$I$39)^2) -> 4.765631844e-25 | AD189: 8.721106274e-23
I190: 184 | J190: =(入力部分!D$7*N190+入力部分!D$8*S190+入力部分!D$9*X190+入力部分!D$10*AC190)/(SUM(入力部分!D$7:D$10)) -> 0.001585089022 | M190: 184 | N190: =1/入力部分!$I$36/(2*3.14)^0.5*EXP(-1/2*(((M190+入力部分!$I$45)-入力部分!$I$27)/入力部分!$I$36)^2) -> 0.003834485265 | O190: 0.7055452888 | R190: 184 | S190: =1/入力部分!$I$37/(2*3.14)^0.5*EXP(-1/2*(((R190+入力部分!$I$46)-入力部分!$I$28)/入力部分!$I$37)^2) -> 0.002938389292 | T190: 0.5406636297 | W190: 184 | X190: =1/入力部分!$I$38/(2*3.14)^0.5*EXP(-1/2*(((W190+入力部分!$I$47)-入力部分!$I$29)/入力部分!$I$38)^2) -> 1.552951829e-05 | Y190: 0.002857431366 | AB190: 184 | AC190: =1/入力部分!$I$39/(2*3.14)^0.5*EXP(-1/2*(((AB190+入力部分!$I$48)-入力部分!$I$30)/入力部分!$I$39)^2) -> 2.02027913e-25 | AD190: 3.717313598e-23
I191: 185 | J191: =(入力部分!D$7*N191+入力部分!D$8*S191+入力部分!D$9*X191+入力部分!D$10*AC191)/(SUM(入力部分!D$7:D$10)) -> 0.001558134109 | M191: 185 | N191: =1/入力部分!$I$36/(2*3.14)^0.5*EXP(-1/2*(((M191+入力部分!$I$45)-入力部分!$I$27)/入力部分!$I$36)^2) -> 0.003822071982 | O191: 0.7070833166 | R191: 185 | S191: =1/入力部分!$I$37/(2*3.14)^0.5*EXP(-1/2*(((R191+入力部分!$I$46)-入力部分!$I$28)/入力部分!$I$37)^2) -> 0.002871896561 | T191: 0.5313008638 | W191: 185 | X191: =1/入力部分!$I$38/(2*3.14)^0.5*EXP(-1/2*(((W191+入力部分!$I$47)-入力部分!$I$29)/入力部分!$I$38)^2) -> 1.36556019e-05 | Y191: 0.002526286352 | AB191: 185 | AC191: =1/入力部分!$I$39/(2*3.14)^0.5*EXP(-1/2*(((AB191+入力部分!$I$48)-入力部分!$I$30)/入力部分!$I$39)^2) -> 8.505235278e-26 | AD191: 1.573468526e-23
I192: 186 | J192: =(入力部分!D$7*N192+入力部分!D$8*S192+入力部分!D$9*X192+入力部分!D$10*AC192)/(SUM(入力部分!D$7:D$10)) -> 0.001531435583 | M192: 186 | N192: =1/入力部分!$I$36/(2*3.14)^0.5*EXP(-1/2*(((M192+入力部分!$I$45)-入力部分!$I$27)/入力部分!$I$36)^2) -> 0.003809310199 | O192: 0.7085316969 | R192: 186 | S192: =1/入力部分!$I$37/(2*3.14)^0.5*EXP(-1/2*(((R192+入力部分!$I$46)-入力部分!$I$28)/入力部分!$I$37)^2) -> 0.002806062595 | T192: 0.5219276426 | W192: 186 | X192: =1/入力部分!$I$38/(2*3.14)^0.5*EXP(-1/2*(((W192+入力部分!$I$47)-入力部分!$I$29)/入力部分!$I$38)^2) -> 1.199333903e-05 | Y192: 0.00223076106 | AB192: 186 | AC192: =1/入力部分!$I$39/(2*3.14)^0.5*EXP(-1/2*(((AB192+入力部分!$I$48)-入力部分!$I$30)/入力部分!$I$39)^2) -> 3.555865721e-26 | AD192: 6.61391024e-24
I193: 187 | J193: =(入力部分!D$7*N193+入力部分!D$8*S193+入力部分!D$9*X193+入力部分!D$10*AC193)/(SUM(入力部分!D$7:D$10)) -> 0.001504997461 | M193: 187 | N193: =1/入力部分!$I$36/(2*3.14)^0.5*EXP(-1/2*(((M193+入力部分!$I$45)-入力部分!$I$27)/入力部分!$I$36)^2) -> 0.003796203679 | O193: 0.7098900879 | R193: 187 | S193: =1/入力部分!$I$37/(2*3.14)^0.5*EXP(-1/2*(((R193+入力部分!$I$46)-入力部分!$I$28)/入力部分!$I$37)^2) -> 0.002740911517 | T193: 0.5125504537 | W193: 187 | X193: =1/入力部分!$I$38/(2*3.14)^0.5*EXP(-1/2*(((W193+入力部分!$I$47)-入力部分!$I$29)/入力部分!$I$38)^2) -> 1.052072756e-05 | Y193: 0.001967376053 | AB193: 187 | AC193: =1/入力部分!$I$39/(2*3.14)^0.5*EXP(-1/2*(((AB193+入力部分!$I$48)-入力部分!$I$30)/入力部分!$I$39)^2) -> 1.476346977e-26 | AD193: 2.760768847e-24
I194: 188 | J194: =(入力部分!D$7*N194+入力部分!D$8*S194+入力部分!D$9*X194+入力部分!D$10*AC194)/(SUM(入力部分!D$7:D$10)) -> 0.001478823844 | M194: 188 | N194: =1/入力部分!$I$36/(2*3.14)^0.5*EXP(-1/2*(((M194+入力部分!$I$45)-入力部分!$I$27)/入力部分!$I$36)^2) -> 0.003782756278 | O194: 0.7111581802 | R194: 188 | S194: =1/入力部分!$I$37/(2*3.14)^0.5*EXP(-1/2*(((R194+入力部分!$I$46)-入力部分!$I$28)/入力部分!$I$37)^2) -> 0.002676466284 | T194: 0.5031756614 | W194: 188 | X194: =1/入力部分!$I$38/(2*3.14)^0.5*EXP(-1/2*(((W194+入力部分!$I$47)-入力部分!$I$29)/入力部分!$I$38)^2) -> 9.217811828e-06 | Y194: 0.001732948624 | AB194: 188 | AC194: =1/入力部分!$I$39/(2*3.14)^0.5*EXP(-1/2*(((AB194+入力部分!$I$48)-入力部分!$I$30)/入力部分!$I$39)^2) -> 6.087172259e-27 | AD194: 1.144388385e-24
I195: 189 | J195: =(入力部分!D$7*N195+入力部分!D$8*S195+入力部分!D$9*X195+入力部分!D$10*AC195)/(SUM(入力部分!D$7:D$10)) -> 0.001452918881 | M195: 189 | N195: =1/入力部分!$I$36/(2*3.14)^0.5*EXP(-1/2*(((M195+入力部分!$I$45)-入力部分!$I$27)/入力部分!$I$36)^2) -> 0.003768971943 | O195: 0.7123356972 | R195: 189 | S195: =1/入力部分!$I$37/(2*3.14)^0.5*EXP(-1/2*(((R195+入力部分!$I$46)-入力部分!$I$28)/入力部分!$I$37)^2) -> 0.002612748687 | T195: 0.4938095019 | W195: 189 | X195: =1/入力部分!$I$38/(2*3.14)^0.5*EXP(-1/2*(((W195+入力部分!$I$47)-入力部分!$I$29)/入力部分!$I$38)^2) -> 8.066521627e-06 | Y195: 0.001524572588 | AB195: 189 | AC195: =1/入力部分!$I$39/(2*3.14)^0.5*EXP(-1/2*(((AB195+入力部分!$I$48)-入力部分!$I$30)/入力部分!$I$39)^2) -> 2.492452042e-27 | AD195: 4.71073436e-25
I196: 190 | J196: =(入力部分!D$7*N196+入力部分!D$8*S196+入力部分!D$9*X196+入力部分!D$10*AC196)/(SUM(入力部分!D$7:D$10)) -> 0.001427286725 | M196: 190 | N196: =1/入力部分!$I$36/(2*3.14)^0.5*EXP(-1/2*(((M196+入力部分!$I$45)-入力部分!$I$27)/入力部分!$I$36)^2) -> 0.003754854709 | O196: 0.7134223947 | R196: 190 | S196: =1/入力部分!$I$37/(2*3.14)^0.5*EXP(-1/2*(((R196+入力部分!$I$46)-入力部分!$I$28)/入力部分!$I$37)^2) -> 0.00254977935 | T196: 0.4844580765 | W196: 190 | X196: =1/入力部分!$I$38/(2*3.14)^0.5*EXP(-1/2*(((W196+入力部分!$I$47)-入力部分!$I$29)/入力部分!$I$38)^2) -> 7.050520297e-06 | Y196: 0.001339598857 | AB196: 190 | AC196: =1/入力部分!$I$39/(2*3.14)^0.5*EXP(-1/2*(((AB196+入力部分!$I$48)-入力部分!$I$30)/入力部分!$I$39)^2) -> 1.013496132e-27 | AD196: 1.925642652e-25
I197: 191 | J197: =(入力部分!D$7*N197+入力部分!D$8*S197+入力部分!D$9*X197+入力部分!D$10*AC197)/(SUM(入力部分!D$7:D$10)) -> 0.001401931503 | M197: 191 | N197: =1/入力部分!$I$36/(2*3.14)^0.5*EXP(-1/2*(((M197+入力部分!$I$45)-入力部分!$I$27)/入力部分!$I$36)^2) -> 0.003740408698 | O197: 0.7144180614 | R197: 191 | S197: =1/入力部分!$I$37/(2*3.14)^0.5*EXP(-1/2*(((R197+入力部分!$I$46)-入力部分!$I$28)/入力部分!$I$37)^2) -> 0.002487577735 | T197: 0.4751273474 | W197: 191 | X197: =1/入力部分!$I$38/(2*3.14)^0.5*EXP(-1/2*(((W197+入力部分!$I$47)-入力部分!$I$29)/入力部分!$I$38)^2) -> 6.155062004e-06 | Y197: 0.001175616843 | AB197: 191 | AC197: =1/入力部分!$I$39/(2*3.14)^0.5*EXP(-1/2*(((AB197+入力部分!$I$48)-入力部分!$I$30)/入力部分!$I$39)^2) -> 4.092620231e-28 | AD197: 7.816904642e-26
I198: 192 | J198: =(入力部分!D$7*N198+入力部分!D$8*S198+入力部分!D$9*X198+入力部分!D$10*AC198)/(SUM(入力部分!D$7:D$10)) -> 0.001376857284 | M198: 192 | N198: =1/入力部分!$I$36/(2*3.14)^0.5*EXP(-1/2*(((M198+入力部分!$I$45)-入力部分!$I$27)/入力部分!$I$36)^2) -> 0.003725638118 | O198: 0.7153225186 | R198: 192 | S198: =1/入力部分!$I$37/(2*3.14)^0.5*EXP(-1/2*(((R198+入力部分!$I$46)-入力部分!$I$28)/入力部分!$I$37)^2) -> 0.002426162147 | T198: 0.4658231322 | W198: 192 | X198: =1/入力部分!$I$38/(2*3.14)^0.5*EXP(-1/2*(((W198+入力部分!$I$47)-入力部分!$I$29)/入力部分!$I$38)^2) -> 5.366857914e-06 | Y198: 0.00103043672 | AB198: 192 | AC198: =1/入力部分!$I$39/(2*3.14)^0.5*EXP(-1/2*(((AB198+入力部分!$I$48)-入力部分!$I$30)/入力部分!$I$39)^2) -> 1.641212681e-28 | AD198: 3.151128348e-26
I199: 193 | J199: =(入力部分!D$7*N199+入力部分!D$8*S199+入力部分!D$9*X199+入力部分!D$10*AC199)/(SUM(入力部分!D$7:D$10)) -> 0.001352068047 | M199: 193 | N199: =1/入力部分!$I$36/(2*3.14)^0.5*EXP(-1/2*(((M199+入力部分!$I$45)-入力部分!$I$27)/入力部分!$I$36)^2) -> 0.003710547257 | O199: 0.7161356206 | R199: 193 | S199: =1/入力部分!$I$37/(2*3.14)^0.5*EXP(-1/2*(((R199+入力部分!$I$46)-入力部分!$I$28)/入力部分!$I$37)^2) -> 0.002365549739 | T199: 0.4565510997 | W199: 193 | X199: =1/入力部分!$I$38/(2*3.14)^0.5*EXP(-1/2*(((W199+入力部分!$I$47)-入力部分!$I$29)/入力部分!$I$38)^2) -> 4.673951089e-06 | Y199: 0.0009020725602 | AB199: 193 | AC199: =1/入力部分!$I$39/(2*3.14)^0.5*EXP(-1/2*(((AB199+入力部分!$I$48)-入力部分!$I$30)/入力部分!$I$39)^2) -> 6.53600457e-29 | AD199: =AB199*$AC199 -> 1.261448882e-26
I200: 194 | J200: =(入力部分!D$7*N200+入力部分!D$8*S200+入力部分!D$9*X200+入力部分!D$10*AC200)/(SUM(入力部分!D$7:D$10)) -> 0.001327567657 | M200: 194 | N200: =1/入力部分!$I$36/(2*3.14)^0.5*EXP(-1/2*(((M200+入力部分!$I$45)-入力部分!$I$27)/入力部分!$I$36)^2) -> 0.003695140487 | O200: =M200*$N200 -> 0.7168572545 | R200: 194 | S200: =1/入力部分!$I$37/(2*3.14)^0.5*EXP(-1/2*(((R200+入力部分!$I$46)-入力部分!$I$28)/入力部分!$I$37)^2) -> 0.002305756523 | T200: =R200*$S200 -> 0.4473167655 | W200: 194 | X200: =1/入力部分!$I$38/(2*3.14)^0.5*EXP(-1/2*(((W200+入力部分!$I$47)-入力部分!$I$29)/入力部分!$I$38)^2) -> 4.06559983e-06 | Y200: =W200*$X200 -> 0.000788726367 | AB200: 194 | AC200: =1/入力部分!$I$39/(2*3.14)^0.5*EXP(-1/2*(((AB200+入力部分!$I$48)-入力部分!$I$30)/入力部分!$I$39)^2) -> 2.584900893e-29 | AD200: 5.014707732e-27
I201: 195 | J201: =(入力部分!D$7*N201+入力部分!D$8*S201+入力部分!D$9*X201+入力部分!D$10*AC201)/(SUM(入力部分!D$7:D$10)) -> 0.00130335984 | M201: 195 | N201: =1/入力部分!$I$36/(2*3.14)^0.5*EXP(-1/2*(((M201+入力部分!$I$45)-入力部分!$I$27)/入力部分!$I$36)^2) -> 0.003679422256 | O201: 0.7174873399 | R201: 195 | S201: =1/入力部分!$I$37/(2*3.14)^0.5*EXP(-1/2*(((R201+入力部分!$I$46)-入力部分!$I$28)/入力部分!$I$37)^2) -> 0.002246797375 | T201: 0.4381254881 | W201: 195 | X201: =1/入力部分!$I$38/(2*3.14)^0.5*EXP(-1/2*(((W201+入力部分!$I$47)-入力部分!$I$29)/入力部分!$I$38)^2) -> 3.532169174e-06 | Y201: 0.0006887729889 | AB201: 195 | AC201: =1/入力部分!$I$39/(2*3.14)^0.5*EXP(-1/2*(((AB201+入力部分!$I$48)-入力部分!$I$30)/入力部分!$I$39)^2) -> 1.015218474e-29 | AD201: 1.979676024e-27
... 305 more rows

Sheet 簡易マニュアル
C3: 露出高推定モデル（混合粒径版） マニュアル（2021/4/1更新）
C5: １．各区分の存在割合（粒度加積曲線または被度割合をもとに算出）を
C6: C7～11に入力します（入力範囲：0～1）
C7: 必ず入力が必要です
C8: ２．各区分の代表粒径を(C17～21)に入力します（入力範囲：１～５００ mm）
C9: なければ、Wentworthの粒径区分に基づき自動入力します
C10: ３．各区分の代表高さを（C25～29）に入力します（入力範囲：１～３００ mm）
C11: なければ、代表粒径×0.64で近似計算します
C12: ４．各区分の標準偏差の係数を（C33～37）に入力します（入力範囲：0～1）
C13: なければ、代表粒径×0.3で近似計算します
